{"text_format":"1","workbook":"xlsx","n_sheets":2,"sheets":["invullijst","gegevens"],"not_rendered":{"charts":0,"images":0,"macros":1,"external_links":0,"defined_names":0,"comments":0,"pivot_tables":0},"unopened":[],"bounds":{"document_bytes":16777216,"sheet_cells":100000,"rows_first":2000,"rows_last":500,"rows_between":2000,"halvings":0,"cell_chars":16384,"cell_head_chars":4096},"cells_cut":0,"cells_raw":0,"read":"whole","date_system":"1900"}

{"sheet":"invullijst","index":0,"n_rows":1048576,"n_cols":22,"rows_kept":4500,"cut":true,"hidden":false,"merged":[[2,3,2,5],[2,10,2,14],[2,15,2,19],[2,20,2,21],[2,6,2,9]],"bounds":{"rows_first":2000,"rows_last":500,"rows_between":2000,"halvings":0}}
[]
[]
[null,null,null,"BOUWAFMETING",null,null,"DEURBLAD",null,null,null,"KASSEMENT",null,null,null,null,"DEURBESLAG",null,null,null,null,"OPMERKINGEN"]
[null,"referentie","aantal","DAGHOOGTE","DAGBREEDTE","MUURDIKTE","type","H","B","D","type","B","DRAAIRICHTING","VENTILATIE SPELING","CHAMBRANG","AANTAL SCHARNIEREN"," TYPE scharnieren","slot","SLEUTEL","KRUK","VALDORPEL","opmerking 2"]
[null,"slaapkamer",1,2075,850,120,"PCB eik rustiek",2015,{"$f":"(gegevens!$F$20)","v":730},40,"MTX eik",{"$f":"F5","v":120},"EUR",10,"12x68 mdf+fineer eik",3,"arg inox 80x80","KFV RF SLEUTEL","SLEUTEL+PATENTGAT","KRUK+PATENTGAT","VALDORPEL",1]
[null,null,null,null,null,null,null,null,null,null,null,null,"Lod"]
[null,null,null,null,null,null,null,null,null,null,null,null,"Lod"]
[null,null,null,null,null,null,null,null,null,null,null,null,"Lod"]
[null,null,null,null,null,null,null,null,null,null,null,null,"Lod"]
[null,null,null,null,null,null,null,null,null,null,null,null,"Lod"]
[null,null,null,null,null,null,null,null,null,null,null,null,"Lod"]
[null,null,null,null,null,null,null,null,null,null,null,null,"Lod"]
[null,null,null,null,null,null,null,null,null,null,null,null,"Lod"]
[null,null,null,null,null,null,null,null,null,null,null,null,"Lod"]
[null,null,null,null,null,null,null,null,null,null,null,null,"Lod"]
[null,null,null,null,null,null,null,null,null,null,null,null,"Lod"]
[null,null,null,null,null,null,null,null,null,null,null,null,"Lod"]
[null,null,null,null,null,null,null,null,null,null,null,null,"Lod"]
[null,null,null,null,null,null,null,null,null,null,null,null,"Lod"]
[null,null,null,null,null,null,null,null,null,null,null,null,"Lod"]
[null,null,null,null,null,null,null,null,null,null,null,null,"Lod"]
[null,null,null,null,null,null,null,null,null,null,null,null,"Lod"]
[null,null,null,null,null,null,null,null,null,null,null,null,"Lod"]
[null,null,null,null,null,null,null,null,null,null,null,null,"Lod"]
[null,null,null,null,null,null,null,null,null,null,null,null,"Lod"]
[null,null,null,null,null,null,null,null,null,null,null,null,"Lod"]
[null,null,null,null,null,null,null,null,null,null,null,null,"Lod"]
[null,null,null,null,null,null,null,null,null,null,null,null,"Lod"]
[null,null,null,null,null,null,null,null,null,null,null,null,"Lod"]
[null,null,null,null,null,null,null,null,null,null,null,null,"Lod"]
[null,null,null,null,null,null,null,null,null,null,null,null,"Lod"]
[null,null,null,null,null,null,null,null,null,null,null,null,"Lod"]
[null,null,null,null,null,null,null,null,null,null,null,null,"Lod"]
[null,null,null,null,null,null,null,null,null,null,null,null,"Lod"]
[null,null,null,null,null,null,null,null,null,null,null,null,"Lod"]
[null,null,null,null,null,null,null,null,null,null,null,null,"Lod"]
[null,null,null,null,null,null,null,null,null,null,null,null,"Lod"]
[null,null,null,null,null,null,null,null,null,null,null,null,"Lod"]
[null,null,null,null,null,null,null,null,null,null,null,null,"Lod"]
[null,null,null,null,null,null,null,null,null,null,null,null,"Lod"]
[null,null,null,null,null,null,null,null,null,null,null,null,"Lod"]
[null,null,null,null,null,null,null,null,null,null,null,null,"Lod"]
[null,null,null,null,null,null,null,null,null,null,null,null,"Lod"]
[null,null,null,null,null,null,null,null,null,null,null,null,"Lod"]
[null,null,null,null,null,null,null,null,null,null,null,null,"Lod"]
[null,null,null,null,null,null,null,null,null,null,null,null,"Lod"]
[null,null,null,null,null,null,null,null,null,null,null,null,"Lod"]
[null,null,null,null,null,null,null,null,null,null,null,null,"Lod"]
[null,null,null,null,null,null,null,null,null,null,null,null,"Lod"]
[null,null,null,null,null,null,null,null,null,null,null,null,"Lod"]
[null,null,null,null,null,null,null,null,null,null,null,null,"Lod"]
[null,null,null,null,null,null,null,null,null,null,null,null,"Lod"]
[null,null,null,null,null,null,null,null,null,null,null,null,"Lod"]
[null,null,null,null,null,null,null,null,null,null,null,null,"Lod"]
[null,null,null,null,null,null,null,null,null,null,null,null,"Lod"]
[null,null,null,null,null,null,null,null,null,null,null,null,"Lod"]
[null,null,null,null,null,null,null,null,null,null,null,null,"Lod"]
[null,null,null,null,null,null,null,null,null,null,null,null,"Lod"]
[null,null,null,null,null,null,null,null,null,null,null,null,"Lod"]
[null,null,null,null,null,null,null,null,null,null,null,null,"Lod"]
[null,null,null,null,null,null,null,null,null,null,null,null,"Lod"]
[null,null,null,null,null,null,null,null,null,null,null,null,"Lod"]
[null,null,null,null,null,null,null,null,null,null,null,null,"Lod"]
[null,null,null,null,null,null,null,null,null,null,null,null,"Lod"]
[null,null,null,null,null,null,null,null,null,null,null,null,"Lod"]
[null,null,null,null,null,null,null,null,null,null,null,null,"Lod"]
[null,null,null,null,null,null,null,null,null,null,null,null,"Lod"]
[null,null,null,null,null,null,null,null,null,null,null,null,"Lod"]
[null,null,null,null,null,null,null,null,null,null,null,null,"Lod"]
[null,null,null,null,null,null,null,null,null,null,null,null,"Lod"]
[null,null,null,null,null,null,null,null,null,null,null,null,"Lod"]
[null,null,null,null,null,null,null,null,null,null,null,null,"Lod"]
[null,null,null,null,null,null,null,null,null,null,null,null,"Lod"]
[null,null,null,null,null,null,null,null,null,null,null,null,"Lod"]
[null,null,null,null,null,null,null,null,null,null,null,null,"Lod"]
[null,null,null,null,null,null,null,null,null,null,null,null,"Lod"]
[null,null,null,null,null,null,null,null,null,null,null,null,"Lod"]
[null,null,null,null,null,null,null,null,null,null,null,null,"Lod"]
[null,null,null,null,null,null,null,null,null,null,null,null,"Lod"]
[null,null,null,null,null,null,null,null,null,null,null,null,"Lod"]
[null,null,null,null,null,null,null,null,null,null,null,null,"Lod"]
[null,null,null,null,null,null,null,null,null,null,null,null,"Lod"]
[null,null,null,null,null,null,null,null,null,null,null,null,"Lod"]
[null,null,null,null,null,null,null,null,null,null,null,null,"Lod"]
[null,null,null,null,null,null,null,null,null,null,null,null,"Lod"]
[null,null,null,null,null,null,null,null,null,null,null,null,"Lod"]
[null,null,null,null,null,null,null,null,null,null,null,null,"Lod"]
[null,null,null,null,null,null,null,null,null,null,null,null,"Lod"]
[null,null,null,null,null,null,null,null,null,null,null,null,"Lod"]
[null,null,null,null,null,null,null,null,null,null,null,null,"Lod"]
[null,null,null,null,null,null,null,null,null,null,null,null,"Lod"]
[null,null,null,null,null,null,null,null,null,null,null,null,"Lod"]
[null,null,null,null,null,null,null,null,null,null,null,null,"Lod"]
[null,null,null,null,null,null,null,null,null,null,null,null,"Lod"]
[null,null,null,null,null,null,null,null,null,null,null,null,"Lod"]
[null,null,null,null,null,null,null,null,null,null,null,null,"Lod"]
[null,null,null,null,null,null,null,null,null,null,null,null,"Lod"]
[null,null,null,null,null,null,null,null,null,null,null,null,"Lod"]
[null,null,null,null,null,null,null,null,null,null,null,null,"Lod"]
[null,null,null,null,null,null,null,null,null,null,null,null,"Lod"]
[null,null,null,null,null,null,null,null,null,null,null,null,"Lod"]
[null,null,null,null,null,null,null,null,null,null,null,null,"Lod"]
[null,null,null,null,null,null,null,null,null,null,null,null,"Lod"]
[null,null,null,null,null,null,null,null,null,null,null,null,"Lod"]
[null,null,null,null,null,null,null,null,null,null,null,null,"Lod"]
[null,null,null,null,null,null,null,null,null,null,null,null,"Lod"]
[null,null,null,null,null,null,null,null,null,null,null,null,"Lod"]
[null,null,null,null,null,null,null,null,null,null,null,null,"Lod"]
[null,null,null,null,null,null,null,null,null,null,null,null,"Lod"]
[null,null,null,null,null,null,null,null,null,null,null,null,"Lod"]
[null,null,null,null,null,null,null,null,null,null,null,null,"Lod"]
[null,null,null,null,null,null,null,null,null,null,null,null,"Lod"]
[null,null,null,null,null,null,null,null,null,null,null,null,"Lod"]
[null,null,null,null,null,null,null,null,null,null,null,null,"Lod"]
[null,null,null,null,null,null,null,null,null,null,null,null,"Lod"]
[null,null,null,null,null,null,null,null,null,null,null,null,"Lod"]
[null,null,null,null,null,null,null,null,null,null,null,null,"Lod"]
[null,null,null,null,null,null,null,null,null,null,null,null,"Lod"]
[null,null,null,null,null,null,null,null,null,null,null,null,"Lod"]
[null,null,null,null,null,null,null,null,null,null,null,null,"Lod"]
[null,null,null,null,null,null,null,null,null,null,null,null,"Lod"]
[null,null,null,null,null,null,null,null,null,null,null,null,"Lod"]
[null,null,null,null,null,null,null,null,null,null,null,null,"Lod"]
[null,null,null,null,null,null,null,null,null,null,null,null,"Lod"]
[null,null,null,null,null,null,null,null,null,null,null,null,"Lod"]
[null,null,null,null,null,null,null,null,null,null,null,null,"Lod"]
[null,null,null,null,null,null,null,null,null,null,null,null,"Lod"]
[null,null,null,null,null,null,null,null,null,null,null,null,"Lod"]
[null,null,null,null,null,null,null,null,null,null,null,null,"Lod"]
[null,null,null,null,null,null,null,null,null,null,null,null,"Lod"]
[null,null,null,null,null,null,null,null,null,null,null,null,"Lod"]
[null,null,null,null,null,null,null,null,null,null,null,null,"Lod"]
[null,null,null,null,null,null,null,null,null,null,null,null,"Lod"]
[null,null,null,null,null,null,null,null,null,null,null,null,"Lod"]
[null,null,null,null,null,null,null,null,null,null,null,null,"Lod"]
[null,null,null,null,null,null,null,null,null,null,null,null,"Lod"]
[null,null,null,null,null,null,null,null,null,null,null,null,"Lod"]
[null,null,null,null,null,null,null,null,null,null,null,null,"Lod"]
[null,null,null,null,null,null,null,null,null,null,null,null,"Lod"]
[null,null,null,null,null,null,null,null,null,null,null,null,"Lod"]
[null,null,null,null,null,null,null,null,null,null,null,null,"Lod"]
[null,null,null,null,null,null,null,null,null,null,null,null,"Lod"]
[null,null,null,null,null,null,null,null,null,null,null,null,"Lod"]
[null,null,null,null,null,null,null,null,null,null,null,null,"Lod"]
[null,null,null,null,null,null,null,null,null,null,null,null,"Lod"]
[null,null,null,null,null,null,null,null,null,null,null,null,"Lod"]
[null,null,null,null,null,null,null,null,null,null,null,null,"Lod"]
[null,null,null,null,null,null,null,null,null,null,null,null,"Lod"]
[null,null,null,null,null,null,null,null,null,null,null,null,"Lod"]
[null,null,null,null,null,null,null,null,null,null,null,null,"Lod"]
[null,null,null,null,null,null,null,null,null,null,null,null,"Lod"]
[null,null,null,null,null,null,null,null,null,null,null,null,"Lod"]
[null,null,null,null,null,null,null,null,null,null,null,null,"Lod"]
[null,null,null,null,null,null,null,null,null,null,null,null,"Lod"]
[null,null,null,null,null,null,null,null,null,null,null,null,"Lod"]
[null,null,null,null,null,null,null,null,null,null,null,null,"Lod"]
[null,null,null,null,null,null,null,null,null,null,null,null,"Lod"]
[null,null,null,null,null,null,null,null,null,null,null,null,"Lod"]
[null,null,null,null,null,null,null,null,null,null,null,null,"Lod"]
[null,null,null,null,null,null,null,null,null,null,null,null,"Lod"]
[null,null,null,null,null,null,null,null,null,null,null,null,"Lod"]
[null,null,null,null,null,null,null,null,null,null,null,null,"Lod"]
[null,null,null,null,null,null,null,null,null,null,null,null,"Lod"]
[null,null,null,null,null,null,null,null,null,null,null,null,"Lod"]
[null,null,null,null,null,null,null,null,null,null,null,null,"Lod"]
[null,null,null,null,null,null,null,null,null,null,null,null,"Lod"]
[null,null,null,null,null,null,null,null,null,null,null,null,"Lod"]
[null,null,null,null,null,null,null,null,null,null,null,null,"Lod"]
[null,null,null,null,null,null,null,null,null,null,null,null,"Lod"]
[null,null,null,null,null,null,null,null,null,null,null,null,"Lod"]
[null,null,null,null,null,null,null,null,null,null,null,null,"Lod"]
[null,null,null,null,null,null,null,null,null,null,null,null,"Lod"]
[null,null,null,null,null,null,null,null,null,null,null,null,"Lod"]
[null,null,null,null,null,null,null,null,null,null,null,null,"Lod"]
[null,null,null,null,null,null,null,null,null,null,null,null,"Lod"]
[null,null,null,null,null,null,null,null,null,null,null,null,"Lod"]
[null,null,null,null,null,null,null,null,null,null,null,null,"Lod"]
[null,null,null,null,null,null,null,null,null,null,null,null,"Lod"]
[null,null,null,null,null,null,null,null,null,null,null,null,"Lod"]
[null,null,null,null,null,null,null,null,null,null,null,null,"Lod"]
[null,null,null,null,null,null,null,null,null,null,null,null,"Lod"]
[null,null,null,null,null,null,null,null,null,null,null,null,"Lod"]
[null,null,null,null,null,null,null,null,null,null,null,null,"Lod"]
[null,null,null,null,null,null,null,null,null,null,null,null,"Lod"]
[null,null,null,null,null,null,null,null,null,null,null,null,"Lod"]
[null,null,null,null,null,null,null,null,null,null,null,null,"Lod"]
[null,null,null,null,null,null,null,null,null,null,null,null,"Lod"]
[null,null,null,null,null,null,null,null,null,null,null,null,"Lod"]
[null,null,null,null,null,null,null,null,null,null,null,null,"Lod"]
[null,null,null,null,null,null,null,null,null,null,null,null,"Lod"]
[null,null,null,null,null,null,null,null,null,null,null,null,"Lod"]
[null,null,null,null,null,null,null,null,null,null,null,null,"Lod"]
[null,null,null,null,null,null,null,null,null,null,null,null,"Lod"]
[null,null,null,null,null,null,null,null,null,null,null,null,"Lod"]
[null,null,null,null,null,null,null,null,null,null,null,null,"Lod"]
[null,null,null,null,null,null,null,null,null,null,null,null,"Lod"]
[null,null,null,null,null,null,null,null,null,null,null,null,"Lod"]
[null,null,null,null,null,null,null,null,null,null,null,null,"Lod"]
[null,null,null,null,null,null,null,null,null,null,null,null,"Lod"]
[null,null,null,null,null,null,null,null,null,null,null,null,"Lod"]
[null,null,null,null,null,null,null,null,null,null,null,null,"Lod"]
[null,null,null,null,null,null,null,null,null,null,null,null,"Lod"]
[null,null,null,null,null,null,null,null,null,null,null,null,"Lod"]
[null,null,null,null,null,null,null,null,null,null,null,null,"Lod"]
[null,null,null,null,null,null,null,null,null,null,null,null,"Lod"]
[null,null,null,null,null,null,null,null,null,null,null,null,"Lod"]
[null,null,null,null,null,null,null,null,null,null,null,null,"Lod"]
[null,null,null,null,null,null,null,null,null,null,null,null,"Lod"]
[null,null,null,null,null,null,null,null,null,null,null,null,"Lod"]
[null,null,null,null,null,null,null,null,null,null,null,null,"Lod"]
[null,null,null,null,null,null,null,null,null,null,null,null,"Lod"]
[null,null,null,null,null,null,null,null,null,null,null,null,"Lod"]
[null,null,null,null,null,null,null,null,null,null,null,null,"Lod"]
[null,null,null,null,null,null,null,null,null,null,null,null,"Lod"]
[null,null,null,null,null,null,null,null,null,null,null,null,"Lod"]
[null,null,null,null,null,null,null,null,null,null,null,null,"Lod"]
[null,null,null,null,null,null,null,null,null,null,null,null,"Lod"]
[null,null,null,null,null,null,null,null,null,null,null,null,"Lod"]
[null,null,null,null,null,null,null,null,null,null,null,null,"Lod"]
[null,null,null,null,null,null,null,null,null,null,null,null,"Lod"]
[null,null,null,null,null,null,null,null,null,null,null,null,"Lod"]
[null,null,null,null,null,null,null,null,null,null,null,null,"Lod"]
[null,null,null,null,null,null,null,null,null,null,null,null,"Lod"]
[null,null,null,null,null,null,null,null,null,null,null,null,"Lod"]
[null,null,null,null,null,null,null,null,null,null,null,null,"Lod"]
[null,null,null,null,null,null,null,null,null,null,null,null,"Lod"]
[null,null,null,null,null,null,null,null,null,null,null,null,"Lod"]
[null,null,null,null,null,null,null,null,null,null,null,null,"Lod"]
[null,null,null,null,null,null,null,null,null,null,null,null,"Lod"]
[null,null,null,null,null,null,null,null,null,null,null,null,"Lod"]
[null,null,null,null,null,null,null,null,null,null,null,null,"Lod"]
[null,null,null,null,null,null,null,null,null,null,null,null,"Lod"]
[null,null,null,null,null,null,null,null,null,null,null,null,"Lod"]
[null,null,null,null,null,null,null,null,null,null,null,null,"Lod"]
[null,null,null,null,null,null,null,null,null,null,null,null,"Lod"]
[null,null,null,null,null,null,null,null,null,null,null,null,"Lod"]
[null,null,null,null,null,null,null,null,null,null,null,null,"Lod"]
[null,null,null,null,null,null,null,null,null,null,null,null,"Lod"]
[null,null,null,null,null,null,null,null,null,null,null,null,"Lod"]
[null,null,null,null,null,null,null,null,null,null,null,null,"Lod"]
[null,null,null,null,null,null,null,null,null,null,null,null,"Lod"]
[null,null,null,null,null,null,null,null,null,null,null,null,"Lod"]
[null,null,null,null,null,null,null,null,null,null,null,null,"Lod"]
[null,null,null,null,null,null,null,null,null,null,null,null,"Lod"]
[null,null,null,null,null,null,null,null,null,null,null,null,"Lod"]
[null,null,null,null,null,null,null,null,null,null,null,null,"Lod"]
[null,null,null,null,null,null,null,null,null,null,null,null,"Lod"]
[null,null,null,null,null,null,null,null,null,null,null,null,"Lod"]
[null,null,null,null,null,null,null,null,null,null,null,null,"Lod"]
[null,null,null,null,null,null,null,null,null,null,null,null,"Lod"]
[null,null,null,null,null,null,null,null,null,null,null,null,"Lod"]
[null,null,null,null,null,null,null,null,null,null,null,null,"Lod"]
[null,null,null,null,null,null,null,null,null,null,null,null,"Lod"]
[null,null,null,null,null,null,null,null,null,null,null,null,"Lod"]
[null,null,null,null,null,null,null,null,null,null,null,null,"Lod"]
[null,null,null,null,null,null,null,null,null,null,null,null,"Lod"]
[null,null,null,null,null,null,null,null,null,null,null,null,"Lod"]
[null,null,null,null,null,null,null,null,null,null,null,null,"Lod"]
[null,null,null,null,null,null,null,null,null,null,null,null,"Lod"]
[null,null,null,null,null,null,null,null,null,null,null,null,"Lod"]
[null,null,null,null,null,null,null,null,null,null,null,null,"Lod"]
[null,null,null,null,null,null,null,null,null,null,null,null,"Lod"]
[null,null,null,null,null,null,null,null,null,null,null,null,"Lod"]
[null,null,null,null,null,null,null,null,null,null,null,null,"Lod"]
[null,null,null,null,null,null,null,null,null,null,null,null,"Lod"]
[null,null,null,null,null,null,null,null,null,null,null,null,"Lod"]
[null,null,null,null,null,null,null,null,null,null,null,null,"Lod"]
[null,null,null,null,null,null,null,null,null,null,null,null,"Lod"]
[null,null,null,null,null,null,null,null,null,null,null,null,"Lod"]
[null,null,null,null,null,null,null,null,null,null,null,null,"Lod"]
[null,null,null,null,null,null,null,null,null,null,null,null,"Lod"]
[null,null,null,null,null,null,null,null,null,null,null,null,"Lod"]
[null,null,null,null,null,null,null,null,null,null,null,null,"Lod"]
[null,null,null,null,null,null,null,null,null,null,null,null,"Lod"]
[null,null,null,null,null,null,null,null,null,null,null,null,"Lod"]
[null,null,null,null,null,null,null,null,null,null,null,null,"Lod"]
[null,null,null,null,null,null,null,null,null,null,null,null,"Lod"]
[null,null,null,null,null,null,null,null,null,null,null,null,"Lod"]
[null,null,null,null,null,null,null,null,null,null,null,null,"Lod"]
[null,null,null,null,null,null,null,null,null,null,null,null,"Lod"]
[null,null,null,null,null,null,null,null,null,null,null,null,"Lod"]
[null,null,null,null,null,null,null,null,null,null,null,null,"Lod"]
[null,null,null,null,null,null,null,null,null,null,null,null,"Lod"]
[null,null,null,null,null,null,null,null,null,null,null,null,"Lod"]
[null,null,null,null,null,null,null,null,null,null,null,null,"Lod"]
[null,null,null,null,null,null,null,null,null,null,null,null,"Lod"]
[null,null,null,null,null,null,null,null,null,null,null,null,"Lod"]
[null,null,null,null,null,null,null,null,null,null,null,null,"Lod"]
[null,null,null,null,null,null,null,null,null,null,null,null,"Lod"]
[null,null,null,null,null,null,null,null,null,null,null,null,"Lod"]
[null,null,null,null,null,null,null,null,null,null,null,null,"Lod"]
[null,null,null,null,null,null,null,null,null,null,null,null,"Lod"]
[null,null,null,null,null,null,null,null,null,null,null,null,"Lod"]
[null,null,null,null,null,null,null,null,null,null,null,null,"Lod"]
[null,null,null,null,null,null,null,null,null,null,null,null,"Lod"]
[null,null,null,null,null,null,null,null,null,null,null,null,"Lod"]
[null,null,null,null,null,null,null,null,null,null,null,null,"Lod"]
[null,null,null,null,null,null,null,null,null,null,null,null,"Lod"]
[null,null,null,null,null,null,null,null,null,null,null,null,"Lod"]
[null,null,null,null,null,null,null,null,null,null,null,null,"Lod"]
[null,null,null,null,null,null,null,null,null,null,null,null,"Lod"]
[null,null,null,null,null,null,null,null,null,null,null,null,"Lod"]
[null,null,null,null,null,null,null,null,null,null,null,null,"Lod"]
[null,null,null,null,null,null,null,null,null,null,null,null,"Lod"]
[null,null,null,null,null,null,null,null,null,null,null,null,"Lod"]
[null,null,null,null,null,null,null,null,null,null,null,null,"Lod"]
[null,null,null,null,null,null,null,null,null,null,null,null,"Lod"]
[null,null,null,null,null,null,null,null,null,null,null,null,"Lod"]
[null,null,null,null,null,null,null,null,null,null,null,null,"Lod"]
[null,null,null,null,null,null,null,null,null,null,null,null,"Lod"]
[null,null,null,null,null,null,null,null,null,null,null,null,"Lod"]
[null,null,null,null,null,null,null,null,null,null,null,null,"Lod"]
[null,null,null,null,null,null,null,null,null,null,null,null,"Lod"]
[null,null,null,null,null,null,null,null,null,null,null,null,"Lod"]
[null,null,null,null,null,null,null,null,null,null,null,null,"Lod"]
[null,null,null,null,null,null,null,null,null,null,null,null,"Lod"]
[null,null,null,null,null,null,null,null,null,null,null,null,"Lod"]
[null,null,null,null,null,null,null,null,null,null,null,null,"Lod"]
[null,null,null,null,null,null,null,null,null,null,null,null,"Lod"]
[null,null,null,null,null,null,null,null,null,null,null,null,"Lod"]
[null,null,null,null,null,null,null,null,null,null,null,null,"Lod"]
[null,null,null,null,null,null,null,null,null,null,null,null,"Lod"]
[null,null,null,null,null,null,null,null,null,null,null,null,"Lod"]
[null,null,null,null,null,null,null,null,null,null,null,null,"Lod"]
[null,null,null,null,null,null,null,null,null,null,null,null,"Lod"]
[null,null,null,null,null,null,null,null,null,null,null,null,"Lod"]
[null,null,null,null,null,null,null,null,null,null,null,null,"Lod"]
[null,null,null,null,null,null,null,null,null,null,null,null,"Lod"]
[null,null,null,null,null,null,null,null,null,null,null,null,"Lod"]
[null,null,null,null,null,null,null,null,null,null,null,null,"Lod"]
[null,null,null,null,null,null,null,null,null,null,null,null,"Lod"]
[null,null,null,null,null,null,null,null,null,null,null,null,"Lod"]
[null,null,null,null,null,null,null,null,null,null,null,null,"Lod"]
[null,null,null,null,null,null,null,null,null,null,null,null,"Lod"]
[null,null,null,null,null,null,null,null,null,null,null,null,"Lod"]
[null,null,null,null,null,null,null,null,null,null,null,null,"Lod"]
[null,null,null,null,null,null,null,null,null,null,null,null,"Lod"]
[null,null,null,null,null,null,null,null,null,null,null,null,"Lod"]
[null,null,null,null,null,null,null,null,null,null,null,null,"Lod"]
[null,null,null,null,null,null,null,null,null,null,null,null,"Lod"]
[null,null,null,null,null,null,null,null,null,null,null,null,"Lod"]
[null,null,null,null,null,null,null,null,null,null,null,null,"Lod"]
[null,null,null,null,null,null,null,null,null,null,null,null,"Lod"]
[null,null,null,null,null,null,null,null,null,null,null,null,"Lod"]
[null,null,null,null,null,null,null,null,null,null,null,null,"Lod"]
[null,null,null,null,null,null,null,null,null,null,null,null,"Lod"]
[null,null,null,null,null,null,null,null,null,null,null,null,"Lod"]
[null,null,null,null,null,null,null,null,null,null,null,null,"Lod"]
[null,null,null,null,null,null,null,null,null,null,null,null,"Lod"]
[null,null,null,null,null,null,null,null,null,null,null,null,"Lod"]
[null,null,null,null,null,null,null,null,null,null,null,null,"Lod"]
[null,null,null,null,null,null,null,null,null,null,null,null,"Lod"]
[null,null,null,null,null,null,null,null,null,null,null,null,"Lod"]
[null,null,null,null,null,null,null,null,null,null,null,null,"Lod"]
[null,null,null,null,null,null,null,null,null,null,null,null,"Lod"]
[null,null,null,null,null,null,null,null,null,null,null,null,"Lod"]
[null,null,null,null,null,null,null,null,null,null,null,null,"Lod"]
[null,null,null,null,null,null,null,null,null,null,null,null,"Lod"]
[null,null,null,null,null,null,null,null,null,null,null,null,"Lod"]
[null,null,null,null,null,null,null,null,null,null,null,null,"Lod"]
[null,null,null,null,null,null,null,null,null,null,null,null,"Lod"]
[null,null,null,null,null,null,null,null,null,null,null,null,"Lod"]
[null,null,null,null,null,null,null,null,null,null,null,null,"Lod"]
[null,null,null,null,null,null,null,null,null,null,null,null,"Lod"]
[null,null,null,null,null,null,null,null,null,null,null,null,"Lod"]
[null,null,null,null,null,null,null,null,null,null,null,null,"Lod"]
[null,null,null,null,null,null,null,null,null,null,null,null,"Lod"]
[null,null,null,null,null,null,null,null,null,null,null,null,"Lod"]
[null,null,null,null,null,null,null,null,null,null,null,null,"Lod"]
[null,null,null,null,null,null,null,null,null,null,null,null,"Lod"]
[null,null,null,null,null,null,null,null,null,null,null,null,"Lod"]
[null,null,null,null,null,null,null,null,null,null,null,null,"Lod"]
[null,null,null,null,null,null,null,null,null,null,null,null,"Lod"]
[null,null,null,null,null,null,null,null,null,null,null,null,"Lod"]
[null,null,null,null,null,null,null,null,null,null,null,null,"Lod"]
[null,null,null,null,null,null,null,null,null,null,null,null,"Lod"]
[null,null,null,null,null,null,null,null,null,null,null,null,"Lod"]
[null,null,null,null,null,null,null,null,null,null,null,null,"Lod"]
[null,null,null,null,null,null,null,null,null,null,null,null,"Lod"]
[null,null,null,null,null,null,null,null,null,null,null,null,"Lod"]
[null,null,null,null,null,null,null,null,null,null,null,null,"Lod"]
[null,null,null,null,null,null,null,null,null,null,null,null,"Lod"]
[null,null,null,null,null,null,null,null,null,null,null,null,"Lod"]
[null,null,null,null,null,null,null,null,null,null,null,null,"Lod"]
[null,null,null,null,null,null,null,null,null,null,null,null,"Lod"]
[null,null,null,null,null,null,null,null,null,null,null,null,"Lod"]
[null,null,null,null,null,null,null,null,null,null,null,null,"Lod"]
[null,null,null,null,null,null,null,null,null,null,null,null,"Lod"]
[null,null,null,null,null,null,null,null,null,null,null,null,"Lod"]
[null,null,null,null,null,null,null,null,null,null,null,null,"Lod"]
[null,null,null,null,null,null,null,null,null,null,null,null,"Lod"]
[null,null,null,null,null,null,null,null,null,null,null,null,"Lod"]
[null,null,null,null,null,null,null,null,null,null,null,null,"Lod"]
[null,null,null,null,null,null,null,null,null,null,null,null,"Lod"]
[null,null,null,null,null,null,null,null,null,null,null,null,"Lod"]
[null,null,null,null,null,null,null,null,null,null,null,null,"Lod"]
[null,null,null,null,null,null,null,null,null,null,null,null,"Lod"]
[null,null,null,null,null,null,null,null,null,null,null,null,"Lod"]
[null,null,null,null,null,null,null,null,null,null,null,null,"Lod"]
[null,null,null,null,null,null,null,null,null,null,null,null,"Lod"]
[null,null,null,null,null,null,null,null,null,null,null,null,"Lod"]
[null,null,null,null,null,null,null,null,null,null,null,null,"Lod"]
[null,null,null,null,null,null,null,null,null,null,null,null,"Lod"]
[null,null,null,null,null,null,null,null,null,null,null,null,"Lod"]
[null,null,null,null,null,null,null,null,null,null,null,null,"Lod"]
[null,null,null,null,null,null,null,null,null,null,null,null,"Lod"]
[null,null,null,null,null,null,null,null,null,null,null,null,"Lod"]
[null,null,null,null,null,null,null,null,null,null,null,null,"Lod"]
[null,null,null,null,null,null,null,null,null,null,null,null,"Lod"]
[null,null,null,null,null,null,null,null,null,null,null,null,"Lod"]
[null,null,null,null,null,null,null,null,null,null,null,null,"Lod"]
[null,null,null,null,null,null,null,null,null,null,null,null,"Lod"]
[null,null,null,null,null,null,null,null,null,null,null,null,"Lod"]
[null,null,null,null,null,null,null,null,null,null,null,null,"Lod"]
[null,null,null,null,null,null,null,null,null,null,null,null,"Lod"]
[null,null,null,null,null,null,null,null,null,null,null,null,"Lod"]
[null,null,null,null,null,null,null,null,null,null,null,null,"Lod"]
[null,null,null,null,null,null,null,null,null,null,null,null,"Lod"]
[null,null,null,null,null,null,null,null,null,null,null,null,"Lod"]
[null,null,null,null,null,null,null,null,null,null,null,null,"Lod"]
[null,null,null,null,null,null,null,null,null,null,null,null,"Lod"]
[null,null,null,null,null,null,null,null,null,null,null,null,"Lod"]
[null,null,null,null,null,null,null,null,null,null,null,null,"Lod"]
[null,null,null,null,null,null,null,null,null,null,null,null,"Lod"]
[null,null,null,null,null,null,null,null,null,null,null,null,"Lod"]
[null,null,null,null,null,null,null,null,null,null,null,null,"Lod"]
[null,null,null,null,null,null,null,null,null,null,null,null,"Lod"]
[null,null,null,null,null,null,null,null,null,null,null,null,"Lod"]
[null,null,null,null,null,null,null,null,null,null,null,null,"Lod"]
[null,null,null,null,null,null,null,null,null,null,null,null,"Lod"]
[null,null,null,null,null,null,null,null,null,null,null,null,"Lod"]
[null,null,null,null,null,null,null,null,null,null,null,null,"Lod"]
[null,null,null,null,null,null,null,null,null,null,null,null,"Lod"]
[null,null,null,null,null,null,null,null,null,null,null,null,"Lod"]
[null,null,null,null,null,null,null,null,null,null,null,null,"Lod"]
[null,null,null,null,null,null,null,null,null,null,null,null,"Lod"]
[null,null,null,null,null,null,null,null,null,null,null,null,"Lod"]
[null,null,null,null,null,null,null,null,null,null,null,null,"Lod"]
[null,null,null,null,null,null,null,null,null,null,null,null,"Lod"]
[null,null,null,null,null,null,null,null,null,null,null,null,"Lod"]
[null,null,null,null,null,null,null,null,null,null,null,null,"Lod"]
[null,null,null,null,null,null,null,null,null,null,null,null,"Lod"]
[null,null,null,null,null,null,null,null,null,null,null,null,"Lod"]
[null,null,null,null,null,null,null,null,null,null,null,null,"Lod"]
[null,null,null,null,null,null,null,null,null,null,null,null,"Lod"]
[null,null,null,null,null,null,null,null,null,null,null,null,"Lod"]
[null,null,null,null,null,null,null,null,null,null,null,null,"Lod"]
[null,null,null,null,null,null,null,null,null,null,null,null,"Lod"]
[null,null,null,null,null,null,null,null,null,null,null,null,"Lod"]
[null,null,null,null,null,null,null,null,null,null,null,null,"Lod"]
[null,null,null,null,null,null,null,null,null,null,null,null,"Lod"]
[null,null,null,null,null,null,null,null,null,null,null,null,"Lod"]
[null,null,null,null,null,null,null,null,null,null,null,null,"Lod"]
[null,null,null,null,null,null,null,null,null,null,null,null,"Lod"]
[null,null,null,null,null,null,null,null,null,null,null,null,"Lod"]
[null,null,null,null,null,null,null,null,null,null,null,null,"Lod"]
[null,null,null,null,null,null,null,null,null,null,null,null,"Lod"]
[null,null,null,null,null,null,null,null,null,null,null,null,"Lod"]
[null,null,null,null,null,null,null,null,null,null,null,null,"Lod"]
[null,null,null,null,null,null,null,null,null,null,null,null,"Lod"]
[null,null,null,null,null,null,null,null,null,null,null,null,"Lod"]
[null,null,null,null,null,null,null,null,null,null,null,null,"Lod"]
[null,null,null,null,null,null,null,null,null,null,null,null,"Lod"]
[null,null,null,null,null,null,null,null,null,null,null,null,"Lod"]
[null,null,null,null,null,null,null,null,null,null,null,null,"Lod"]
[null,null,null,null,null,null,null,null,null,null,null,null,"Lod"]
[null,null,null,null,null,null,null,null,null,null,null,null,"Lod"]
[null,null,null,null,null,null,null,null,null,null,null,null,"Lod"]
[null,null,null,null,null,null,null,null,null,null,null,null,"Lod"]
[null,null,null,null,null,null,null,null,null,null,null,null,"Lod"]
[null,null,null,null,null,null,null,null,null,null,null,null,"Lod"]
[null,null,null,null,null,null,null,null,null,null,null,null,"Lod"]
[null,null,null,null,null,null,null,null,null,null,null,null,"Lod"]
[null,null,null,null,null,null,null,null,null,null,null,null,"Lod"]
[null,null,null,null,null,null,null,null,null,null,null,null,"Lod"]
[null,null,null,null,null,null,null,null,null,null,null,null,"Lod"]
[null,null,null,null,null,null,null,null,null,null,null,null,"Lod"]
[null,null,null,null,null,null,null,null,null,null,null,null,"Lod"]
[null,null,null,null,null,null,null,null,null,null,null,null,"Lod"]
[null,null,null,null,null,null,null,null,null,null,null,null,"Lod"]
[null,null,null,null,null,null,null,null,null,null,null,null,"Lod"]
[null,null,null,null,null,null,null,null,null,null,null,null,"Lod"]
[null,null,null,null,null,null,null,null,null,null,null,null,"Lod"]
[null,null,null,null,null,null,null,null,null,null,null,null,"Lod"]
[null,null,null,null,null,null,null,null,null,null,null,null,"Lod"]
[null,null,null,null,null,null,null,null,null,null,null,null,"Lod"]
[null,null,null,null,null,null,null,null,null,null,null,null,"Lod"]
[null,null,null,null,null,null,null,null,null,null,null,null,"Lod"]
[null,null,null,null,null,null,null,null,null,null,null,null,"Lod"]
[null,null,null,null,null,null,null,null,null,null,null,null,"Lod"]
[null,null,null,null,null,null,null,null,null,null,null,null,"Lod"]
[null,null,null,null,null,null,null,null,null,null,null,null,"Lod"]
[null,null,null,null,null,null,null,null,null,null,null,null,"Lod"]
[null,null,null,null,null,null,null,null,null,null,null,null,"Lod"]
[null,null,null,null,null,null,null,null,null,null,null,null,"Lod"]
[null,null,null,null,null,null,null,null,null,null,null,null,"Lod"]
[null,null,null,null,null,null,null,null,null,null,null,null,"Lod"]
[null,null,null,null,null,null,null,null,null,null,null,null,"Lod"]
[null,null,null,null,null,null,null,null,null,null,null,null,"Lod"]
[null,null,null,null,null,null,null,null,null,null,null,null,"Lod"]
[null,null,null,null,null,null,null,null,null,null,null,null,"Lod"]
[null,null,null,null,null,null,null,null,null,null,null,null,"Lod"]
[null,null,null,null,null,null,null,null,null,null,null,null,"Lod"]
[null,null,null,null,null,null,null,null,null,null,null,null,"Lod"]
[null,null,null,null,null,null,null,null,null,null,null,null,"Lod"]
[null,null,null,null,null,null,null,null,null,null,null,null,"Lod"]
[null,null,null,null,null,null,null,null,null,null,null,null,"Lod"]
[null,null,null,null,null,null,null,null,null,null,null,null,"Lod"]
[null,null,null,null,null,null,null,null,null,null,null,null,"Lod"]
[null,null,null,null,null,null,null,null,null,null,null,null,"Lod"]
[null,null,null,null,null,null,null,null,null,null,null,null,"Lod"]
[null,null,null,null,null,null,null,null,null,null,null,null,"Lod"]
[null,null,null,null,null,null,null,null,null,null,null,null,"Lod"]
[null,null,null,null,null,null,null,null,null,null,null,null,"Lod"]
[null,null,null,null,null,null,null,null,null,null,null,null,"Lod"]
[null,null,null,null,null,null,null,null,null,null,null,null,"Lod"]
[null,null,null,null,null,null,null,null,null,null,null,null,"Lod"]
[null,null,null,null,null,null,null,null,null,null,null,null,"Lod"]
[null,null,null,null,null,null,null,null,null,null,null,null,"Lod"]
[null,null,null,null,null,null,null,null,null,null,null,null,"Lod"]
[null,null,null,null,null,null,null,null,null,null,null,null,"Lod"]
[null,null,null,null,null,null,null,null,null,null,null,null,"Lod"]
[null,null,null,null,null,null,null,null,null,null,null,null,"Lod"]
[null,null,null,null,null,null,null,null,null,null,null,null,"Lod"]
[null,null,null,null,null,null,null,null,null,null,null,null,"Lod"]
[null,null,null,null,null,null,null,null,null,null,null,null,"Lod"]
[null,null,null,null,null,null,null,null,null,null,null,null,"Lod"]
[null,null,null,null,null,null,null,null,null,null,null,null,"Lod"]
[null,null,null,null,null,null,null,null,null,null,null,null,"Lod"]
[null,null,null,null,null,null,null,null,null,null,null,null,"Lod"]
[null,null,null,null,null,null,null,null,null,null,null,null,"Lod"]
[null,null,null,null,null,null,null,null,null,null,null,null,"Lod"]
[null,null,null,null,null,null,null,null,null,null,null,null,"Lod"]
[null,null,null,null,null,null,null,null,null,null,null,null,"Lod"]
[null,null,null,null,null,null,null,null,null,null,null,null,"Lod"]
[null,null,null,null,null,null,null,null,null,null,null,null,"Lod"]
[null,null,null,null,null,null,null,null,null,null,null,null,"Lod"]
[null,null,null,null,null,null,null,null,null,null,null,null,"Lod"]
[null,null,null,null,null,null,null,null,null,null,null,null,"Lod"]
[null,null,null,null,null,null,null,null,null,null,null,null,"Lod"]
[null,null,null,null,null,null,null,null,null,null,null,null,"Lod"]
[null,null,null,null,null,null,null,null,null,null,null,null,"Lod"]
[null,null,null,null,null,null,null,null,null,null,null,null,"Lod"]
[null,null,null,null,null,null,null,null,null,null,null,null,"Lod"]
[null,null,null,null,null,null,null,null,null,null,null,null,"Lod"]
[null,null,null,null,null,null,null,null,null,null,null,null,"Lod"]
[null,null,null,null,null,null,null,null,null,null,null,null,"Lod"]
[null,null,null,null,null,null,null,null,null,null,null,null,"Lod"]
[null,null,null,null,null,null,null,null,null,null,null,null,"Lod"]
[null,null,null,null,null,null,null,null,null,null,null,null,"Lod"]
[null,null,null,null,null,null,null,null,null,null,null,null,"Lod"]
[null,null,null,null,null,null,null,null,null,null,null,null,"Lod"]
[null,null,null,null,null,null,null,null,null,null,null,null,"Lod"]
[null,null,null,null,null,null,null,null,null,null,null,null,"Lod"]
[null,null,null,null,null,null,null,null,null,null,null,null,"Lod"]
[null,null,null,null,null,null,null,null,null,null,null,null,"Lod"]
[null,null,null,null,null,null,null,null,null,null,null,null,"Lod"]
[null,null,null,null,null,null,null,null,null,null,null,null,"Lod"]
[null,null,null,null,null,null,null,null,null,null,null,null,"Lod"]
[null,null,null,null,null,null,null,null,null,null,null,null,"Lod"]
[null,null,null,null,null,null,null,null,null,null,null,null,"Lod"]
[null,null,null,null,null,null,null,null,null,null,null,null,"Lod"]
[null,null,null,null,null,null,null,null,null,null,null,null,"Lod"]
[null,null,null,null,null,null,null,null,null,null,null,null,"Lod"]
[null,null,null,null,null,null,null,null,null,null,null,null,"Lod"]
[null,null,null,null,null,null,null,null,null,null,null,null,"Lod"]
[null,null,null,null,null,null,null,null,null,null,null,null,"Lod"]
[null,null,null,null,null,null,null,null,null,null,null,null,"Lod"]
[null,null,null,null,null,null,null,null,null,null,null,null,"Lod"]
[null,null,null,null,null,null,null,null,null,null,null,null,"Lod"]
[null,null,null,null,null,null,null,null,null,null,null,null,"Lod"]
[null,null,null,null,null,null,null,null,null,null,null,null,"Lod"]
[null,null,null,null,null,null,null,null,null,null,null,null,"Lod"]
[null,null,null,null,null,null,null,null,null,null,null,null,"Lod"]
[null,null,null,null,null,null,null,null,null,null,null,null,"Lod"]
[null,null,null,null,null,null,null,null,null,null,null,null,"Lod"]
[null,null,null,null,null,null,null,null,null,null,null,null,"Lod"]
[null,null,null,null,null,null,null,null,null,null,null,null,"Lod"]
[null,null,null,null,null,null,null,null,null,null,null,null,"Lod"]
[null,null,null,null,null,null,null,null,null,null,null,null,"Lod"]
[null,null,null,null,null,null,null,null,null,null,null,null,"Lod"]
[null,null,null,null,null,null,null,null,null,null,null,null,"Lod"]
[null,null,null,null,null,null,null,null,null,null,null,null,"Lod"]
[null,null,null,null,null,null,null,null,null,null,null,null,"Lod"]
[null,null,null,null,null,null,null,null,null,null,null,null,"Lod"]
[null,null,null,null,null,null,null,null,null,null,null,null,"Lod"]
[null,null,null,null,null,null,null,null,null,null,null,null,"Lod"]
[null,null,null,null,null,null,null,null,null,null,null,null,"Lod"]
[null,null,null,null,null,null,null,null,null,null,null,null,"Lod"]
[null,null,null,null,null,null,null,null,null,null,null,null,"Lod"]
[null,null,null,null,null,null,null,null,null,null,null,null,"Lod"]
[null,null,null,null,null,null,null,null,null,null,null,null,"Lod"]
[null,null,null,null,null,null,null,null,null,null,null,null,"Lod"]
[null,null,null,null,null,null,null,null,null,null,null,null,"Lod"]
[null,null,null,null,null,null,null,null,null,null,null,null,"Lod"]
[null,null,null,null,null,null,null,null,null,null,null,null,"Lod"]
[null,null,null,null,null,null,null,null,null,null,null,null,"Lod"]
[null,null,null,null,null,null,null,null,null,null,null,null,"Lod"]
[null,null,null,null,null,null,null,null,null,null,null,null,"Lod"]
[null,null,null,null,null,null,null,null,null,null,null,null,"Lod"]
[null,null,null,null,null,null,null,null,null,null,null,null,"Lod"]
[null,null,null,null,null,null,null,null,null,null,null,null,"Lod"]
[null,null,null,null,null,null,null,null,null,null,null,null,"Lod"]
[null,null,null,null,null,null,null,null,null,null,null,null,"Lod"]
[null,null,null,null,null,null,null,null,null,null,null,null,"Lod"]
[null,null,null,null,null,null,null,null,null,null,null,null,"Lod"]
[null,null,null,null,null,null,null,null,null,null,null,null,"Lod"]
[null,null,null,null,null,null,null,null,null,null,null,null,"Lod"]
[null,null,null,null,null,null,null,null,null,null,null,null,"Lod"]
[null,null,null,null,null,null,null,null,null,null,null,null,"Lod"]
[null,null,null,null,null,null,null,null,null,null,null,null,"Lod"]
[null,null,null,null,null,null,null,null,null,null,null,null,"Lod"]
[null,null,null,null,null,null,null,null,null,null,null,null,"Lod"]
[null,null,null,null,null,null,null,null,null,null,null,null,"Lod"]
[null,null,null,null,null,null,null,null,null,null,null,null,"Lod"]
[null,null,null,null,null,null,null,null,null,null,null,null,"Lod"]
[null,null,null,null,null,null,null,null,null,null,null,null,"Lod"]
[null,null,null,null,null,null,null,null,null,null,null,null,"Lod"]
[null,null,null,null,null,null,null,null,null,null,null,null,"Lod"]
[null,null,null,null,null,null,null,null,null,null,null,null,"Lod"]
[null,null,null,null,null,null,null,null,null,null,null,null,"Lod"]
[null,null,null,null,null,null,null,null,null,null,null,null,"Lod"]
[null,null,null,null,null,null,null,null,null,null,null,null,"Lod"]
[null,null,null,null,null,null,null,null,null,null,null,null,"Lod"]
[null,null,null,null,null,null,null,null,null,null,null,null,"Lod"]
[null,null,null,null,null,null,null,null,null,null,null,null,"Lod"]
[null,null,null,null,null,null,null,null,null,null,null,null,"Lod"]
[null,null,null,null,null,null,null,null,null,null,null,null,"Lod"]
[null,null,null,null,null,null,null,null,null,null,null,null,"Lod"]
[null,null,null,null,null,null,null,null,null,null,null,null,"Lod"]
[null,null,null,null,null,null,null,null,null,null,null,null,"Lod"]
[null,null,null,null,null,null,null,null,null,null,null,null,"Lod"]
[null,null,null,null,null,null,null,null,null,null,null,null,"Lod"]
[null,null,null,null,null,null,null,null,null,null,null,null,"Lod"]
[null,null,null,null,null,null,null,null,null,null,null,null,"Lod"]
[null,null,null,null,null,null,null,null,null,null,null,null,"Lod"]
[null,null,null,null,null,null,null,null,null,null,null,null,"Lod"]
[null,null,null,null,null,null,null,null,null,null,null,null,"Lod"]
[null,null,null,null,null,null,null,null,null,null,null,null,"Lod"]
[null,null,null,null,null,null,null,null,null,null,null,null,"Lod"]
[null,null,null,null,null,null,null,null,null,null,null,null,"Lod"]
[null,null,null,null,null,null,null,null,null,null,null,null,"Lod"]
[null,null,null,null,null,null,null,null,null,null,null,null,"Lod"]
[null,null,null,null,null,null,null,null,null,null,null,null,"Lod"]
[null,null,null,null,null,null,null,null,null,null,null,null,"Lod"]
[null,null,null,null,null,null,null,null,null,null,null,null,"Lod"]
[null,null,null,null,null,null,null,null,null,null,null,null,"Lod"]
[null,null,null,null,null,null,null,null,null,null,null,null,"Lod"]
[null,null,null,null,null,null,null,null,null,null,null,null,"Lod"]
[null,null,null,null,null,null,null,null,null,null,null,null,"Lod"]
[null,null,null,null,null,null,null,null,null,null,null,null,"Lod"]
[null,null,null,null,null,null,null,null,null,null,null,null,"Lod"]
[null,null,null,null,null,null,null,null,null,null,null,null,"Lod"]
[null,null,null,null,null,null,null,null,null,null,null,null,"Lod"]
[null,null,null,null,null,null,null,null,null,null,null,null,"Lod"]
[null,null,null,null,null,null,null,null,null,null,null,null,"Lod"]
[null,null,null,null,null,null,null,null,null,null,null,null,"Lod"]
[null,null,null,null,null,null,null,null,null,null,null,null,"Lod"]
[null,null,null,null,null,null,null,null,null,null,null,null,"Lod"]
[null,null,null,null,null,null,null,null,null,null,null,null,"Lod"]
[null,null,null,null,null,null,null,null,null,null,null,null,"Lod"]
[null,null,null,null,null,null,null,null,null,null,null,null,"Lod"]
[null,null,null,null,null,null,null,null,null,null,null,null,"Lod"]
[null,null,null,null,null,null,null,null,null,null,null,null,"Lod"]
[null,null,null,null,null,null,null,null,null,null,null,null,"Lod"]
[null,null,null,null,null,null,null,null,null,null,null,null,"Lod"]
[null,null,null,null,null,null,null,null,null,null,null,null,"Lod"]
[null,null,null,null,null,null,null,null,null,null,null,null,"Lod"]
[null,null,null,null,null,null,null,null,null,null,null,null,"Lod"]
[null,null,null,null,null,null,null,null,null,null,null,null,"Lod"]
[null,null,null,null,null,null,null,null,null,null,null,null,"Lod"]
[null,null,null,null,null,null,null,null,null,null,null,null,"Lod"]
[null,null,null,null,null,null,null,null,null,null,null,null,"Lod"]
[null,null,null,null,null,null,null,null,null,null,null,null,"Lod"]
[null,null,null,null,null,null,null,null,null,null,null,null,"Lod"]
[null,null,null,null,null,null,null,null,null,null,null,null,"Lod"]
[null,null,null,null,null,null,null,null,null,null,null,null,"Lod"]
[null,null,null,null,null,null,null,null,null,null,null,null,"Lod"]
[null,null,null,null,null,null,null,null,null,null,null,null,"Lod"]
[null,null,null,null,null,null,null,null,null,null,null,null,"Lod"]
[null,null,null,null,null,null,null,null,null,null,null,null,"Lod"]
[null,null,null,null,null,null,null,null,null,null,null,null,"Lod"]
[null,null,null,null,null,null,null,null,null,null,null,null,"Lod"]
[null,null,null,null,null,null,null,null,null,null,null,null,"Lod"]
[null,null,null,null,null,null,null,null,null,null,null,null,"Lod"]
[null,null,null,null,null,null,null,null,null,null,null,null,"Lod"]
[null,null,null,null,null,null,null,null,null,null,null,null,"Lod"]
[null,null,null,null,null,null,null,null,null,null,null,null,"Lod"]
[null,null,null,null,null,null,null,null,null,null,null,null,"Lod"]
[null,null,null,null,null,null,null,null,null,null,null,null,"Lod"]
[null,null,null,null,null,null,null,null,null,null,null,null,"Lod"]
[null,null,null,null,null,null,null,null,null,null,null,null,"Lod"]
[null,null,null,null,null,null,null,null,null,null,null,null,"Lod"]
[null,null,null,null,null,null,null,null,null,null,null,null,"Lod"]
[null,null,null,null,null,null,null,null,null,null,null,null,"Lod"]
[null,null,null,null,null,null,null,null,null,null,null,null,"Lod"]
[null,null,null,null,null,null,null,null,null,null,null,null,"Lod"]
[null,null,null,null,null,null,null,null,null,null,null,null,"Lod"]
[null,null,null,null,null,null,null,null,null,null,null,null,"Lod"]
[null,null,null,null,null,null,null,null,null,null,null,null,"Lod"]
[null,null,null,null,null,null,null,null,null,null,null,null,"Lod"]
[null,null,null,null,null,null,null,null,null,null,null,null,"Lod"]
[null,null,null,null,null,null,null,null,null,null,null,null,"Lod"]
[null,null,null,null,null,null,null,null,null,null,null,null,"Lod"]
[null,null,null,null,null,null,null,null,null,null,null,null,"Lod"]
[null,null,null,null,null,null,null,null,null,null,null,null,"Lod"]
[null,null,null,null,null,null,null,null,null,null,null,null,"Lod"]
[null,null,null,null,null,null,null,null,null,null,null,null,"Lod"]
[null,null,null,null,null,null,null,null,null,null,null,null,"Lod"]
[null,null,null,null,null,null,null,null,null,null,null,null,"Lod"]
[null,null,null,null,null,null,null,null,null,null,null,null,"Lod"]
[null,null,null,null,null,null,null,null,null,null,null,null,"Lod"]
[null,null,null,null,null,null,null,null,null,null,null,null,"Lod"]
[null,null,null,null,null,null,null,null,null,null,null,null,"Lod"]
[null,null,null,null,null,null,null,null,null,null,null,null,"Lod"]
[null,null,null,null,null,null,null,null,null,null,null,null,"Lod"]
[null,null,null,null,null,null,null,null,null,null,null,null,"Lod"]
[null,null,null,null,null,null,null,null,null,null,null,null,"Lod"]
[null,null,null,null,null,null,null,null,null,null,null,null,"Lod"]
[null,null,null,null,null,null,null,null,null,null,null,null,"Lod"]
[null,null,null,null,null,null,null,null,null,null,null,null,"Lod"]
[null,null,null,null,null,null,null,null,null,null,null,null,"Lod"]
[null,null,null,null,null,null,null,null,null,null,null,null,"Lod"]
[null,null,null,null,null,null,null,null,null,null,null,null,"Lod"]
[null,null,null,null,null,null,null,null,null,null,null,null,"Lod"]
[null,null,null,null,null,null,null,null,null,null,null,null,"Lod"]
[null,null,null,null,null,null,null,null,null,null,null,null,"Lod"]
[null,null,null,null,null,null,null,null,null,null,null,null,"Lod"]
[null,null,null,null,null,null,null,null,null,null,null,null,"Lod"]
[null,null,null,null,null,null,null,null,null,null,null,null,"Lod"]
[null,null,null,null,null,null,null,null,null,null,null,null,"Lod"]
[null,null,null,null,null,null,null,null,null,null,null,null,"Lod"]
[null,null,null,null,null,null,null,null,null,null,null,null,"Lod"]
[null,null,null,null,null,null,null,null,null,null,null,null,"Lod"]
[null,null,null,null,null,null,null,null,null,null,null,null,"Lod"]
[null,null,null,null,null,null,null,null,null,null,null,null,"Lod"]
[null,null,null,null,null,null,null,null,null,null,null,null,"Lod"]
[null,null,null,null,null,null,null,null,null,null,null,null,"Lod"]
[null,null,null,null,null,null,null,null,null,null,null,null,"Lod"]
[null,null,null,null,null,null,null,null,null,null,null,null,"Lod"]
[null,null,null,null,null,null,null,null,null,null,null,null,"Lod"]
[null,null,null,null,null,null,null,null,null,null,null,null,"Lod"]
[null,null,null,null,null,null,null,null,null,null,null,null,"Lod"]
[null,null,null,null,null,null,null,null,null,null,null,null,"Lod"]
[null,null,null,null,null,null,null,null,null,null,null,null,"Lod"]
[null,null,null,null,null,null,null,null,null,null,null,null,"Lod"]
[null,null,null,null,null,null,null,null,null,null,null,null,"Lod"]
[null,null,null,null,null,null,null,null,null,null,null,null,"Lod"]
[null,null,null,null,null,null,null,null,null,null,null,null,"Lod"]
[null,null,null,null,null,null,null,null,null,null,null,null,"Lod"]
[null,null,null,null,null,null,null,null,null,null,null,null,"Lod"]
[null,null,null,null,null,null,null,null,null,null,null,null,"Lod"]
[null,null,null,null,null,null,null,null,null,null,null,null,"Lod"]
[null,null,null,null,null,null,null,null,null,null,null,null,"Lod"]
[null,null,null,null,null,null,null,null,null,null,null,null,"Lod"]
[null,null,null,null,null,null,null,null,null,null,null,null,"Lod"]
[null,null,null,null,null,null,null,null,null,null,null,null,"Lod"]
[null,null,null,null,null,null,null,null,null,null,null,null,"Lod"]
[null,null,null,null,null,null,null,null,null,null,null,null,"Lod"]
[null,null,null,null,null,null,null,null,null,null,null,null,"Lod"]
[null,null,null,null,null,null,null,null,null,null,null,null,"Lod"]
[null,null,null,null,null,null,null,null,null,null,null,null,"Lod"]
[null,null,null,null,null,null,null,null,null,null,null,null,"Lod"]
[null,null,null,null,null,null,null,null,null,null,null,null,"Lod"]
[null,null,null,null,null,null,null,null,null,null,null,null,"Lod"]
[null,null,null,null,null,null,null,null,null,null,null,null,"Lod"]
[null,null,null,null,null,null,null,null,null,null,null,null,"Lod"]
[null,null,null,null,null,null,null,null,null,null,null,null,"Lod"]
[null,null,null,null,null,null,null,null,null,null,null,null,"Lod"]
[null,null,null,null,null,null,null,null,null,null,null,null,"Lod"]
[null,null,null,null,null,null,null,null,null,null,null,null,"Lod"]
[null,null,null,null,null,null,null,null,null,null,null,null,"Lod"]
[null,null,null,null,null,null,null,null,null,null,null,null,"Lod"]
[null,null,null,null,null,null,null,null,null,null,null,null,"Lod"]
[null,null,null,null,null,null,null,null,null,null,null,null,"Lod"]
[null,null,null,null,null,null,null,null,null,null,null,null,"Lod"]
[null,null,null,null,null,null,null,null,null,null,null,null,"Lod"]
[null,null,null,null,null,null,null,null,null,null,null,null,"Lod"]
[null,null,null,null,null,null,null,null,null,null,null,null,"Lod"]
[null,null,null,null,null,null,null,null,null,null,null,null,"Lod"]
[null,null,null,null,null,null,null,null,null,null,null,null,"Lod"]
[null,null,null,null,null,null,null,null,null,null,null,null,"Lod"]
[null,null,null,null,null,null,null,null,null,null,null,null,"Lod"]
[null,null,null,null,null,null,null,null,null,null,null,null,"Lod"]
[null,null,null,null,null,null,null,null,null,null,null,null,"Lod"]
[null,null,null,null,null,null,null,null,null,null,null,null,"Lod"]
[null,null,null,null,null,null,null,null,null,null,null,null,"Lod"]
[null,null,null,null,null,null,null,null,null,null,null,null,"Lod"]
[null,null,null,null,null,null,null,null,null,null,null,null,"Lod"]
[null,null,null,null,null,null,null,null,null,null,null,null,"Lod"]
[null,null,null,null,null,null,null,null,null,null,null,null,"Lod"]
[null,null,null,null,null,null,null,null,null,null,null,null,"Lod"]
[null,null,null,null,null,null,null,null,null,null,null,null,"Lod"]
[null,null,null,null,null,null,null,null,null,null,null,null,"Lod"]
[null,null,null,null,null,null,null,null,null,null,null,null,"Lod"]
[null,null,null,null,null,null,null,null,null,null,null,null,"Lod"]
[null,null,null,null,null,null,null,null,null,null,null,null,"Lod"]
[null,null,null,null,null,null,null,null,null,null,null,null,"Lod"]
[null,null,null,null,null,null,null,null,null,null,null,null,"Lod"]
[null,null,null,null,null,null,null,null,null,null,null,null,"Lod"]
[null,null,null,null,null,null,null,null,null,null,null,null,"Lod"]
[null,null,null,null,null,null,null,null,null,null,null,null,"Lod"]
[null,null,null,null,null,null,null,null,null,null,null,null,"Lod"]
[null,null,null,null,null,null,null,null,null,null,null,null,"Lod"]
[null,null,null,null,null,null,null,null,null,null,null,null,"Lod"]
[null,null,null,null,null,null,null,null,null,null,null,null,"Lod"]
[null,null,null,null,null,null,null,null,null,null,null,null,"Lod"]
[null,null,null,null,null,null,null,null,null,null,null,null,"Lod"]
[null,null,null,null,null,null,null,null,null,null,null,null,"Lod"]
[null,null,null,null,null,null,null,null,null,null,null,null,"Lod"]
[null,null,null,null,null,null,null,null,null,null,null,null,"Lod"]
[null,null,null,null,null,null,null,null,null,null,null,null,"Lod"]
[null,null,null,null,null,null,null,null,null,null,null,null,"Lod"]
[null,null,null,null,null,null,null,null,null,null,null,null,"Lod"]
[null,null,null,null,null,null,null,null,null,null,null,null,"Lod"]
[null,null,null,null,null,null,null,null,null,null,null,null,"Lod"]
[null,null,null,null,null,null,null,null,null,null,null,null,"Lod"]
[null,null,null,null,null,null,null,null,null,null,null,null,"Lod"]
[null,null,null,null,null,null,null,null,null,null,null,null,"Lod"]
[null,null,null,null,null,null,null,null,null,null,null,null,"Lod"]
[null,null,null,null,null,null,null,null,null,null,null,null,"Lod"]
[null,null,null,null,null,null,null,null,null,null,null,null,"Lod"]
[null,null,null,null,null,null,null,null,null,null,null,null,"Lod"]
[null,null,null,null,null,null,null,null,null,null,null,null,"Lod"]
[null,null,null,null,null,null,null,null,null,null,null,null,"Lod"]
[null,null,null,null,null,null,null,null,null,null,null,null,"Lod"]
[null,null,null,null,null,null,null,null,null,null,null,null,"Lod"]
[null,null,null,null,null,null,null,null,null,null,null,null,"Lod"]
[null,null,null,null,null,null,null,null,null,null,null,null,"Lod"]
[null,null,null,null,null,null,null,null,null,null,null,null,"Lod"]
[null,null,null,null,null,null,null,null,null,null,null,null,"Lod"]
[null,null,null,null,null,null,null,null,null,null,null,null,"Lod"]
[null,null,null,null,null,null,null,null,null,null,null,null,"Lod"]
[null,null,null,null,null,null,null,null,null,null,null,null,"Lod"]
[null,null,null,null,null,null,null,null,null,null,null,null,"Lod"]
[null,null,null,null,null,null,null,null,null,null,null,null,"Lod"]
[null,null,null,null,null,null,null,null,null,null,null,null,"Lod"]
[null,null,null,null,null,null,null,null,null,null,null,null,"Lod"]
[null,null,null,null,null,null,null,null,null,null,null,null,"Lod"]
[null,null,null,null,null,null,null,null,null,null,null,null,"Lod"]
[null,null,null,null,null,null,null,null,null,null,null,null,"Lod"]
[null,null,null,null,null,null,null,null,null,null,null,null,"Lod"]
[null,null,null,null,null,null,null,null,null,null,null,null,"Lod"]
[null,null,null,null,null,null,null,null,null,null,null,null,"Lod"]
[null,null,null,null,null,null,null,null,null,null,null,null,"Lod"]
[null,null,null,null,null,null,null,null,null,null,null,null,"Lod"]
[null,null,null,null,null,null,null,null,null,null,null,null,"Lod"]
[null,null,null,null,null,null,null,null,null,null,null,null,"Lod"]
[null,null,null,null,null,null,null,null,null,null,null,null,"Lod"]
[null,null,null,null,null,null,null,null,null,null,null,null,"Lod"]
[null,null,null,null,null,null,null,null,null,null,null,null,"Lod"]
[null,null,null,null,null,null,null,null,null,null,null,null,"Lod"]
[null,null,null,null,null,null,null,null,null,null,null,null,"Lod"]
[null,null,null,null,null,null,null,null,null,null,null,null,"Lod"]
[null,null,null,null,null,null,null,null,null,null,null,null,"Lod"]
[null,null,null,null,null,null,null,null,null,null,null,null,"Lod"]
[null,null,null,null,null,null,null,null,null,null,null,null,"Lod"]
[null,null,null,null,null,null,null,null,null,null,null,null,"Lod"]
[null,null,null,null,null,null,null,null,null,null,null,null,"Lod"]
[null,null,null,null,null,null,null,null,null,null,null,null,"Lod"]
[null,null,null,null,null,null,null,null,null,null,null,null,"Lod"]
[null,null,null,null,null,null,null,null,null,null,null,null,"Lod"]
[null,null,null,null,null,null,null,null,null,null,null,null,"Lod"]
[null,null,null,null,null,null,null,null,null,null,null,null,"Lod"]
[null,null,null,null,null,null,null,null,null,null,null,null,"Lod"]
[null,null,null,null,null,null,null,null,null,null,null,null,"Lod"]
[null,null,null,null,null,null,null,null,null,null,null,null,"Lod"]
[null,null,null,null,null,null,null,null,null,null,null,null,"Lod"]
[null,null,null,null,null,null,null,null,null,null,null,null,"Lod"]
[null,null,null,null,null,null,null,null,null,null,null,null,"Lod"]
[null,null,null,null,null,null,null,null,null,null,null,null,"Lod"]
[null,null,null,null,null,null,null,null,null,null,null,null,"Lod"]
[null,null,null,null,null,null,null,null,null,null,null,null,"Lod"]
[null,null,null,null,null,null,null,null,null,null,null,null,"Lod"]
[null,null,null,null,null,null,null,null,null,null,null,null,"Lod"]
[null,null,null,null,null,null,null,null,null,null,null,null,"Lod"]
[null,null,null,null,null,null,null,null,null,null,null,null,"Lod"]
[null,null,null,null,null,null,null,null,null,null,null,null,"Lod"]
[null,null,null,null,null,null,null,null,null,null,null,null,"Lod"]
[null,null,null,null,null,null,null,null,null,null,null,null,"Lod"]
[null,null,null,null,null,null,null,null,null,null,null,null,"Lod"]
[null,null,null,null,null,null,null,null,null,null,null,null,"Lod"]
[null,null,null,null,null,null,null,null,null,null,null,null,"Lod"]
[null,null,null,null,null,null,null,null,null,null,null,null,"Lod"]
[null,null,null,null,null,null,null,null,null,null,null,null,"Lod"]
[null,null,null,null,null,null,null,null,null,null,null,null,"Lod"]
[null,null,null,null,null,null,null,null,null,null,null,null,"Lod"]
[null,null,null,null,null,null,null,null,null,null,null,null,"Lod"]
[null,null,null,null,null,null,null,null,null,null,null,null,"Lod"]
[null,null,null,null,null,null,null,null,null,null,null,null,"Lod"]
[null,null,null,null,null,null,null,null,null,null,null,null,"Lod"]
[null,null,null,null,null,null,null,null,null,null,null,null,"Lod"]
[null,null,null,null,null,null,null,null,null,null,null,null,"Lod"]
[null,null,null,null,null,null,null,null,null,null,null,null,"Lod"]
[null,null,null,null,null,null,null,null,null,null,null,null,"Lod"]
[null,null,null,null,null,null,null,null,null,null,null,null,"Lod"]
[null,null,null,null,null,null,null,null,null,null,null,null,"Lod"]
[null,null,null,null,null,null,null,null,null,null,null,null,"Lod"]
[null,null,null,null,null,null,null,null,null,null,null,null,"Lod"]
[null,null,null,null,null,null,null,null,null,null,null,null,"Lod"]
[null,null,null,null,null,null,null,null,null,null,null,null,"Lod"]
[null,null,null,null,null,null,null,null,null,null,null,null,"Lod"]
[null,null,null,null,null,null,null,null,null,null,null,null,"Lod"]
[null,null,null,null,null,null,null,null,null,null,null,null,"Lod"]
[null,null,null,null,null,null,null,null,null,null,null,null,"Lod"]
[null,null,null,null,null,null,null,null,null,null,null,null,"Lod"]
[null,null,null,null,null,null,null,null,null,null,null,null,"Lod"]
[null,null,null,null,null,null,null,null,null,null,null,null,"Lod"]
[null,null,null,null,null,null,null,null,null,null,null,null,"Lod"]
[null,null,null,null,null,null,null,null,null,null,null,null,"Lod"]
[null,null,null,null,null,null,null,null,null,null,null,null,"Lod"]
[null,null,null,null,null,null,null,null,null,null,null,null,"Lod"]
[null,null,null,null,null,null,null,null,null,null,null,null,"Lod"]
[null,null,null,null,null,null,null,null,null,null,null,null,"Lod"]
[null,null,null,null,null,null,null,null,null,null,null,null,"Lod"]
[null,null,null,null,null,null,null,null,null,null,null,null,"Lod"]
[null,null,null,null,null,null,null,null,null,null,null,null,"Lod"]
[null,null,null,null,null,null,null,null,null,null,null,null,"Lod"]
[null,null,null,null,null,null,null,null,null,null,null,null,"Lod"]
[null,null,null,null,null,null,null,null,null,null,null,null,"Lod"]
[null,null,null,null,null,null,null,null,null,null,null,null,"Lod"]
[null,null,null,null,null,null,null,null,null,null,null,null,"Lod"]
[null,null,null,null,null,null,null,null,null,null,null,null,"Lod"]
[null,null,null,null,null,null,null,null,null,null,null,null,"Lod"]
[null,null,null,null,null,null,null,null,null,null,null,null,"Lod"]
[null,null,null,null,null,null,null,null,null,null,null,null,"Lod"]
[null,null,null,null,null,null,null,null,null,null,null,null,"Lod"]
[null,null,null,null,null,null,null,null,null,null,null,null,"Lod"]
[null,null,null,null,null,null,null,null,null,null,null,null,"Lod"]
[null,null,null,null,null,null,null,null,null,null,null,null,"Lod"]
[null,null,null,null,null,null,null,null,null,null,null,null,"Lod"]
[null,null,null,null,null,null,null,null,null,null,null,null,"Lod"]
[null,null,null,null,null,null,null,null,null,null,null,null,"Lod"]
[null,null,null,null,null,null,null,null,null,null,null,null,"Lod"]
[null,null,null,null,null,null,null,null,null,null,null,null,"Lod"]
[null,null,null,null,null,null,null,null,null,null,null,null,"Lod"]
[null,null,null,null,null,null,null,null,null,null,null,null,"Lod"]
[null,null,null,null,null,null,null,null,null,null,null,null,"Lod"]
[null,null,null,null,null,null,null,null,null,null,null,null,"Lod"]
[null,null,null,null,null,null,null,null,null,null,null,null,"Lod"]
[null,null,null,null,null,null,null,null,null,null,null,null,"Lod"]
[null,null,null,null,null,null,null,null,null,null,null,null,"Lod"]
[null,null,null,null,null,null,null,null,null,null,null,null,"Lod"]
[null,null,null,null,null,null,null,null,null,null,null,null,"Lod"]
[null,null,null,null,null,null,null,null,null,null,null,null,"Lod"]
[null,null,null,null,null,null,null,null,null,null,null,null,"Lod"]
[null,null,null,null,null,null,null,null,null,null,null,null,"Lod"]
[null,null,null,null,null,null,null,null,null,null,null,null,"Lod"]
[null,null,null,null,null,null,null,null,null,null,null,null,"Lod"]
[null,null,null,null,null,null,null,null,null,null,null,null,"Lod"]
[null,null,null,null,null,null,null,null,null,null,null,null,"Lod"]
[null,null,null,null,null,null,null,null,null,null,null,null,"Lod"]
[null,null,null,null,null,null,null,null,null,null,null,null,"Lod"]
[null,null,null,null,null,null,null,null,null,null,null,null,"Lod"]
[null,null,null,null,null,null,null,null,null,null,null,null,"Lod"]
[null,null,null,null,null,null,null,null,null,null,null,null,"Lod"]
[null,null,null,null,null,null,null,null,null,null,null,null,"Lod"]
[null,null,null,null,null,null,null,null,null,null,null,null,"Lod"]
[null,null,null,null,null,null,null,null,null,null,null,null,"Lod"]
[null,null,null,null,null,null,null,null,null,null,null,null,"Lod"]
[null,null,null,null,null,null,null,null,null,null,null,null,"Lod"]
[null,null,null,null,null,null,null,null,null,null,null,null,"Lod"]
[null,null,null,null,null,null,null,null,null,null,null,null,"Lod"]
[null,null,null,null,null,null,null,null,null,null,null,null,"Lod"]
[null,null,null,null,null,null,null,null,null,null,null,null,"Lod"]
[null,null,null,null,null,null,null,null,null,null,null,null,"Lod"]
[null,null,null,null,null,null,null,null,null,null,null,null,"Lod"]
[null,null,null,null,null,null,null,null,null,null,null,null,"Lod"]
[null,null,null,null,null,null,null,null,null,null,null,null,"Lod"]
[null,null,null,null,null,null,null,null,null,null,null,null,"Lod"]
[null,null,null,null,null,null,null,null,null,null,null,null,"Lod"]
[null,null,null,null,null,null,null,null,null,null,null,null,"Lod"]
[null,null,null,null,null,null,null,null,null,null,null,null,"Lod"]
[null,null,null,null,null,null,null,null,null,null,null,null,"Lod"]
[null,null,null,null,null,null,null,null,null,null,null,null,"Lod"]
[null,null,null,null,null,null,null,null,null,null,null,null,"Lod"]
[null,null,null,null,null,null,null,null,null,null,null,null,"Lod"]
[null,null,null,null,null,null,null,null,null,null,null,null,"Lod"]
[null,null,null,null,null,null,null,null,null,null,null,null,"Lod"]
[null,null,null,null,null,null,null,null,null,null,null,null,"Lod"]
[null,null,null,null,null,null,null,null,null,null,null,null,"Lod"]
[null,null,null,null,null,null,null,null,null,null,null,null,"Lod"]
[null,null,null,null,null,null,null,null,null,null,null,null,"Lod"]
[null,null,null,null,null,null,null,null,null,null,null,null,"Lod"]
[null,null,null,null,null,null,null,null,null,null,null,null,"Lod"]
[null,null,null,null,null,null,null,null,null,null,null,null,"Lod"]
[null,null,null,null,null,null,null,null,null,null,null,null,"Lod"]
[null,null,null,null,null,null,null,null,null,null,null,null,"Lod"]
[null,null,null,null,null,null,null,null,null,null,null,null,"Lod"]
[null,null,null,null,null,null,null,null,null,null,null,null,"Lod"]
[null,null,null,null,null,null,null,null,null,null,null,null,"Lod"]
[null,null,null,null,null,null,null,null,null,null,null,null,"Lod"]
[null,null,null,null,null,null,null,null,null,null,null,null,"Lod"]
[null,null,null,null,null,null,null,null,null,null,null,null,"Lod"]
[null,null,null,null,null,null,null,null,null,null,null,null,"Lod"]
[null,null,null,null,null,null,null,null,null,null,null,null,"Lod"]
[null,null,null,null,null,null,null,null,null,null,null,null,"Lod"]
[null,null,null,null,null,null,null,null,null,null,null,null,"Lod"]
[null,null,null,null,null,null,null,null,null,null,null,null,"Lod"]
[null,null,null,null,null,null,null,null,null,null,null,null,"Lod"]
[null,null,null,null,null,null,null,null,null,null,null,null,"Lod"]
[null,null,null,null,null,null,null,null,null,null,null,null,"Lod"]
[null,null,null,null,null,null,null,null,null,null,null,null,"Lod"]
[null,null,null,null,null,null,null,null,null,null,null,null,"Lod"]
[null,null,null,null,null,null,null,null,null,null,null,null,"Lod"]
[null,null,null,null,null,null,null,null,null,null,null,null,"Lod"]
[null,null,null,null,null,null,null,null,null,null,null,null,"Lod"]
[null,null,null,null,null,null,null,null,null,null,null,null,"Lod"]
[null,null,null,null,null,null,null,null,null,null,null,null,"Lod"]
[null,null,null,null,null,null,null,null,null,null,null,null,"Lod"]
[null,null,null,null,null,null,null,null,null,null,null,null,"Lod"]
[null,null,null,null,null,null,null,null,null,null,null,null,"Lod"]
[null,null,null,null,null,null,null,null,null,null,null,null,"Lod"]
[null,null,null,null,null,null,null,null,null,null,null,null,"Lod"]
[null,null,null,null,null,null,null,null,null,null,null,null,"Lod"]
[null,null,null,null,null,null,null,null,null,null,null,null,"Lod"]
[null,null,null,null,null,null,null,null,null,null,null,null,"Lod"]
[null,null,null,null,null,null,null,null,null,null,null,null,"Lod"]
[null,null,null,null,null,null,null,null,null,null,null,null,"Lod"]
[null,null,null,null,null,null,null,null,null,null,null,null,"Lod"]
[null,null,null,null,null,null,null,null,null,null,null,null,"Lod"]
[null,null,null,null,null,null,null,null,null,null,null,null,"Lod"]
[null,null,null,null,null,null,null,null,null,null,null,null,"Lod"]
[null,null,null,null,null,null,null,null,null,null,null,null,"Lod"]
[null,null,null,null,null,null,null,null,null,null,null,null,"Lod"]
[null,null,null,null,null,null,null,null,null,null,null,null,"Lod"]
[null,null,null,null,null,null,null,null,null,null,null,null,"Lod"]
[null,null,null,null,null,null,null,null,null,null,null,null,"Lod"]
[null,null,null,null,null,null,null,null,null,null,null,null,"Lod"]
[null,null,null,null,null,null,null,null,null,null,null,null,"Lod"]
[null,null,null,null,null,null,null,null,null,null,null,null,"Lod"]
[null,null,null,null,null,null,null,null,null,null,null,null,"Lod"]
[null,null,null,null,null,null,null,null,null,null,null,null,"Lod"]
[null,null,null,null,null,null,null,null,null,null,null,null,"Lod"]
[null,null,null,null,null,null,null,null,null,null,null,null,"Lod"]
[null,null,null,null,null,null,null,null,null,null,null,null,"Lod"]
[null,null,null,null,null,null,null,null,null,null,null,null,"Lod"]
[null,null,null,null,null,null,null,null,null,null,null,null,"Lod"]
[null,null,null,null,null,null,null,null,null,null,null,null,"Lod"]
[null,null,null,null,null,null,null,null,null,null,null,null,"Lod"]
[null,null,null,null,null,null,null,null,null,null,null,null,"Lod"]
[null,null,null,null,null,null,null,null,null,null,null,null,"Lod"]
[null,null,null,null,null,null,null,null,null,null,null,null,"Lod"]
[null,null,null,null,null,null,null,null,null,null,null,null,"Lod"]
[null,null,null,null,null,null,null,null,null,null,null,null,"Lod"]
[null,null,null,null,null,null,null,null,null,null,null,null,"Lod"]
[null,null,null,null,null,null,null,null,null,null,null,null,"Lod"]
[null,null,null,null,null,null,null,null,null,null,null,null,"Lod"]
[null,null,null,null,null,null,null,null,null,null,null,null,"Lod"]
[null,null,null,null,null,null,null,null,null,null,null,null,"Lod"]
[null,null,null,null,null,null,null,null,null,null,null,null,"Lod"]
[null,null,null,null,null,null,null,null,null,null,null,null,"Lod"]
[null,null,null,null,null,null,null,null,null,null,null,null,"Lod"]
[null,null,null,null,null,null,null,null,null,null,null,null,"Lod"]
[null,null,null,null,null,null,null,null,null,null,null,null,"Lod"]
[null,null,null,null,null,null,null,null,null,null,null,null,"Lod"]
[null,null,null,null,null,null,null,null,null,null,null,null,"Lod"]
[null,null,null,null,null,null,null,null,null,null,null,null,"Lod"]
[null,null,null,null,null,null,null,null,null,null,null,null,"Lod"]
[null,null,null,null,null,null,null,null,null,null,null,null,"Lod"]
[null,null,null,null,null,null,null,null,null,null,null,null,"Lod"]
[null,null,null,null,null,null,null,null,null,null,null,null,"Lod"]
[null,null,null,null,null,null,null,null,null,null,null,null,"Lod"]
[null,null,null,null,null,null,null,null,null,null,null,null,"Lod"]
[null,null,null,null,null,null,null,null,null,null,null,null,"Lod"]
[null,null,null,null,null,null,null,null,null,null,null,null,"Lod"]
[null,null,null,null,null,null,null,null,null,null,null,null,"Lod"]
[null,null,null,null,null,null,null,null,null,null,null,null,"Lod"]
[null,null,null,null,null,null,null,null,null,null,null,null,"Lod"]
[null,null,null,null,null,null,null,null,null,null,null,null,"Lod"]
[null,null,null,null,null,null,null,null,null,null,null,null,"Lod"]
[null,null,null,null,null,null,null,null,null,null,null,null,"Lod"]
[null,null,null,null,null,null,null,null,null,null,null,null,"Lod"]
[null,null,null,null,null,null,null,null,null,null,null,null,"Lod"]
[null,null,null,null,null,null,null,null,null,null,null,null,"Lod"]
[null,null,null,null,null,null,null,null,null,null,null,null,"Lod"]
[null,null,null,null,null,null,null,null,null,null,null,null,"Lod"]
[null,null,null,null,null,null,null,null,null,null,null,null,"Lod"]
[null,null,null,null,null,null,null,null,null,null,null,null,"Lod"]
[null,null,null,null,null,null,null,null,null,null,null,null,"Lod"]
[null,null,null,null,null,null,null,null,null,null,null,null,"Lod"]
[null,null,null,null,null,null,null,null,null,null,null,null,"Lod"]
[null,null,null,null,null,null,null,null,null,null,null,null,"Lod"]
[null,null,null,null,null,null,null,null,null,null,null,null,"Lod"]
[null,null,null,null,null,null,null,null,null,null,null,null,"Lod"]
[null,null,null,null,null,null,null,null,null,null,null,null,"Lod"]
[null,null,null,null,null,null,null,null,null,null,null,null,"Lod"]
[null,null,null,null,null,null,null,null,null,null,null,null,"Lod"]
[null,null,null,null,null,null,null,null,null,null,null,null,"Lod"]
[null,null,null,null,null,null,null,null,null,null,null,null,"Lod"]
[null,null,null,null,null,null,null,null,null,null,null,null,"Lod"]
[null,null,null,null,null,null,null,null,null,null,null,null,"Lod"]
[null,null,null,null,null,null,null,null,null,null,null,null,"Lod"]
[null,null,null,null,null,null,null,null,null,null,null,null,"Lod"]
[null,null,null,null,null,null,null,null,null,null,null,null,"Lod"]
[null,null,null,null,null,null,null,null,null,null,null,null,"Lod"]
[null,null,null,null,null,null,null,null,null,null,null,null,"Lod"]
[null,null,null,null,null,null,null,null,null,null,null,null,"Lod"]
[null,null,null,null,null,null,null,null,null,null,null,null,"Lod"]
[null,null,null,null,null,null,null,null,null,null,null,null,"Lod"]
[null,null,null,null,null,null,null,null,null,null,null,null,"Lod"]
[null,null,null,null,null,null,null,null,null,null,null,null,"Lod"]
[null,null,null,null,null,null,null,null,null,null,null,null,"Lod"]
[null,null,null,null,null,null,null,null,null,null,null,null,"Lod"]
[null,null,null,null,null,null,null,null,null,null,null,null,"Lod"]
[null,null,null,null,null,null,null,null,null,null,null,null,"Lod"]
[null,null,null,null,null,null,null,null,null,null,null,null,"Lod"]
[null,null,null,null,null,null,null,null,null,null,null,null,"Lod"]
[null,null,null,null,null,null,null,null,null,null,null,null,"Lod"]
[null,null,null,null,null,null,null,null,null,null,null,null,"Lod"]
[null,null,null,null,null,null,null,null,null,null,null,null,"Lod"]
[null,null,null,null,null,null,null,null,null,null,null,null,"Lod"]
[null,null,null,null,null,null,null,null,null,null,null,null,"Lod"]
[null,null,null,null,null,null,null,null,null,null,null,null,"Lod"]
[null,null,null,null,null,null,null,null,null,null,null,null,"Lod"]
[null,null,null,null,null,null,null,null,null,null,null,null,"Lod"]
[null,null,null,null,null,null,null,null,null,null,null,null,"Lod"]
[null,null,null,null,null,null,null,null,null,null,null,null,"Lod"]
[null,null,null,null,null,null,null,null,null,null,null,null,"Lod"]
[null,null,null,null,null,null,null,null,null,null,null,null,"Lod"]
[null,null,null,null,null,null,null,null,null,null,null,null,"Lod"]
[null,null,null,null,null,null,null,null,null,null,null,null,"Lod"]
[null,null,null,null,null,null,null,null,null,null,null,null,"Lod"]
[null,null,null,null,null,null,null,null,null,null,null,null,"Lod"]
[null,null,null,null,null,null,null,null,null,null,null,null,"Lod"]
[null,null,null,null,null,null,null,null,null,null,null,null,"Lod"]
[null,null,null,null,null,null,null,null,null,null,null,null,"Lod"]
[null,null,null,null,null,null,null,null,null,null,null,null,"Lod"]
[null,null,null,null,null,null,null,null,null,null,null,null,"Lod"]
[null,null,null,null,null,null,null,null,null,null,null,null,"Lod"]
[null,null,null,null,null,null,null,null,null,null,null,null,"Lod"]
[null,null,null,null,null,null,null,null,null,null,null,null,"Lod"]
[null,null,null,null,null,null,null,null,null,null,null,null,"Lod"]
[null,null,null,null,null,null,null,null,null,null,null,null,"Lod"]
[null,null,null,null,null,null,null,null,null,null,null,null,"Lod"]
[null,null,null,null,null,null,null,null,null,null,null,null,"Lod"]
[null,null,null,null,null,null,null,null,null,null,null,null,"Lod"]
[null,null,null,null,null,null,null,null,null,null,null,null,"Lod"]
[null,null,null,null,null,null,null,null,null,null,null,null,"Lod"]
[null,null,null,null,null,null,null,null,null,null,null,null,"Lod"]
[null,null,null,null,null,null,null,null,null,null,null,null,"Lod"]
[null,null,null,null,null,null,null,null,null,null,null,null,"Lod"]
[null,null,null,null,null,null,null,null,null,null,null,null,"Lod"]
[null,null,null,null,null,null,null,null,null,null,null,null,"Lod"]
[null,null,null,null,null,null,null,null,null,null,null,null,"Lod"]
[null,null,null,null,null,null,null,null,null,null,null,null,"Lod"]
[null,null,null,null,null,null,null,null,null,null,null,null,"Lod"]
[null,null,null,null,null,null,null,null,null,null,null,null,"Lod"]
[null,null,null,null,null,null,null,null,null,null,null,null,"Lod"]
[null,null,null,null,null,null,null,null,null,null,null,null,"Lod"]
[null,null,null,null,null,null,null,null,null,null,null,null,"Lod"]
[null,null,null,null,null,null,null,null,null,null,null,null,"Lod"]
[null,null,null,null,null,null,null,null,null,null,null,null,"Lod"]
[null,null,null,null,null,null,null,null,null,null,null,null,"Lod"]
[null,null,null,null,null,null,null,null,null,null,null,null,"Lod"]
[null,null,null,null,null,null,null,null,null,null,null,null,"Lod"]
[null,null,null,null,null,null,null,null,null,null,null,null,"Lod"]
[null,null,null,null,null,null,null,null,null,null,null,null,"Lod"]
[null,null,null,null,null,null,null,null,null,null,null,null,"Lod"]
[null,null,null,null,null,null,null,null,null,null,null,null,"Lod"]
[null,null,null,null,null,null,null,null,null,null,null,null,"Lod"]
[null,null,null,null,null,null,null,null,null,null,null,null,"Lod"]
[null,null,null,null,null,null,null,null,null,null,null,null,"Lod"]
[null,null,null,null,null,null,null,null,null,null,null,null,"Lod"]
[null,null,null,null,null,null,null,null,null,null,null,null,"Lod"]
[null,null,null,null,null,null,null,null,null,null,null,null,"Lod"]
[null,null,null,null,null,null,null,null,null,null,null,null,"Lod"]
[null,null,null,null,null,null,null,null,null,null,null,null,"Lod"]
[null,null,null,null,null,null,null,null,null,null,null,null,"Lod"]
[null,null,null,null,null,null,null,null,null,null,null,null,"Lod"]
[null,null,null,null,null,null,null,null,null,null,null,null,"Lod"]
[null,null,null,null,null,null,null,null,null,null,null,null,"Lod"]
[null,null,null,null,null,null,null,null,null,null,null,null,"Lod"]
[null,null,null,null,null,null,null,null,null,null,null,null,"Lod"]
[null,null,null,null,null,null,null,null,null,null,null,null,"Lod"]
[null,null,null,null,null,null,null,null,null,null,null,null,"Lod"]
[null,null,null,null,null,null,null,null,null,null,null,null,"Lod"]
[null,null,null,null,null,null,null,null,null,null,null,null,"Lod"]
[null,null,null,null,null,null,null,null,null,null,null,null,"Lod"]
[null,null,null,null,null,null,null,null,null,null,null,null,"Lod"]
[null,null,null,null,null,null,null,null,null,null,null,null,"Lod"]
[null,null,null,null,null,null,null,null,null,null,null,null,"Lod"]
[null,null,null,null,null,null,null,null,null,null,null,null,"Lod"]
[null,null,null,null,null,null,null,null,null,null,null,null,"Lod"]
[null,null,null,null,null,null,null,null,null,null,null,null,"Lod"]
[null,null,null,null,null,null,null,null,null,null,null,null,"Lod"]
[null,null,null,null,null,null,null,null,null,null,null,null,"Lod"]
[null,null,null,null,null,null,null,null,null,null,null,null,"Lod"]
[null,null,null,null,null,null,null,null,null,null,null,null,"Lod"]
[null,null,null,null,null,null,null,null,null,null,null,null,"Lod"]
[null,null,null,null,null,null,null,null,null,null,null,null,"Lod"]
[null,null,null,null,null,null,null,null,null,null,null,null,"Lod"]
[null,null,null,null,null,null,null,null,null,null,null,null,"Lod"]
[null,null,null,null,null,null,null,null,null,null,null,null,"Lod"]
[null,null,null,null,null,null,null,null,null,null,null,null,"Lod"]
[null,null,null,null,null,null,null,null,null,null,null,null,"Lod"]
[null,null,null,null,null,null,null,null,null,null,null,null,"Lod"]
[null,null,null,null,null,null,null,null,null,null,null,null,"Lod"]
[null,null,null,null,null,null,null,null,null,null,null,null,"Lod"]
[null,null,null,null,null,null,null,null,null,null,null,null,"Lod"]
[null,null,null,null,null,null,null,null,null,null,null,null,"Lod"]
[null,null,null,null,null,null,null,null,null,null,null,null,"Lod"]
[null,null,null,null,null,null,null,null,null,null,null,null,"Lod"]
[null,null,null,null,null,null,null,null,null,null,null,null,"Lod"]
[null,null,null,null,null,null,null,null,null,null,null,null,"Lod"]
[null,null,null,null,null,null,null,null,null,null,null,null,"Lod"]
[null,null,null,null,null,null,null,null,null,null,null,null,"Lod"]
[null,null,null,null,null,null,null,null,null,null,null,null,"Lod"]
[null,null,null,null,null,null,null,null,null,null,null,null,"Lod"]
[null,null,null,null,null,null,null,null,null,null,null,null,"Lod"]
[null,null,null,null,null,null,null,null,null,null,null,null,"Lod"]
[null,null,null,null,null,null,null,null,null,null,null,null,"Lod"]
[null,null,null,null,null,null,null,null,null,null,null,null,"Lod"]
[null,null,null,null,null,null,null,null,null,null,null,null,"Lod"]
[null,null,null,null,null,null,null,null,null,null,null,null,"Lod"]
[null,null,null,null,null,null,null,null,null,null,null,null,"Lod"]
[null,null,null,null,null,null,null,null,null,null,null,null,"Lod"]
[null,null,null,null,null,null,null,null,null,null,null,null,"Lod"]
[null,null,null,null,null,null,null,null,null,null,null,null,"Lod"]
[null,null,null,null,null,null,null,null,null,null,null,null,"Lod"]
[null,null,null,null,null,null,null,null,null,null,null,null,"Lod"]
[null,null,null,null,null,null,null,null,null,null,null,null,"Lod"]
[null,null,null,null,null,null,null,null,null,null,null,null,"Lod"]
[null,null,null,null,null,null,null,null,null,null,null,null,"Lod"]
[null,null,null,null,null,null,null,null,null,null,null,null,"Lod"]
[null,null,null,null,null,null,null,null,null,null,null,null,"Lod"]
[null,null,null,null,null,null,null,null,null,null,null,null,"Lod"]
[null,null,null,null,null,null,null,null,null,null,null,null,"Lod"]
[null,null,null,null,null,null,null,null,null,null,null,null,"Lod"]
[null,null,null,null,null,null,null,null,null,null,null,null,"Lod"]
[null,null,null,null,null,null,null,null,null,null,null,null,"Lod"]
[null,null,null,null,null,null,null,null,null,null,null,null,"Lod"]
[null,null,null,null,null,null,null,null,null,null,null,null,"Lod"]
[null,null,null,null,null,null,null,null,null,null,null,null,"Lod"]
[null,null,null,null,null,null,null,null,null,null,null,null,"Lod"]
[null,null,null,null,null,null,null,null,null,null,null,null,"Lod"]
[null,null,null,null,null,null,null,null,null,null,null,null,"Lod"]
[null,null,null,null,null,null,null,null,null,null,null,null,"Lod"]
[null,null,null,null,null,null,null,null,null,null,null,null,"Lod"]
[null,null,null,null,null,null,null,null,null,null,null,null,"Lod"]
[null,null,null,null,null,null,null,null,null,null,null,null,"Lod"]
[null,null,null,null,null,null,null,null,null,null,null,null,"Lod"]
[null,null,null,null,null,null,null,null,null,null,null,null,"Lod"]
[null,null,null,null,null,null,null,null,null,null,null,null,"Lod"]
[null,null,null,null,null,null,null,null,null,null,null,null,"Lod"]
[null,null,null,null,null,null,null,null,null,null,null,null,"Lod"]
[null,null,null,null,null,null,null,null,null,null,null,null,"Lod"]
[null,null,null,null,null,null,null,null,null,null,null,null,"Lod"]
[null,null,null,null,null,null,null,null,null,null,null,null,"Lod"]
[null,null,null,null,null,null,null,null,null,null,null,null,"Lod"]
[null,null,null,null,null,null,null,null,null,null,null,null,"Lod"]
[null,null,null,null,null,null,null,null,null,null,null,null,"Lod"]
[null,null,null,null,null,null,null,null,null,null,null,null,"Lod"]
[null,null,null,null,null,null,null,null,null,null,null,null,"Lod"]
[null,null,null,null,null,null,null,null,null,null,null,null,"Lod"]
[null,null,null,null,null,null,null,null,null,null,null,null,"Lod"]
[null,null,null,null,null,null,null,null,null,null,null,null,"Lod"]
[null,null,null,null,null,null,null,null,null,null,null,null,"Lod"]
[null,null,null,null,null,null,null,null,null,null,null,null,"Lod"]
[null,null,null,null,null,null,null,null,null,null,null,null,"Lod"]
[null,null,null,null,null,null,null,null,null,null,null,null,"Lod"]
[null,null,null,null,null,null,null,null,null,null,null,null,"Lod"]
[null,null,null,null,null,null,null,null,null,null,null,null,"Lod"]
[null,null,null,null,null,null,null,null,null,null,null,null,"Lod"]
[null,null,null,null,null,null,null,null,null,null,null,null,"Lod"]
[null,null,null,null,null,null,null,null,null,null,null,null,"Lod"]
[null,null,null,null,null,null,null,null,null,null,null,null,"Lod"]
[null,null,null,null,null,null,null,null,null,null,null,null,"Lod"]
[null,null,null,null,null,null,null,null,null,null,null,null,"Lod"]
[null,null,null,null,null,null,null,null,null,null,null,null,"Lod"]
[null,null,null,null,null,null,null,null,null,null,null,null,"Lod"]
[null,null,null,null,null,null,null,null,null,null,null,null,"Lod"]
[null,null,null,null,null,null,null,null,null,null,null,null,"Lod"]
[null,null,null,null,null,null,null,null,null,null,null,null,"Lod"]
[null,null,null,null,null,null,null,null,null,null,null,null,"Lod"]
[null,null,null,null,null,null,null,null,null,null,null,null,"Lod"]
[null,null,null,null,null,null,null,null,null,null,null,null,"Lod"]
[null,null,null,null,null,null,null,null,null,null,null,null,"Lod"]
[null,null,null,null,null,null,null,null,null,null,null,null,"Lod"]
[null,null,null,null,null,null,null,null,null,null,null,null,"Lod"]
[null,null,null,null,null,null,null,null,null,null,null,null,"Lod"]
[null,null,null,null,null,null,null,null,null,null,null,null,"Lod"]
[null,null,null,null,null,null,null,null,null,null,null,null,"Lod"]
[null,null,null,null,null,null,null,null,null,null,null,null,"Lod"]
[null,null,null,null,null,null,null,null,null,null,null,null,"Lod"]
[null,null,null,null,null,null,null,null,null,null,null,null,"Lod"]
[null,null,null,null,null,null,null,null,null,null,null,null,"Lod"]
[null,null,null,null,null,null,null,null,null,null,null,null,"Lod"]
[null,null,null,null,null,null,null,null,null,null,null,null,"Lod"]
[null,null,null,null,null,null,null,null,null,null,null,null,"Lod"]
[null,null,null,null,null,null,null,null,null,null,null,null,"Lod"]
[null,null,null,null,null,null,null,null,null,null,null,null,"Lod"]
[null,null,null,null,null,null,null,null,null,null,null,null,"Lod"]
[null,null,null,null,null,null,null,null,null,null,null,null,"Lod"]
[null,null,null,null,null,null,null,null,null,null,null,null,"Lod"]
[null,null,null,null,null,null,null,null,null,null,null,null,"Lod"]
[null,null,null,null,null,null,null,null,null,null,null,null,"Lod"]
[null,null,null,null,null,null,null,null,null,null,null,null,"Lod"]
[null,null,null,null,null,null,null,null,null,null,null,null,"Lod"]
[null,null,null,null,null,null,null,null,null,null,null,null,"Lod"]
[null,null,null,null,null,null,null,null,null,null,null,null,"Lod"]
[null,null,null,null,null,null,null,null,null,null,null,null,"Lod"]
[null,null,null,null,null,null,null,null,null,null,null,null,"Lod"]
[null,null,null,null,null,null,null,null,null,null,null,null,"Lod"]
[null,null,null,null,null,null,null,null,null,null,null,null,"Lod"]
[null,null,null,null,null,null,null,null,null,null,null,null,"Lod"]
[null,null,null,null,null,null,null,null,null,null,null,null,"Lod"]
[null,null,null,null,null,null,null,null,null,null,null,null,"Lod"]
[null,null,null,null,null,null,null,null,null,null,null,null,"Lod"]
[null,null,null,null,null,null,null,null,null,null,null,null,"Lod"]
[null,null,null,null,null,null,null,null,null,null,null,null,"Lod"]
[null,null,null,null,null,null,null,null,null,null,null,null,"Lod"]
[null,null,null,null,null,null,null,null,null,null,null,null,"Lod"]
[null,null,null,null,null,null,null,null,null,null,null,null,"Lod"]
[null,null,null,null,null,null,null,null,null,null,null,null,"Lod"]
[null,null,null,null,null,null,null,null,null,null,null,null,"Lod"]
[null,null,null,null,null,null,null,null,null,null,null,null,"Lod"]
[null,null,null,null,null,null,null,null,null,null,null,null,"Lod"]
[null,null,null,null,null,null,null,null,null,null,null,null,"Lod"]
[null,null,null,null,null,null,null,null,null,null,null,null,"Lod"]
[null,null,null,null,null,null,null,null,null,null,null,null,"Lod"]
[null,null,null,null,null,null,null,null,null,null,null,null,"Lod"]
[null,null,null,null,null,null,null,null,null,null,null,null,"Lod"]
[null,null,null,null,null,null,null,null,null,null,null,null,"Lod"]
[null,null,null,null,null,null,null,null,null,null,null,null,"Lod"]
[null,null,null,null,null,null,null,null,null,null,null,null,"Lod"]
[null,null,null,null,null,null,null,null,null,null,null,null,"Lod"]
[null,null,null,null,null,null,null,null,null,null,null,null,"Lod"]
[null,null,null,null,null,null,null,null,null,null,null,null,"Lod"]
[null,null,null,null,null,null,null,null,null,null,null,null,"Lod"]
[null,null,null,null,null,null,null,null,null,null,null,null,"Lod"]
[null,null,null,null,null,null,null,null,null,null,null,null,"Lod"]
[null,null,null,null,null,null,null,null,null,null,null,null,"Lod"]
[null,null,null,null,null,null,null,null,null,null,null,null,"Lod"]
[null,null,null,null,null,null,null,null,null,null,null,null,"Lod"]
[null,null,null,null,null,null,null,null,null,null,null,null,"Lod"]
[null,null,null,null,null,null,null,null,null,null,null,null,"Lod"]
[null,null,null,null,null,null,null,null,null,null,null,null,"Lod"]
[null,null,null,null,null,null,null,null,null,null,null,null,"Lod"]
[null,null,null,null,null,null,null,null,null,null,null,null,"Lod"]
[null,null,null,null,null,null,null,null,null,null,null,null,"Lod"]
[null,null,null,null,null,null,null,null,null,null,null,null,"Lod"]
[null,null,null,null,null,null,null,null,null,null,null,null,"Lod"]
[null,null,null,null,null,null,null,null,null,null,null,null,"Lod"]
[null,null,null,null,null,null,null,null,null,null,null,null,"Lod"]
[null,null,null,null,null,null,null,null,null,null,null,null,"Lod"]
[null,null,null,null,null,null,null,null,null,null,null,null,"Lod"]
[null,null,null,null,null,null,null,null,null,null,null,null,"Lod"]
[null,null,null,null,null,null,null,null,null,null,null,null,"Lod"]
[null,null,null,null,null,null,null,null,null,null,null,null,"Lod"]
[null,null,null,null,null,null,null,null,null,null,null,null,"Lod"]
[null,null,null,null,null,null,null,null,null,null,null,null,"Lod"]
[null,null,null,null,null,null,null,null,null,null,null,null,"Lod"]
[null,null,null,null,null,null,null,null,null,null,null,null,"Lod"]
[null,null,null,null,null,null,null,null,null,null,null,null,"Lod"]
[null,null,null,null,null,null,null,null,null,null,null,null,"Lod"]
[null,null,null,null,null,null,null,null,null,null,null,null,"Lod"]
[null,null,null,null,null,null,null,null,null,null,null,null,"Lod"]
[null,null,null,null,null,null,null,null,null,null,null,null,"Lod"]
[null,null,null,null,null,null,null,null,null,null,null,null,"Lod"]
[null,null,null,null,null,null,null,null,null,null,null,null,"Lod"]
[null,null,null,null,null,null,null,null,null,null,null,null,"Lod"]
[null,null,null,null,null,null,null,null,null,null,null,null,"Lod"]
[null,null,null,null,null,null,null,null,null,null,null,null,"Lod"]
[null,null,null,null,null,null,null,null,null,null,null,null,"Lod"]
[null,null,null,null,null,null,null,null,null,null,null,null,"Lod"]
[null,null,null,null,null,null,null,null,null,null,null,null,"Lod"]
[null,null,null,null,null,null,null,null,null,null,null,null,"Lod"]
[null,null,null,null,null,null,null,null,null,null,null,null,"Lod"]
[null,null,null,null,null,null,null,null,null,null,null,null,"Lod"]
[null,null,null,null,null,null,null,null,null,null,null,null,"Lod"]
[null,null,null,null,null,null,null,null,null,null,null,null,"Lod"]
[null,null,null,null,null,null,null,null,null,null,null,null,"Lod"]
[null,null,null,null,null,null,null,null,null,null,null,null,"Lod"]
[null,null,null,null,null,null,null,null,null,null,null,null,"Lod"]
[null,null,null,null,null,null,null,null,null,null,null,null,"Lod"]
[null,null,null,null,null,null,null,null,null,null,null,null,"Lod"]
[null,null,null,null,null,null,null,null,null,null,null,null,"Lod"]
[null,null,null,null,null,null,null,null,null,null,null,null,"Lod"]
[null,null,null,null,null,null,null,null,null,null,null,null,"Lod"]
[null,null,null,null,null,null,null,null,null,null,null,null,"Lod"]
[null,null,null,null,null,null,null,null,null,null,null,null,"Lod"]
[null,null,null,null,null,null,null,null,null,null,null,null,"Lod"]
[null,null,null,null,null,null,null,null,null,null,null,null,"Lod"]
[null,null,null,null,null,null,null,null,null,null,null,null,"Lod"]
[null,null,null,null,null,null,null,null,null,null,null,null,"Lod"]
[null,null,null,null,null,null,null,null,null,null,null,null,"Lod"]
[null,null,null,null,null,null,null,null,null,null,null,null,"Lod"]
[null,null,null,null,null,null,null,null,null,null,null,null,"Lod"]
[null,null,null,null,null,null,null,null,null,null,null,null,"Lod"]
[null,null,null,null,null,null,null,null,null,null,null,null,"Lod"]
[null,null,null,null,null,null,null,null,null,null,null,null,"Lod"]
[null,null,null,null,null,null,null,null,null,null,null,null,"Lod"]
[null,null,null,null,null,null,null,null,null,null,null,null,"Lod"]
[null,null,null,null,null,null,null,null,null,null,null,null,"Lod"]
[null,null,null,null,null,null,null,null,null,null,null,null,"Lod"]
[null,null,null,null,null,null,null,null,null,null,null,null,"Lod"]
[null,null,null,null,null,null,null,null,null,null,null,null,"Lod"]
[null,null,null,null,null,null,null,null,null,null,null,null,"Lod"]
[null,null,null,null,null,null,null,null,null,null,null,null,"Lod"]
[null,null,null,null,null,null,null,null,null,null,null,null,"Lod"]
[null,null,null,null,null,null,null,null,null,null,null,null,"Lod"]
[null,null,null,null,null,null,null,null,null,null,null,null,"Lod"]
[null,null,null,null,null,null,null,null,null,null,null,null,"Lod"]
[null,null,null,null,null,null,null,null,null,null,null,null,"Lod"]
[null,null,null,null,null,null,null,null,null,null,null,null,"Lod"]
[null,null,null,null,null,null,null,null,null,null,null,null,"Lod"]
[null,null,null,null,null,null,null,null,null,null,null,null,"Lod"]
[null,null,null,null,null,null,null,null,null,null,null,null,"Lod"]
[null,null,null,null,null,null,null,null,null,null,null,null,"Lod"]
[null,null,null,null,null,null,null,null,null,null,null,null,"Lod"]
[null,null,null,null,null,null,null,null,null,null,null,null,"Lod"]
[null,null,null,null,null,null,null,null,null,null,null,null,"Lod"]
[null,null,null,null,null,null,null,null,null,null,null,null,"Lod"]
[null,null,null,null,null,null,null,null,null,null,null,null,"Lod"]
[null,null,null,null,null,null,null,null,null,null,null,null,"Lod"]
[null,null,null,null,null,null,null,null,null,null,null,null,"Lod"]
[null,null,null,null,null,null,null,null,null,null,null,null,"Lod"]
[null,null,null,null,null,null,null,null,null,null,null,null,"Lod"]
[null,null,null,null,null,null,null,null,null,null,null,null,"Lod"]
[null,null,null,null,null,null,null,null,null,null,null,null,"Lod"]
[null,null,null,null,null,null,null,null,null,null,null,null,"Lod"]
[null,null,null,null,null,null,null,null,null,null,null,null,"Lod"]
[null,null,null,null,null,null,null,null,null,null,null,null,"Lod"]
[null,null,null,null,null,null,null,null,null,null,null,null,"Lod"]
[null,null,null,null,null,null,null,null,null,null,null,null,"Lod"]
[null,null,null,null,null,null,null,null,null,null,null,null,"Lod"]
[null,null,null,null,null,null,null,null,null,null,null,null,"Lod"]
[null,null,null,null,null,null,null,null,null,null,null,null,"Lod"]
[null,null,null,null,null,null,null,null,null,null,null,null,"Lod"]
[null,null,null,null,null,null,null,null,null,null,null,null,"Lod"]
[null,null,null,null,null,null,null,null,null,null,null,null,"Lod"]
[null,null,null,null,null,null,null,null,null,null,null,null,"Lod"]
[null,null,null,null,null,null,null,null,null,null,null,null,"Lod"]
[null,null,null,null,null,null,null,null,null,null,null,null,"Lod"]
[null,null,null,null,null,null,null,null,null,null,null,null,"Lod"]
[null,null,null,null,null,null,null,null,null,null,null,null,"Lod"]
[null,null,null,null,null,null,null,null,null,null,null,null,"Lod"]
[null,null,null,null,null,null,null,null,null,null,null,null,"Lod"]
[null,null,null,null,null,null,null,null,null,null,null,null,"Lod"]
[null,null,null,null,null,null,null,null,null,null,null,null,"Lod"]
[null,null,null,null,null,null,null,null,null,null,null,null,"Lod"]
[null,null,null,null,null,null,null,null,null,null,null,null,"Lod"]
[null,null,null,null,null,null,null,null,null,null,null,null,"Lod"]
[null,null,null,null,null,null,null,null,null,null,null,null,"Lod"]
[null,null,null,null,null,null,null,null,null,null,null,null,"Lod"]
[null,null,null,null,null,null,null,null,null,null,null,null,"Lod"]
[null,null,null,null,null,null,null,null,null,null,null,null,"Lod"]
[null,null,null,null,null,null,null,null,null,null,null,null,"Lod"]
[null,null,null,null,null,null,null,null,null,null,null,null,"Lod"]
[null,null,null,null,null,null,null,null,null,null,null,null,"Lod"]
[null,null,null,null,null,null,null,null,null,null,null,null,"Lod"]
[null,null,null,null,null,null,null,null,null,null,null,null,"Lod"]
[null,null,null,null,null,null,null,null,null,null,null,null,"Lod"]
[null,null,null,null,null,null,null,null,null,null,null,null,"Lod"]
[null,null,null,null,null,null,null,null,null,null,null,null,"Lod"]
[null,null,null,null,null,null,null,null,null,null,null,null,"Lod"]
[null,null,null,null,null,null,null,null,null,null,null,null,"Lod"]
[null,null,null,null,null,null,null,null,null,null,null,null,"Lod"]
[null,null,null,null,null,null,null,null,null,null,null,null,"Lod"]
[null,null,null,null,null,null,null,null,null,null,null,null,"Lod"]
[null,null,null,null,null,null,null,null,null,null,null,null,"Lod"]
[null,null,null,null,null,null,null,null,null,null,null,null,"Lod"]
[null,null,null,null,null,null,null,null,null,null,null,null,"Lod"]
[null,null,null,null,null,null,null,null,null,null,null,null,"Lod"]
[null,null,null,null,null,null,null,null,null,null,null,null,"Lod"]
[null,null,null,null,null,null,null,null,null,null,null,null,"Lod"]
[null,null,null,null,null,null,null,null,null,null,null,null,"Lod"]
[null,null,null,null,null,null,null,null,null,null,null,null,"Lod"]
[null,null,null,null,null,null,null,null,null,null,null,null,"Lod"]
[null,null,null,null,null,null,null,null,null,null,null,null,"Lod"]
[null,null,null,null,null,null,null,null,null,null,null,null,"Lod"]
[null,null,null,null,null,null,null,null,null,null,null,null,"Lod"]
[null,null,null,null,null,null,null,null,null,null,null,null,"Lod"]
[null,null,null,null,null,null,null,null,null,null,null,null,"Lod"]
[null,null,null,null,null,null,null,null,null,null,null,null,"Lod"]
[null,null,null,null,null,null,null,null,null,null,null,null,"Lod"]
[null,null,null,null,null,null,null,null,null,null,null,null,"Lod"]
[null,null,null,null,null,null,null,null,null,null,null,null,"Lod"]
[null,null,null,null,null,null,null,null,null,null,null,null,"Lod"]
[null,null,null,null,null,null,null,null,null,null,null,null,"Lod"]
[null,null,null,null,null,null,null,null,null,null,null,null,"Lod"]
[null,null,null,null,null,null,null,null,null,null,null,null,"Lod"]
[null,null,null,null,null,null,null,null,null,null,null,null,"Lod"]
[null,null,null,null,null,null,null,null,null,null,null,null,"Lod"]
[null,null,null,null,null,null,null,null,null,null,null,null,"Lod"]
[null,null,null,null,null,null,null,null,null,null,null,null,"Lod"]
[null,null,null,null,null,null,null,null,null,null,null,null,"Lod"]
[null,null,null,null,null,null,null,null,null,null,null,null,"Lod"]
[null,null,null,null,null,null,null,null,null,null,null,null,"Lod"]
[null,null,null,null,null,null,null,null,null,null,null,null,"Lod"]
[null,null,null,null,null,null,null,null,null,null,null,null,"Lod"]
[null,null,null,null,null,null,null,null,null,null,null,null,"Lod"]
[null,null,null,null,null,null,null,null,null,null,null,null,"Lod"]
[null,null,null,null,null,null,null,null,null,null,null,null,"Lod"]
[null,null,null,null,null,null,null,null,null,null,null,null,"Lod"]
[null,null,null,null,null,null,null,null,null,null,null,null,"Lod"]
[null,null,null,null,null,null,null,null,null,null,null,null,"Lod"]
[null,null,null,null,null,null,null,null,null,null,null,null,"Lod"]
[null,null,null,null,null,null,null,null,null,null,null,null,"Lod"]
[null,null,null,null,null,null,null,null,null,null,null,null,"Lod"]
[null,null,null,null,null,null,null,null,null,null,null,null,"Lod"]
[null,null,null,null,null,null,null,null,null,null,null,null,"Lod"]
[null,null,null,null,null,null,null,null,null,null,null,null,"Lod"]
[null,null,null,null,null,null,null,null,null,null,null,null,"Lod"]
[null,null,null,null,null,null,null,null,null,null,null,null,"Lod"]
[null,null,null,null,null,null,null,null,null,null,null,null,"Lod"]
[null,null,null,null,null,null,null,null,null,null,null,null,"Lod"]
[null,null,null,null,null,null,null,null,null,null,null,null,"Lod"]
[null,null,null,null,null,null,null,null,null,null,null,null,"Lod"]
[null,null,null,null,null,null,null,null,null,null,null,null,"Lod"]
[null,null,null,null,null,null,null,null,null,null,null,null,"Lod"]
[null,null,null,null,null,null,null,null,null,null,null,null,"Lod"]
[null,null,null,null,null,null,null,null,null,null,null,null,"Lod"]
[null,null,null,null,null,null,null,null,null,null,null,null,"Lod"]
[null,null,null,null,null,null,null,null,null,null,null,null,"Lod"]
[null,null,null,null,null,null,null,null,null,null,null,null,"Lod"]
[null,null,null,null,null,null,null,null,null,null,null,null,"Lod"]
[null,null,null,null,null,null,null,null,null,null,null,null,"Lod"]
[null,null,null,null,null,null,null,null,null,null,null,null,"Lod"]
[null,null,null,null,null,null,null,null,null,null,null,null,"Lod"]
[null,null,null,null,null,null,null,null,null,null,null,null,"Lod"]
[null,null,null,null,null,null,null,null,null,null,null,null,"Lod"]
[null,null,null,null,null,null,null,null,null,null,null,null,"Lod"]
[null,null,null,null,null,null,null,null,null,null,null,null,"Lod"]
[null,null,null,null,null,null,null,null,null,null,null,null,"Lod"]
[null,null,null,null,null,null,null,null,null,null,null,null,"Lod"]
[null,null,null,null,null,null,null,null,null,null,null,null,"Lod"]
[null,null,null,null,null,null,null,null,null,null,null,null,"Lod"]
[null,null,null,null,null,null,null,null,null,null,null,null,"Lod"]
[null,null,null,null,null,null,null,null,null,null,null,null,"Lod"]
[null,null,null,null,null,null,null,null,null,null,null,null,"Lod"]
[null,null,null,null,null,null,null,null,null,null,null,null,"Lod"]
[null,null,null,null,null,null,null,null,null,null,null,null,"Lod"]
[null,null,null,null,null,null,null,null,null,null,null,null,"Lod"]
[null,null,null,null,null,null,null,null,null,null,null,null,"Lod"]
[null,null,null,null,null,null,null,null,null,null,null,null,"Lod"]
[null,null,null,null,null,null,null,null,null,null,null,null,"Lod"]
[null,null,null,null,null,null,null,null,null,null,null,null,"Lod"]
[null,null,null,null,null,null,null,null,null,null,null,null,"Lod"]
[null,null,null,null,null,null,null,null,null,null,null,null,"Lod"]
[null,null,null,null,null,null,null,null,null,null,null,null,"Lod"]
[null,null,null,null,null,null,null,null,null,null,null,null,"Lod"]
[null,null,null,null,null,null,null,null,null,null,null,null,"Lod"]
[null,null,null,null,null,null,null,null,null,null,null,null,"Lod"]
[null,null,null,null,null,null,null,null,null,null,null,null,"Lod"]
[null,null,null,null,null,null,null,null,null,null,null,null,"Lod"]
[null,null,null,null,null,null,null,null,null,null,null,null,"Lod"]
[null,null,null,null,null,null,null,null,null,null,null,null,"Lod"]
[null,null,null,null,null,null,null,null,null,null,null,null,"Lod"]
[null,null,null,null,null,null,null,null,null,null,null,null,"Lod"]
[null,null,null,null,null,null,null,null,null,null,null,null,"Lod"]
[null,null,null,null,null,null,null,null,null,null,null,null,"Lod"]
[null,null,null,null,null,null,null,null,null,null,null,null,"Lod"]
[null,null,null,null,null,null,null,null,null,null,null,null,"Lod"]
[null,null,null,null,null,null,null,null,null,null,null,null,"Lod"]
[null,null,null,null,null,null,null,null,null,null,null,null,"Lod"]
[null,null,null,null,null,null,null,null,null,null,null,null,"Lod"]
[null,null,null,null,null,null,null,null,null,null,null,null,"Lod"]
[null,null,null,null,null,null,null,null,null,null,null,null,"Lod"]
[null,null,null,null,null,null,null,null,null,null,null,null,"Lod"]
[null,null,null,null,null,null,null,null,null,null,null,null,"Lod"]
[null,null,null,null,null,null,null,null,null,null,null,null,"Lod"]
[null,null,null,null,null,null,null,null,null,null,null,null,"Lod"]
[null,null,null,null,null,null,null,null,null,null,null,null,"Lod"]
[null,null,null,null,null,null,null,null,null,null,null,null,"Lod"]
[null,null,null,null,null,null,null,null,null,null,null,null,"Lod"]
[null,null,null,null,null,null,null,null,null,null,null,null,"Lod"]
[null,null,null,null,null,null,null,null,null,null,null,null,"Lod"]
[null,null,null,null,null,null,null,null,null,null,null,null,"Lod"]
[null,null,null,null,null,null,null,null,null,null,null,null,"Lod"]
[null,null,null,null,null,null,null,null,null,null,null,null,"Lod"]
[null,null,null,null,null,null,null,null,null,null,null,null,"Lod"]
[null,null,null,null,null,null,null,null,null,null,null,null,"Lod"]
[null,null,null,null,null,null,null,null,null,null,null,null,"Lod"]
[null,null,null,null,null,null,null,null,null,null,null,null,"Lod"]
[null,null,null,null,null,null,null,null,null,null,null,null,"Lod"]
[null,null,null,null,null,null,null,null,null,null,null,null,"Lod"]
[null,null,null,null,null,null,null,null,null,null,null,null,"Lod"]
[null,null,null,null,null,null,null,null,null,null,null,null,"Lod"]
[null,null,null,null,null,null,null,null,null,null,null,null,"Lod"]
[null,null,null,null,null,null,null,null,null,null,null,null,"Lod"]
[null,null,null,null,null,null,null,null,null,null,null,null,"Lod"]
[null,null,null,null,null,null,null,null,null,null,null,null,"Lod"]
[null,null,null,null,null,null,null,null,null,null,null,null,"Lod"]
[null,null,null,null,null,null,null,null,null,null,null,null,"Lod"]
[null,null,null,null,null,null,null,null,null,null,null,null,"Lod"]
[null,null,null,null,null,null,null,null,null,null,null,null,"Lod"]
[null,null,null,null,null,null,null,null,null,null,null,null,"Lod"]
[null,null,null,null,null,null,null,null,null,null,null,null,"Lod"]
[null,null,null,null,null,null,null,null,null,null,null,null,"Lod"]
[null,null,null,null,null,null,null,null,null,null,null,null,"Lod"]
[null,null,null,null,null,null,null,null,null,null,null,null,"Lod"]
[null,null,null,null,null,null,null,null,null,null,null,null,"Lod"]
[null,null,null,null,null,null,null,null,null,null,null,null,"Lod"]
[null,null,null,null,null,null,null,null,null,null,null,null,"Lod"]
[null,null,null,null,null,null,null,null,null,null,null,null,"Lod"]
[null,null,null,null,null,null,null,null,null,null,null,null,"Lod"]
[null,null,null,null,null,null,null,null,null,null,null,null,"Lod"]
[null,null,null,null,null,null,null,null,null,null,null,null,"Lod"]
[null,null,null,null,null,null,null,null,null,null,null,null,"Lod"]
[null,null,null,null,null,null,null,null,null,null,null,null,"Lod"]
[null,null,null,null,null,null,null,null,null,null,null,null,"Lod"]
[null,null,null,null,null,null,null,null,null,null,null,null,"Lod"]
[null,null,null,null,null,null,null,null,null,null,null,null,"Lod"]
[null,null,null,null,null,null,null,null,null,null,null,null,"Lod"]
[null,null,null,null,null,null,null,null,null,null,null,null,"Lod"]
[null,null,null,null,null,null,null,null,null,null,null,null,"Lod"]
[null,null,null,null,null,null,null,null,null,null,null,null,"Lod"]
[null,null,null,null,null,null,null,null,null,null,null,null,"Lod"]
[null,null,null,null,null,null,null,null,null,null,null,null,"Lod"]
[null,null,null,null,null,null,null,null,null,null,null,null,"Lod"]
[null,null,null,null,null,null,null,null,null,null,null,null,"Lod"]
[null,null,null,null,null,null,null,null,null,null,null,null,"Lod"]
[null,null,null,null,null,null,null,null,null,null,null,null,"Lod"]
[null,null,null,null,null,null,null,null,null,null,null,null,"Lod"]
[null,null,null,null,null,null,null,null,null,null,null,null,"Lod"]
[null,null,null,null,null,null,null,null,null,null,null,null,"Lod"]
[null,null,null,null,null,null,null,null,null,null,null,null,"Lod"]
[null,null,null,null,null,null,null,null,null,null,null,null,"Lod"]
[null,null,null,null,null,null,null,null,null,null,null,null,"Lod"]
[null,null,null,null,null,null,null,null,null,null,null,null,"Lod"]
[null,null,null,null,null,null,null,null,null,null,null,null,"Lod"]
[null,null,null,null,null,null,null,null,null,null,null,null,"Lod"]
[null,null,null,null,null,null,null,null,null,null,null,null,"Lod"]
[null,null,null,null,null,null,null,null,null,null,null,null,"Lod"]
[null,null,null,null,null,null,null,null,null,null,null,null,"Lod"]
[null,null,null,null,null,null,null,null,null,null,null,null,"Lod"]
[null,null,null,null,null,null,null,null,null,null,null,null,"Lod"]
[null,null,null,null,null,null,null,null,null,null,null,null,"Lod"]
[null,null,null,null,null,null,null,null,null,null,null,null,"Lod"]
[null,null,null,null,null,null,null,null,null,null,null,null,"Lod"]
[null,null,null,null,null,null,null,null,null,null,null,null,"Lod"]
[null,null,null,null,null,null,null,null,null,null,null,null,"Lod"]
[null,null,null,null,null,null,null,null,null,null,null,null,"Lod"]
[null,null,null,null,null,null,null,null,null,null,null,null,"Lod"]
[null,null,null,null,null,null,null,null,null,null,null,null,"Lod"]
[null,null,null,null,null,null,null,null,null,null,null,null,"Lod"]
[null,null,null,null,null,null,null,null,null,null,null,null,"Lod"]
[null,null,null,null,null,null,null,null,null,null,null,null,"Lod"]
[null,null,null,null,null,null,null,null,null,null,null,null,"Lod"]
[null,null,null,null,null,null,null,null,null,null,null,null,"Lod"]
[null,null,null,null,null,null,null,null,null,null,null,null,"Lod"]
[null,null,null,null,null,null,null,null,null,null,null,null,"Lod"]
[null,null,null,null,null,null,null,null,null,null,null,null,"Lod"]
[null,null,null,null,null,null,null,null,null,null,null,null,"Lod"]
[null,null,null,null,null,null,null,null,null,null,null,null,"Lod"]
[null,null,null,null,null,null,null,null,null,null,null,null,"Lod"]
[null,null,null,null,null,null,null,null,null,null,null,null,"Lod"]
[null,null,null,null,null,null,null,null,null,null,null,null,"Lod"]
[null,null,null,null,null,null,null,null,null,null,null,null,"Lod"]
[null,null,null,null,null,null,null,null,null,null,null,null,"Lod"]
[null,null,null,null,null,null,null,null,null,null,null,null,"Lod"]
[null,null,null,null,null,null,null,null,null,null,null,null,"Lod"]
[null,null,null,null,null,null,null,null,null,null,null,null,"Lod"]
[null,null,null,null,null,null,null,null,null,null,null,null,"Lod"]
[null,null,null,null,null,null,null,null,null,null,null,null,"Lod"]
[null,null,null,null,null,null,null,null,null,null,null,null,"Lod"]
[null,null,null,null,null,null,null,null,null,null,null,null,"Lod"]
[null,null,null,null,null,null,null,null,null,null,null,null,"Lod"]
[null,null,null,null,null,null,null,null,null,null,null,null,"Lod"]
[null,null,null,null,null,null,null,null,null,null,null,null,"Lod"]
[null,null,null,null,null,null,null,null,null,null,null,null,"Lod"]
[null,null,null,null,null,null,null,null,null,null,null,null,"Lod"]
[null,null,null,null,null,null,null,null,null,null,null,null,"Lod"]
[null,null,null,null,null,null,null,null,null,null,null,null,"Lod"]
[null,null,null,null,null,null,null,null,null,null,null,null,"Lod"]
[null,null,null,null,null,null,null,null,null,null,null,null,"Lod"]
[null,null,null,null,null,null,null,null,null,null,null,null,"Lod"]
[null,null,null,null,null,null,null,null,null,null,null,null,"Lod"]
[null,null,null,null,null,null,null,null,null,null,null,null,"Lod"]
[null,null,null,null,null,null,null,null,null,null,null,null,"Lod"]
[null,null,null,null,null,null,null,null,null,null,null,null,"Lod"]
[null,null,null,null,null,null,null,null,null,null,null,null,"Lod"]
[null,null,null,null,null,null,null,null,null,null,null,null,"Lod"]
[null,null,null,null,null,null,null,null,null,null,null,null,"Lod"]
[null,null,null,null,null,null,null,null,null,null,null,null,"Lod"]
[null,null,null,null,null,null,null,null,null,null,null,null,"Lod"]
[null,null,null,null,null,null,null,null,null,null,null,null,"Lod"]
[null,null,null,null,null,null,null,null,null,null,null,null,"Lod"]
[null,null,null,null,null,null,null,null,null,null,null,null,"Lod"]
[null,null,null,null,null,null,null,null,null,null,null,null,"Lod"]
[null,null,null,null,null,null,null,null,null,null,null,null,"Lod"]
[null,null,null,null,null,null,null,null,null,null,null,null,"Lod"]
[null,null,null,null,null,null,null,null,null,null,null,null,"Lod"]
[null,null,null,null,null,null,null,null,null,null,null,null,"Lod"]
[null,null,null,null,null,null,null,null,null,null,null,null,"Lod"]
[null,null,null,null,null,null,null,null,null,null,null,null,"Lod"]
[null,null,null,null,null,null,null,null,null,null,null,null,"Lod"]
[null,null,null,null,null,null,null,null,null,null,null,null,"Lod"]
[null,null,null,null,null,null,null,null,null,null,null,null,"Lod"]
[null,null,null,null,null,null,null,null,null,null,null,null,"Lod"]
[null,null,null,null,null,null,null,null,null,null,null,null,"Lod"]
[null,null,null,null,null,null,null,null,null,null,null,null,"Lod"]
[null,null,null,null,null,null,null,null,null,null,null,null,"Lod"]
[null,null,null,null,null,null,null,null,null,null,null,null,"Lod"]
[null,null,null,null,null,null,null,null,null,null,null,null,"Lod"]
[null,null,null,null,null,null,null,null,null,null,null,null,"Lod"]
[null,null,null,null,null,null,null,null,null,null,null,null,"Lod"]
[null,null,null,null,null,null,null,null,null,null,null,null,"Lod"]
[null,null,null,null,null,null,null,null,null,null,null,null,"Lod"]
[null,null,null,null,null,null,null,null,null,null,null,null,"Lod"]
[null,null,null,null,null,null,null,null,null,null,null,null,"Lod"]
[null,null,null,null,null,null,null,null,null,null,null,null,"Lod"]
[null,null,null,null,null,null,null,null,null,null,null,null,"Lod"]
[null,null,null,null,null,null,null,null,null,null,null,null,"Lod"]
[null,null,null,null,null,null,null,null,null,null,null,null,"Lod"]
[null,null,null,null,null,null,null,null,null,null,null,null,"Lod"]
[null,null,null,null,null,null,null,null,null,null,null,null,"Lod"]
[null,null,null,null,null,null,null,null,null,null,null,null,"Lod"]
[null,null,null,null,null,null,null,null,null,null,null,null,"Lod"]
[null,null,null,null,null,null,null,null,null,null,null,null,"Lod"]
[null,null,null,null,null,null,null,null,null,null,null,null,"Lod"]
[null,null,null,null,null,null,null,null,null,null,null,null,"Lod"]
[null,null,null,null,null,null,null,null,null,null,null,null,"Lod"]
[null,null,null,null,null,null,null,null,null,null,null,null,"Lod"]
[null,null,null,null,null,null,null,null,null,null,null,null,"Lod"]
[null,null,null,null,null,null,null,null,null,null,null,null,"Lod"]
[null,null,null,null,null,null,null,null,null,null,null,null,"Lod"]
[null,null,null,null,null,null,null,null,null,null,null,null,"Lod"]
[null,null,null,null,null,null,null,null,null,null,null,null,"Lod"]
[null,null,null,null,null,null,null,null,null,null,null,null,"Lod"]
[null,null,null,null,null,null,null,null,null,null,null,null,"Lod"]
[null,null,null,null,null,null,null,null,null,null,null,null,"Lod"]
[null,null,null,null,null,null,null,null,null,null,null,null,"Lod"]
[null,null,null,null,null,null,null,null,null,null,null,null,"Lod"]
[null,null,null,null,null,null,null,null,null,null,null,null,"Lod"]
[null,null,null,null,null,null,null,null,null,null,null,null,"Lod"]
[null,null,null,null,null,null,null,null,null,null,null,null,"Lod"]
[null,null,null,null,null,null,null,null,null,null,null,null,"Lod"]
[null,null,null,null,null,null,null,null,null,null,null,null,"Lod"]
[null,null,null,null,null,null,null,null,null,null,null,null,"Lod"]
[null,null,null,null,null,null,null,null,null,null,null,null,"Lod"]
[null,null,null,null,null,null,null,null,null,null,null,null,"Lod"]
[null,null,null,null,null,null,null,null,null,null,null,null,"Lod"]
[null,null,null,null,null,null,null,null,null,null,null,null,"Lod"]
[null,null,null,null,null,null,null,null,null,null,null,null,"Lod"]
[null,null,null,null,null,null,null,null,null,null,null,null,"Lod"]
[null,null,null,null,null,null,null,null,null,null,null,null,"Lod"]
[null,null,null,null,null,null,null,null,null,null,null,null,"Lod"]
[null,null,null,null,null,null,null,null,null,null,null,null,"Lod"]
[null,null,null,null,null,null,null,null,null,null,null,null,"Lod"]
[null,null,null,null,null,null,null,null,null,null,null,null,"Lod"]
[null,null,null,null,null,null,null,null,null,null,null,null,"Lod"]
[null,null,null,null,null,null,null,null,null,null,null,null,"Lod"]
[null,null,null,null,null,null,null,null,null,null,null,null,"Lod"]
[null,null,null,null,null,null,null,null,null,null,null,null,"Lod"]
[null,null,null,null,null,null,null,null,null,null,null,null,"Lod"]
[null,null,null,null,null,null,null,null,null,null,null,null,"Lod"]
[null,null,null,null,null,null,null,null,null,null,null,null,"Lod"]
[null,null,null,null,null,null,null,null,null,null,null,null,"Lod"]
[null,null,null,null,null,null,null,null,null,null,null,null,"Lod"]
[null,null,null,null,null,null,null,null,null,null,null,null,"Lod"]
[null,null,null,null,null,null,null,null,null,null,null,null,"Lod"]
[null,null,null,null,null,null,null,null,null,null,null,null,"Lod"]
[null,null,null,null,null,null,null,null,null,null,null,null,"Lod"]
[null,null,null,null,null,null,null,null,null,null,null,null,"Lod"]
[null,null,null,null,null,null,null,null,null,null,null,null,"Lod"]
[null,null,null,null,null,null,null,null,null,null,null,null,"Lod"]
[null,null,null,null,null,null,null,null,null,null,null,null,"Lod"]
[null,null,null,null,null,null,null,null,null,null,null,null,"Lod"]
[null,null,null,null,null,null,null,null,null,null,null,null,"Lod"]
[null,null,null,null,null,null,null,null,null,null,null,null,"Lod"]
[null,null,null,null,null,null,null,null,null,null,null,null,"Lod"]
[null,null,null,null,null,null,null,null,null,null,null,null,"Lod"]
[null,null,null,null,null,null,null,null,null,null,null,null,"Lod"]
[null,null,null,null,null,null,null,null,null,null,null,null,"Lod"]
[null,null,null,null,null,null,null,null,null,null,null,null,"Lod"]
[null,null,null,null,null,null,null,null,null,null,null,null,"Lod"]
[null,null,null,null,null,null,null,null,null,null,null,null,"Lod"]
[null,null,null,null,null,null,null,null,null,null,null,null,"Lod"]
[null,null,null,null,null,null,null,null,null,null,null,null,"Lod"]
[null,null,null,null,null,null,null,null,null,null,null,null,"Lod"]
[null,null,null,null,null,null,null,null,null,null,null,null,"Lod"]
[null,null,null,null,null,null,null,null,null,null,null,null,"Lod"]
[null,null,null,null,null,null,null,null,null,null,null,null,"Lod"]
[null,null,null,null,null,null,null,null,null,null,null,null,"Lod"]
[null,null,null,null,null,null,null,null,null,null,null,null,"Lod"]
[null,null,null,null,null,null,null,null,null,null,null,null,"Lod"]
[null,null,null,null,null,null,null,null,null,null,null,null,"Lod"]
[null,null,null,null,null,null,null,null,null,null,null,null,"Lod"]
[null,null,null,null,null,null,null,null,null,null,null,null,"Lod"]
[null,null,null,null,null,null,null,null,null,null,null,null,"Lod"]
[null,null,null,null,null,null,null,null,null,null,null,null,"Lod"]
[null,null,null,null,null,null,null,null,null,null,null,null,"Lod"]
[null,null,null,null,null,null,null,null,null,null,null,null,"Lod"]
[null,null,null,null,null,null,null,null,null,null,null,null,"Lod"]
[null,null,null,null,null,null,null,null,null,null,null,null,"Lod"]
[null,null,null,null,null,null,null,null,null,null,null,null,"Lod"]
[null,null,null,null,null,null,null,null,null,null,null,null,"Lod"]
[null,null,null,null,null,null,null,null,null,null,null,null,"Lod"]
[null,null,null,null,null,null,null,null,null,null,null,null,"Lod"]
[null,null,null,null,null,null,null,null,null,null,null,null,"Lod"]
[null,null,null,null,null,null,null,null,null,null,null,null,"Lod"]
[null,null,null,null,null,null,null,null,null,null,null,null,"Lod"]
[null,null,null,null,null,null,null,null,null,null,null,null,"Lod"]
[null,null,null,null,null,null,null,null,null,null,null,null,"Lod"]
[null,null,null,null,null,null,null,null,null,null,null,null,"Lod"]
[null,null,null,null,null,null,null,null,null,null,null,null,"Lod"]
[null,null,null,null,null,null,null,null,null,null,null,null,"Lod"]
[null,null,null,null,null,null,null,null,null,null,null,null,"Lod"]
[null,null,null,null,null,null,null,null,null,null,null,null,"Lod"]
[null,null,null,null,null,null,null,null,null,null,null,null,"Lod"]
[null,null,null,null,null,null,null,null,null,null,null,null,"Lod"]
[null,null,null,null,null,null,null,null,null,null,null,null,"Lod"]
[null,null,null,null,null,null,null,null,null,null,null,null,"Lod"]
[null,null,null,null,null,null,null,null,null,null,null,null,"Lod"]
[null,null,null,null,null,null,null,null,null,null,null,null,"Lod"]
[null,null,null,null,null,null,null,null,null,null,null,null,"Lod"]
[null,null,null,null,null,null,null,null,null,null,null,null,"Lod"]
[null,null,null,null,null,null,null,null,null,null,null,null,"Lod"]
[null,null,null,null,null,null,null,null,null,null,null,null,"Lod"]
[null,null,null,null,null,null,null,null,null,null,null,null,"Lod"]
[null,null,null,null,null,null,null,null,null,null,null,null,"Lod"]
[null,null,null,null,null,null,null,null,null,null,null,null,"Lod"]
[null,null,null,null,null,null,null,null,null,null,null,null,"Lod"]
[null,null,null,null,null,null,null,null,null,null,null,null,"Lod"]
[null,null,null,null,null,null,null,null,null,null,null,null,"Lod"]
[null,null,null,null,null,null,null,null,null,null,null,null,"Lod"]
[null,null,null,null,null,null,null,null,null,null,null,null,"Lod"]
[null,null,null,null,null,null,null,null,null,null,null,null,"Lod"]
[null,null,null,null,null,null,null,null,null,null,null,null,"Lod"]
[null,null,null,null,null,null,null,null,null,null,null,null,"Lod"]
[null,null,null,null,null,null,null,null,null,null,null,null,"Lod"]
[null,null,null,null,null,null,null,null,null,null,null,null,"Lod"]
[null,null,null,null,null,null,null,null,null,null,null,null,"Lod"]
[null,null,null,null,null,null,null,null,null,null,null,null,"Lod"]
[null,null,null,null,null,null,null,null,null,null,null,null,"Lod"]
[null,null,null,null,null,null,null,null,null,null,null,null,"Lod"]
[null,null,null,null,null,null,null,null,null,null,null,null,"Lod"]
[null,null,null,null,null,null,null,null,null,null,null,null,"Lod"]
[null,null,null,null,null,null,null,null,null,null,null,null,"Lod"]
[null,null,null,null,null,null,null,null,null,null,null,null,"Lod"]
[null,null,null,null,null,null,null,null,null,null,null,null,"Lod"]
[null,null,null,null,null,null,null,null,null,null,null,null,"Lod"]
[null,null,null,null,null,null,null,null,null,null,null,null,"Lod"]
[null,null,null,null,null,null,null,null,null,null,null,null,"Lod"]
[null,null,null,null,null,null,null,null,null,null,null,null,"Lod"]
[null,null,null,null,null,null,null,null,null,null,null,null,"Lod"]
[null,null,null,null,null,null,null,null,null,null,null,null,"Lod"]
[null,null,null,null,null,null,null,null,null,null,null,null,"Lod"]
[null,null,null,null,null,null,null,null,null,null,null,null,"Lod"]
[null,null,null,null,null,null,null,null,null,null,null,null,"Lod"]
[null,null,null,null,null,null,null,null,null,null,null,null,"Lod"]
[null,null,null,null,null,null,null,null,null,null,null,null,"Lod"]
[null,null,null,null,null,null,null,null,null,null,null,null,"Lod"]
[null,null,null,null,null,null,null,null,null,null,null,null,"Lod"]
[null,null,null,null,null,null,null,null,null,null,null,null,"Lod"]
[null,null,null,null,null,null,null,null,null,null,null,null,"Lod"]
[null,null,null,null,null,null,null,null,null,null,null,null,"Lod"]
[null,null,null,null,null,null,null,null,null,null,null,null,"Lod"]
[null,null,null,null,null,null,null,null,null,null,null,null,"Lod"]
[null,null,null,null,null,null,null,null,null,null,null,null,"Lod"]
[null,null,null,null,null,null,null,null,null,null,null,null,"Lod"]
[null,null,null,null,null,null,null,null,null,null,null,null,"Lod"]
[null,null,null,null,null,null,null,null,null,null,null,null,"Lod"]
[null,null,null,null,null,null,null,null,null,null,null,null,"Lod"]
[null,null,null,null,null,null,null,null,null,null,null,null,"Lod"]
[null,null,null,null,null,null,null,null,null,null,null,null,"Lod"]
[null,null,null,null,null,null,null,null,null,null,null,null,"Lod"]
[null,null,null,null,null,null,null,null,null,null,null,null,"Lod"]
[null,null,null,null,null,null,null,null,null,null,null,null,"Lod"]
[null,null,null,null,null,null,null,null,null,null,null,null,"Lod"]
[null,null,null,null,null,null,null,null,null,null,null,null,"Lod"]
[null,null,null,null,null,null,null,null,null,null,null,null,"Lod"]
[null,null,null,null,null,null,null,null,null,null,null,null,"Lod"]
[null,null,null,null,null,null,null,null,null,null,null,null,"Lod"]
[null,null,null,null,null,null,null,null,null,null,null,null,"Lod"]
[null,null,null,null,null,null,null,null,null,null,null,null,"Lod"]
[null,null,null,null,null,null,null,null,null,null,null,null,"Lod"]
[null,null,null,null,null,null,null,null,null,null,null,null,"Lod"]
[null,null,null,null,null,null,null,null,null,null,null,null,"Lod"]
[null,null,null,null,null,null,null,null,null,null,null,null,"Lod"]
[null,null,null,null,null,null,null,null,null,null,null,null,"Lod"]
[null,null,null,null,null,null,null,null,null,null,null,null,"Lod"]
[null,null,null,null,null,null,null,null,null,null,null,null,"Lod"]
[null,null,null,null,null,null,null,null,null,null,null,null,"Lod"]
[null,null,null,null,null,null,null,null,null,null,null,null,"Lod"]
[null,null,null,null,null,null,null,null,null,null,null,null,"Lod"]
[null,null,null,null,null,null,null,null,null,null,null,null,"Lod"]
[null,null,null,null,null,null,null,null,null,null,null,null,"Lod"]
[null,null,null,null,null,null,null,null,null,null,null,null,"Lod"]
[null,null,null,null,null,null,null,null,null,null,null,null,"Lod"]
[null,null,null,null,null,null,null,null,null,null,null,null,"Lod"]
[null,null,null,null,null,null,null,null,null,null,null,null,"Lod"]
[null,null,null,null,null,null,null,null,null,null,null,null,"Lod"]
[null,null,null,null,null,null,null,null,null,null,null,null,"Lod"]
[null,null,null,null,null,null,null,null,null,null,null,null,"Lod"]
[null,null,null,null,null,null,null,null,null,null,null,null,"Lod"]
[null,null,null,null,null,null,null,null,null,null,null,null,"Lod"]
[null,null,null,null,null,null,null,null,null,null,null,null,"Lod"]
[null,null,null,null,null,null,null,null,null,null,null,null,"Lod"]
[null,null,null,null,null,null,null,null,null,null,null,null,"Lod"]
[null,null,null,null,null,null,null,null,null,null,null,null,"Lod"]
[null,null,null,null,null,null,null,null,null,null,null,null,"Lod"]
[null,null,null,null,null,null,null,null,null,null,null,null,"Lod"]
[null,null,null,null,null,null,null,null,null,null,null,null,"Lod"]
[null,null,null,null,null,null,null,null,null,null,null,null,"Lod"]
[null,null,null,null,null,null,null,null,null,null,null,null,"Lod"]
[null,null,null,null,null,null,null,null,null,null,null,null,"Lod"]
[null,null,null,null,null,null,null,null,null,null,null,null,"Lod"]
[null,null,null,null,null,null,null,null,null,null,null,null,"Lod"]
[null,null,null,null,null,null,null,null,null,null,null,null,"Lod"]
[null,null,null,null,null,null,null,null,null,null,null,null,"Lod"]
[null,null,null,null,null,null,null,null,null,null,null,null,"Lod"]
[null,null,null,null,null,null,null,null,null,null,null,null,"Lod"]
[null,null,null,null,null,null,null,null,null,null,null,null,"Lod"]
[null,null,null,null,null,null,null,null,null,null,null,null,"Lod"]
[null,null,null,null,null,null,null,null,null,null,null,null,"Lod"]
[null,null,null,null,null,null,null,null,null,null,null,null,"Lod"]
[null,null,null,null,null,null,null,null,null,null,null,null,"Lod"]
[null,null,null,null,null,null,null,null,null,null,null,null,"Lod"]
[null,null,null,null,null,null,null,null,null,null,null,null,"Lod"]
[null,null,null,null,null,null,null,null,null,null,null,null,"Lod"]
[null,null,null,null,null,null,null,null,null,null,null,null,"Lod"]
[null,null,null,null,null,null,null,null,null,null,null,null,"Lod"]
[null,null,null,null,null,null,null,null,null,null,null,null,"Lod"]
[null,null,null,null,null,null,null,null,null,null,null,null,"Lod"]
[null,null,null,null,null,null,null,null,null,null,null,null,"Lod"]
[null,null,null,null,null,null,null,null,null,null,null,null,"Lod"]
[null,null,null,null,null,null,null,null,null,null,null,null,"Lod"]
[null,null,null,null,null,null,null,null,null,null,null,null,"Lod"]
[null,null,null,null,null,null,null,null,null,null,null,null,"Lod"]
[null,null,null,null,null,null,null,null,null,null,null,null,"Lod"]
[null,null,null,null,null,null,null,null,null,null,null,null,"Lod"]
[null,null,null,null,null,null,null,null,null,null,null,null,"Lod"]
[null,null,null,null,null,null,null,null,null,null,null,null,"Lod"]
[null,null,null,null,null,null,null,null,null,null,null,null,"Lod"]
[null,null,null,null,null,null,null,null,null,null,null,null,"Lod"]
[null,null,null,null,null,null,null,null,null,null,null,null,"Lod"]
[null,null,null,null,null,null,null,null,null,null,null,null,"Lod"]
[null,null,null,null,null,null,null,null,null,null,null,null,"Lod"]
[null,null,null,null,null,null,null,null,null,null,null,null,"Lod"]
[null,null,null,null,null,null,null,null,null,null,null,null,"Lod"]
[null,null,null,null,null,null,null,null,null,null,null,null,"Lod"]
[null,null,null,null,null,null,null,null,null,null,null,null,"Lod"]
[null,null,null,null,null,null,null,null,null,null,null,null,"Lod"]
[null,null,null,null,null,null,null,null,null,null,null,null,"Lod"]
[null,null,null,null,null,null,null,null,null,null,null,null,"Lod"]
[null,null,null,null,null,null,null,null,null,null,null,null,"Lod"]
[null,null,null,null,null,null,null,null,null,null,null,null,"Lod"]
[null,null,null,null,null,null,null,null,null,null,null,null,"Lod"]
[null,null,null,null,null,null,null,null,null,null,null,null,"Lod"]
[null,null,null,null,null,null,null,null,null,null,null,null,"Lod"]
[null,null,null,null,null,null,null,null,null,null,null,null,"Lod"]
[null,null,null,null,null,null,null,null,null,null,null,null,"Lod"]
[null,null,null,null,null,null,null,null,null,null,null,null,"Lod"]
[null,null,null,null,null,null,null,null,null,null,null,null,"Lod"]
[null,null,null,null,null,null,null,null,null,null,null,null,"Lod"]
[null,null,null,null,null,null,null,null,null,null,null,null,"Lod"]
[null,null,null,null,null,null,null,null,null,null,null,null,"Lod"]
[null,null,null,null,null,null,null,null,null,null,null,null,"Lod"]
[null,null,null,null,null,null,null,null,null,null,null,null,"Lod"]
[null,null,null,null,null,null,null,null,null,null,null,null,"Lod"]
[null,null,null,null,null,null,null,null,null,null,null,null,"Lod"]
[null,null,null,null,null,null,null,null,null,null,null,null,"Lod"]
[null,null,null,null,null,null,null,null,null,null,null,null,"Lod"]
[null,null,null,null,null,null,null,null,null,null,null,null,"Lod"]
[null,null,null,null,null,null,null,null,null,null,null,null,"Lod"]
[null,null,null,null,null,null,null,null,null,null,null,null,"Lod"]
[null,null,null,null,null,null,null,null,null,null,null,null,"Lod"]
[null,null,null,null,null,null,null,null,null,null,null,null,"Lod"]
[null,null,null,null,null,null,null,null,null,null,null,null,"Lod"]
[null,null,null,null,null,null,null,null,null,null,null,null,"Lod"]
[null,null,null,null,null,null,null,null,null,null,null,null,"Lod"]
[null,null,null,null,null,null,null,null,null,null,null,null,"Lod"]
[null,null,null,null,null,null,null,null,null,null,null,null,"Lod"]
[null,null,null,null,null,null,null,null,null,null,null,null,"Lod"]
[null,null,null,null,null,null,null,null,null,null,null,null,"Lod"]
[null,null,null,null,null,null,null,null,null,null,null,null,"Lod"]
[null,null,null,null,null,null,null,null,null,null,null,null,"Lod"]
[null,null,null,null,null,null,null,null,null,null,null,null,"Lod"]
[null,null,null,null,null,null,null,null,null,null,null,null,"Lod"]
[null,null,null,null,null,null,null,null,null,null,null,null,"Lod"]
[null,null,null,null,null,null,null,null,null,null,null,null,"Lod"]
[null,null,null,null,null,null,null,null,null,null,null,null,"Lod"]
[null,null,null,null,null,null,null,null,null,null,null,null,"Lod"]
[null,null,null,null,null,null,null,null,null,null,null,null,"Lod"]
[null,null,null,null,null,null,null,null,null,null,null,null,"Lod"]
[null,null,null,null,null,null,null,null,null,null,null,null,"Lod"]
[null,null,null,null,null,null,null,null,null,null,null,null,"Lod"]
[null,null,null,null,null,null,null,null,null,null,null,null,"Lod"]
[null,null,null,null,null,null,null,null,null,null,null,null,"Lod"]
[null,null,null,null,null,null,null,null,null,null,null,null,"Lod"]
[null,null,null,null,null,null,null,null,null,null,null,null,"Lod"]
[null,null,null,null,null,null,null,null,null,null,null,null,"Lod"]
[null,null,null,null,null,null,null,null,null,null,null,null,"Lod"]
[null,null,null,null,null,null,null,null,null,null,null,null,"Lod"]
[null,null,null,null,null,null,null,null,null,null,null,null,"Lod"]
[null,null,null,null,null,null,null,null,null,null,null,null,"Lod"]
[null,null,null,null,null,null,null,null,null,null,null,null,"Lod"]
[null,null,null,null,null,null,null,null,null,null,null,null,"Lod"]
[null,null,null,null,null,null,null,null,null,null,null,null,"Lod"]
[null,null,null,null,null,null,null,null,null,null,null,null,"Lod"]
[null,null,null,null,null,null,null,null,null,null,null,null,"Lod"]
[null,null,null,null,null,null,null,null,null,null,null,null,"Lod"]
[null,null,null,null,null,null,null,null,null,null,null,null,"Lod"]
[null,null,null,null,null,null,null,null,null,null,null,null,"Lod"]
[null,null,null,null,null,null,null,null,null,null,null,null,"Lod"]
[null,null,null,null,null,null,null,null,null,null,null,null,"Lod"]
[null,null,null,null,null,null,null,null,null,null,null,null,"Lod"]
[null,null,null,null,null,null,null,null,null,null,null,null,"Lod"]
[null,null,null,null,null,null,null,null,null,null,null,null,"Lod"]
[null,null,null,null,null,null,null,null,null,null,null,null,"Lod"]
[null,null,null,null,null,null,null,null,null,null,null,null,"Lod"]
[null,null,null,null,null,null,null,null,null,null,null,null,"Lod"]
[null,null,null,null,null,null,null,null,null,null,null,null,"Lod"]
[null,null,null,null,null,null,null,null,null,null,null,null,"Lod"]
[null,null,null,null,null,null,null,null,null,null,null,null,"Lod"]
[null,null,null,null,null,null,null,null,null,null,null,null,"Lod"]
[null,null,null,null,null,null,null,null,null,null,null,null,"Lod"]
[null,null,null,null,null,null,null,null,null,null,null,null,"Lod"]
[null,null,null,null,null,null,null,null,null,null,null,null,"Lod"]
[null,null,null,null,null,null,null,null,null,null,null,null,"Lod"]
[null,null,null,null,null,null,null,null,null,null,null,null,"Lod"]
[null,null,null,null,null,null,null,null,null,null,null,null,"Lod"]
[null,null,null,null,null,null,null,null,null,null,null,null,"Lod"]
[null,null,null,null,null,null,null,null,null,null,null,null,"Lod"]
[null,null,null,null,null,null,null,null,null,null,null,null,"Lod"]
[null,null,null,null,null,null,null,null,null,null,null,null,"Lod"]
[null,null,null,null,null,null,null,null,null,null,null,null,"Lod"]
[null,null,null,null,null,null,null,null,null,null,null,null,"Lod"]
[null,null,null,null,null,null,null,null,null,null,null,null,"Lod"]
[null,null,null,null,null,null,null,null,null,null,null,null,"Lod"]
[null,null,null,null,null,null,null,null,null,null,null,null,"Lod"]
[null,null,null,null,null,null,null,null,null,null,null,null,"Lod"]
[null,null,null,null,null,null,null,null,null,null,null,null,"Lod"]
[null,null,null,null,null,null,null,null,null,null,null,null,"Lod"]
[null,null,null,null,null,null,null,null,null,null,null,null,"Lod"]
[null,null,null,null,null,null,null,null,null,null,null,null,"Lod"]
[null,null,null,null,null,null,null,null,null,null,null,null,"Lod"]
[null,null,null,null,null,null,null,null,null,null,null,null,"Lod"]
[null,null,null,null,null,null,null,null,null,null,null,null,"Lod"]
[null,null,null,null,null,null,null,null,null,null,null,null,"Lod"]
[null,null,null,null,null,null,null,null,null,null,null,null,"Lod"]
[null,null,null,null,null,null,null,null,null,null,null,null,"Lod"]
[null,null,null,null,null,null,null,null,null,null,null,null,"Lod"]
[null,null,null,null,null,null,null,null,null,null,null,null,"Lod"]
[null,null,null,null,null,null,null,null,null,null,null,null,"Lod"]
[null,null,null,null,null,null,null,null,null,null,null,null,"Lod"]
[null,null,null,null,null,null,null,null,null,null,null,null,"Lod"]
[null,null,null,null,null,null,null,null,null,null,null,null,"Lod"]
[null,null,null,null,null,null,null,null,null,null,null,null,"Lod"]
[null,null,null,null,null,null,null,null,null,null,null,null,"Lod"]
[null,null,null,null,null,null,null,null,null,null,null,null,"Lod"]
[null,null,null,null,null,null,null,null,null,null,null,null,"Lod"]
[null,null,null,null,null,null,null,null,null,null,null,null,"Lod"]
[null,null,null,null,null,null,null,null,null,null,null,null,"Lod"]
[null,null,null,null,null,null,null,null,null,null,null,null,"Lod"]
[null,null,null,null,null,null,null,null,null,null,null,null,"Lod"]
[null,null,null,null,null,null,null,null,null,null,null,null,"Lod"]
[null,null,null,null,null,null,null,null,null,null,null,null,"Lod"]
[null,null,null,null,null,null,null,null,null,null,null,null,"Lod"]
[null,null,null,null,null,null,null,null,null,null,null,null,"Lod"]
[null,null,null,null,null,null,null,null,null,null,null,null,"Lod"]
[null,null,null,null,null,null,null,null,null,null,null,null,"Lod"]
[null,null,null,null,null,null,null,null,null,null,null,null,"Lod"]
[null,null,null,null,null,null,null,null,null,null,null,null,"Lod"]
[null,null,null,null,null,null,null,null,null,null,null,null,"Lod"]
[null,null,null,null,null,null,null,null,null,null,null,null,"Lod"]
[null,null,null,null,null,null,null,null,null,null,null,null,"Lod"]
[null,null,null,null,null,null,null,null,null,null,null,null,"Lod"]
[null,null,null,null,null,null,null,null,null,null,null,null,"Lod"]
[null,null,null,null,null,null,null,null,null,null,null,null,"Lod"]
[null,null,null,null,null,null,null,null,null,null,null,null,"Lod"]
[null,null,null,null,null,null,null,null,null,null,null,null,"Lod"]
[null,null,null,null,null,null,null,null,null,null,null,null,"Lod"]
[null,null,null,null,null,null,null,null,null,null,null,null,"Lod"]
[null,null,null,null,null,null,null,null,null,null,null,null,"Lod"]
[null,null,null,null,null,null,null,null,null,null,null,null,"Lod"]
[null,null,null,null,null,null,null,null,null,null,null,null,"Lod"]
[null,null,null,null,null,null,null,null,null,null,null,null,"Lod"]
[null,null,null,null,null,null,null,null,null,null,null,null,"Lod"]
[null,null,null,null,null,null,null,null,null,null,null,null,"Lod"]
[null,null,null,null,null,null,null,null,null,null,null,null,"Lod"]
[null,null,null,null,null,null,null,null,null,null,null,null,"Lod"]
[null,null,null,null,null,null,null,null,null,null,null,null,"Lod"]
[null,null,null,null,null,null,null,null,null,null,null,null,"Lod"]
[null,null,null,null,null,null,null,null,null,null,null,null,"Lod"]
[null,null,null,null,null,null,null,null,null,null,null,null,"Lod"]
[null,null,null,null,null,null,null,null,null,null,null,null,"Lod"]
[null,null,null,null,null,null,null,null,null,null,null,null,"Lod"]
[null,null,null,null,null,null,null,null,null,null,null,null,"Lod"]
[null,null,null,null,null,null,null,null,null,null,null,null,"Lod"]
[null,null,null,null,null,null,null,null,null,null,null,null,"Lod"]
[null,null,null,null,null,null,null,null,null,null,null,null,"Lod"]
[null,null,null,null,null,null,null,null,null,null,null,null,"Lod"]
[null,null,null,null,null,null,null,null,null,null,null,null,"Lod"]
[null,null,null,null,null,null,null,null,null,null,null,null,"Lod"]
[null,null,null,null,null,null,null,null,null,null,null,null,"Lod"]
[null,null,null,null,null,null,null,null,null,null,null,null,"Lod"]
[null,null,null,null,null,null,null,null,null,null,null,null,"Lod"]
[null,null,null,null,null,null,null,null,null,null,null,null,"Lod"]
[null,null,null,null,null,null,null,null,null,null,null,null,"Lod"]
[null,null,null,null,null,null,null,null,null,null,null,null,"Lod"]
[null,null,null,null,null,null,null,null,null,null,null,null,"Lod"]
[null,null,null,null,null,null,null,null,null,null,null,null,"Lod"]
[null,null,null,null,null,null,null,null,null,null,null,null,"Lod"]
[null,null,null,null,null,null,null,null,null,null,null,null,"Lod"]
[null,null,null,null,null,null,null,null,null,null,null,null,"Lod"]
[null,null,null,null,null,null,null,null,null,null,null,null,"Lod"]
[null,null,null,null,null,null,null,null,null,null,null,null,"Lod"]
[null,null,null,null,null,null,null,null,null,null,null,null,"Lod"]
[null,null,null,null,null,null,null,null,null,null,null,null,"Lod"]
[null,null,null,null,null,null,null,null,null,null,null,null,"Lod"]
[null,null,null,null,null,null,null,null,null,null,null,null,"Lod"]
[null,null,null,null,null,null,null,null,null,null,null,null,"Lod"]
[null,null,null,null,null,null,null,null,null,null,null,null,"Lod"]
[null,null,null,null,null,null,null,null,null,null,null,null,"Lod"]
[null,null,null,null,null,null,null,null,null,null,null,null,"Lod"]
[null,null,null,null,null,null,null,null,null,null,null,null,"Lod"]
[null,null,null,null,null,null,null,null,null,null,null,null,"Lod"]
[null,null,null,null,null,null,null,null,null,null,null,null,"Lod"]
[null,null,null,null,null,null,null,null,null,null,null,null,"Lod"]
[null,null,null,null,null,null,null,null,null,null,null,null,"Lod"]
[null,null,null,null,null,null,null,null,null,null,null,null,"Lod"]
[null,null,null,null,null,null,null,null,null,null,null,null,"Lod"]
[null,null,null,null,null,null,null,null,null,null,null,null,"Lod"]
[null,null,null,null,null,null,null,null,null,null,null,null,"Lod"]
[null,null,null,null,null,null,null,null,null,null,null,null,"Lod"]
[null,null,null,null,null,null,null,null,null,null,null,null,"Lod"]
[null,null,null,null,null,null,null,null,null,null,null,null,"Lod"]
[null,null,null,null,null,null,null,null,null,null,null,null,"Lod"]
[null,null,null,null,null,null,null,null,null,null,null,null,"Lod"]
[null,null,null,null,null,null,null,null,null,null,null,null,"Lod"]
[null,null,null,null,null,null,null,null,null,null,null,null,"Lod"]
[null,null,null,null,null,null,null,null,null,null,null,null,"Lod"]
[null,null,null,null,null,null,null,null,null,null,null,null,"Lod"]
[null,null,null,null,null,null,null,null,null,null,null,null,"Lod"]
[null,null,null,null,null,null,null,null,null,null,null,null,"Lod"]
[null,null,null,null,null,null,null,null,null,null,null,null,"Lod"]
[null,null,null,null,null,null,null,null,null,null,null,null,"Lod"]
[null,null,null,null,null,null,null,null,null,null,null,null,"Lod"]
[null,null,null,null,null,null,null,null,null,null,null,null,"Lod"]
[null,null,null,null,null,null,null,null,null,null,null,null,"Lod"]
[null,null,null,null,null,null,null,null,null,null,null,null,"Lod"]
[null,null,null,null,null,null,null,null,null,null,null,null,"Lod"]
[null,null,null,null,null,null,null,null,null,null,null,null,"Lod"]
[null,null,null,null,null,null,null,null,null,null,null,null,"Lod"]
[null,null,null,null,null,null,null,null,null,null,null,null,"Lod"]
[null,null,null,null,null,null,null,null,null,null,null,null,"Lod"]
[null,null,null,null,null,null,null,null,null,null,null,null,"Lod"]
[null,null,null,null,null,null,null,null,null,null,null,null,"Lod"]
[null,null,null,null,null,null,null,null,null,null,null,null,"Lod"]
[null,null,null,null,null,null,null,null,null,null,null,null,"Lod"]
[null,null,null,null,null,null,null,null,null,null,null,null,"Lod"]
[null,null,null,null,null,null,null,null,null,null,null,null,"Lod"]
[null,null,null,null,null,null,null,null,null,null,null,null,"Lod"]
[null,null,null,null,null,null,null,null,null,null,null,null,"Lod"]
[null,null,null,null,null,null,null,null,null,null,null,null,"Lod"]
[null,null,null,null,null,null,null,null,null,null,null,null,"Lod"]
[null,null,null,null,null,null,null,null,null,null,null,null,"Lod"]
[null,null,null,null,null,null,null,null,null,null,null,null,"Lod"]
[null,null,null,null,null,null,null,null,null,null,null,null,"Lod"]
[null,null,null,null,null,null,null,null,null,null,null,null,"Lod"]
[null,null,null,null,null,null,null,null,null,null,null,null,"Lod"]
[null,null,null,null,null,null,null,null,null,null,null,null,"Lod"]
[null,null,null,null,null,null,null,null,null,null,null,null,"Lod"]
[null,null,null,null,null,null,null,null,null,null,null,null,"Lod"]
[null,null,null,null,null,null,null,null,null,null,null,null,"Lod"]
[null,null,null,null,null,null,null,null,null,null,null,null,"Lod"]
[null,null,null,null,null,null,null,null,null,null,null,null,"Lod"]
[null,null,null,null,null,null,null,null,null,null,null,null,"Lod"]
[null,null,null,null,null,null,null,null,null,null,null,null,"Lod"]
[null,null,null,null,null,null,null,null,null,null,null,null,"Lod"]
[null,null,null,null,null,null,null,null,null,null,null,null,"Lod"]
[null,null,null,null,null,null,null,null,null,null,null,null,"Lod"]
[null,null,null,null,null,null,null,null,null,null,null,null,"Lod"]
[null,null,null,null,null,null,null,null,null,null,null,null,"Lod"]
[null,null,null,null,null,null,null,null,null,null,null,null,"Lod"]
[null,null,null,null,null,null,null,null,null,null,null,null,"Lod"]
[null,null,null,null,null,null,null,null,null,null,null,null,"Lod"]
[null,null,null,null,null,null,null,null,null,null,null,null,"Lod"]
[null,null,null,null,null,null,null,null,null,null,null,null,"Lod"]
[null,null,null,null,null,null,null,null,null,null,null,null,"Lod"]
[null,null,null,null,null,null,null,null,null,null,null,null,"Lod"]
[null,null,null,null,null,null,null,null,null,null,null,null,"Lod"]
[null,null,null,null,null,null,null,null,null,null,null,null,"Lod"]
[null,null,null,null,null,null,null,null,null,null,null,null,"Lod"]
[null,null,null,null,null,null,null,null,null,null,null,null,"Lod"]
[null,null,null,null,null,null,null,null,null,null,null,null,"Lod"]
[null,null,null,null,null,null,null,null,null,null,null,null,"Lod"]
[null,null,null,null,null,null,null,null,null,null,null,null,"Lod"]
[null,null,null,null,null,null,null,null,null,null,null,null,"Lod"]
[null,null,null,null,null,null,null,null,null,null,null,null,"Lod"]
[null,null,null,null,null,null,null,null,null,null,null,null,"Lod"]
[null,null,null,null,null,null,null,null,null,null,null,null,"Lod"]
[null,null,null,null,null,null,null,null,null,null,null,null,"Lod"]
[null,null,null,null,null,null,null,null,null,null,null,null,"Lod"]
[null,null,null,null,null,null,null,null,null,null,null,null,"Lod"]
[null,null,null,null,null,null,null,null,null,null,null,null,"Lod"]
[null,null,null,null,null,null,null,null,null,null,null,null,"Lod"]
[null,null,null,null,null,null,null,null,null,null,null,null,"Lod"]
[null,null,null,null,null,null,null,null,null,null,null,null,"Lod"]
[null,null,null,null,null,null,null,null,null,null,null,null,"Lod"]
[null,null,null,null,null,null,null,null,null,null,null,null,"Lod"]
[null,null,null,null,null,null,null,null,null,null,null,null,"Lod"]
[null,null,null,null,null,null,null,null,null,null,null,null,"Lod"]
[null,null,null,null,null,null,null,null,null,null,null,null,"Lod"]
[null,null,null,null,null,null,null,null,null,null,null,null,"Lod"]
[null,null,null,null,null,null,null,null,null,null,null,null,"Lod"]
[null,null,null,null,null,null,null,null,null,null,null,null,"Lod"]
[null,null,null,null,null,null,null,null,null,null,null,null,"Lod"]
[null,null,null,null,null,null,null,null,null,null,null,null,"Lod"]
[null,null,null,null,null,null,null,null,null,null,null,null,"Lod"]
[null,null,null,null,null,null,null,null,null,null,null,null,"Lod"]
[null,null,null,null,null,null,null,null,null,null,null,null,"Lod"]
[null,null,null,null,null,null,null,null,null,null,null,null,"Lod"]
[null,null,null,null,null,null,null,null,null,null,null,null,"Lod"]
[null,null,null,null,null,null,null,null,null,null,null,null,"Lod"]
[null,null,null,null,null,null,null,null,null,null,null,null,"Lod"]
[null,null,null,null,null,null,null,null,null,null,null,null,"Lod"]
[null,null,null,null,null,null,null,null,null,null,null,null,"Lod"]
[null,null,null,null,null,null,null,null,null,null,null,null,"Lod"]
[null,null,null,null,null,null,null,null,null,null,null,null,"Lod"]
[null,null,null,null,null,null,null,null,null,null,null,null,"Lod"]
[null,null,null,null,null,null,null,null,null,null,null,null,"Lod"]
[null,null,null,null,null,null,null,null,null,null,null,null,"Lod"]
[null,null,null,null,null,null,null,null,null,null,null,null,"Lod"]
[null,null,null,null,null,null,null,null,null,null,null,null,"Lod"]
[null,null,null,null,null,null,null,null,null,null,null,null,"Lod"]
[null,null,null,null,null,null,null,null,null,null,null,null,"Lod"]
[null,null,null,null,null,null,null,null,null,null,null,null,"Lod"]
[null,null,null,null,null,null,null,null,null,null,null,null,"Lod"]
[null,null,null,null,null,null,null,null,null,null,null,null,"Lod"]
[null,null,null,null,null,null,null,null,null,null,null,null,"Lod"]
[null,null,null,null,null,null,null,null,null,null,null,null,"Lod"]
[null,null,null,null,null,null,null,null,null,null,null,null,"Lod"]
[null,null,null,null,null,null,null,null,null,null,null,null,"Lod"]
[null,null,null,null,null,null,null,null,null,null,null,null,"Lod"]
[null,null,null,null,null,null,null,null,null,null,null,null,"Lod"]
[null,null,null,null,null,null,null,null,null,null,null,null,"Lod"]
[null,null,null,null,null,null,null,null,null,null,null,null,"Lod"]
[null,null,null,null,null,null,null,null,null,null,null,null,"Lod"]
[null,null,null,null,null,null,null,null,null,null,null,null,"Lod"]
[null,null,null,null,null,null,null,null,null,null,null,null,"Lod"]
[null,null,null,null,null,null,null,null,null,null,null,null,"Lod"]
[null,null,null,null,null,null,null,null,null,null,null,null,"Lod"]
[null,null,null,null,null,null,null,null,null,null,null,null,"Lod"]
[null,null,null,null,null,null,null,null,null,null,null,null,"Lod"]
[null,null,null,null,null,null,null,null,null,null,null,null,"Lod"]
[null,null,null,null,null,null,null,null,null,null,null,null,"Lod"]
[null,null,null,null,null,null,null,null,null,null,null,null,"Lod"]
[null,null,null,null,null,null,null,null,null,null,null,null,"Lod"]
[null,null,null,null,null,null,null,null,null,null,null,null,"Lod"]
[null,null,null,null,null,null,null,null,null,null,null,null,"Lod"]
[null,null,null,null,null,null,null,null,null,null,null,null,"Lod"]
[null,null,null,null,null,null,null,null,null,null,null,null,"Lod"]
[null,null,null,null,null,null,null,null,null,null,null,null,"Lod"]
[null,null,null,null,null,null,null,null,null,null,null,null,"Lod"]
[null,null,null,null,null,null,null,null,null,null,null,null,"Lod"]
[null,null,null,null,null,null,null,null,null,null,null,null,"Lod"]
[null,null,null,null,null,null,null,null,null,null,null,null,"Lod"]
[null,null,null,null,null,null,null,null,null,null,null,null,"Lod"]
[null,null,null,null,null,null,null,null,null,null,null,null,"Lod"]
[null,null,null,null,null,null,null,null,null,null,null,null,"Lod"]
[null,null,null,null,null,null,null,null,null,null,null,null,"Lod"]
[null,null,null,null,null,null,null,null,null,null,null,null,"Lod"]
[null,null,null,null,null,null,null,null,null,null,null,null,"Lod"]
[null,null,null,null,null,null,null,null,null,null,null,null,"Lod"]
[null,null,null,null,null,null,null,null,null,null,null,null,"Lod"]
[null,null,null,null,null,null,null,null,null,null,null,null,"Lod"]
[null,null,null,null,null,null,null,null,null,null,null,null,"Lod"]
[null,null,null,null,null,null,null,null,null,null,null,null,"Lod"]
[null,null,null,null,null,null,null,null,null,null,null,null,"Lod"]
[null,null,null,null,null,null,null,null,null,null,null,null,"Lod"]
[null,null,null,null,null,null,null,null,null,null,null,null,"Lod"]
[null,null,null,null,null,null,null,null,null,null,null,null,"Lod"]
[null,null,null,null,null,null,null,null,null,null,null,null,"Lod"]
[null,null,null,null,null,null,null,null,null,null,null,null,"Lod"]
[null,null,null,null,null,null,null,null,null,null,null,null,"Lod"]
[null,null,null,null,null,null,null,null,null,null,null,null,"Lod"]
[null,null,null,null,null,null,null,null,null,null,null,null,"Lod"]
[null,null,null,null,null,null,null,null,null,null,null,null,"Lod"]
[null,null,null,null,null,null,null,null,null,null,null,null,"Lod"]
[null,null,null,null,null,null,null,null,null,null,null,null,"Lod"]
[null,null,null,null,null,null,null,null,null,null,null,null,"Lod"]
[null,null,null,null,null,null,null,null,null,null,null,null,"Lod"]
[null,null,null,null,null,null,null,null,null,null,null,null,"Lod"]
[null,null,null,null,null,null,null,null,null,null,null,null,"Lod"]
[null,null,null,null,null,null,null,null,null,null,null,null,"Lod"]
[null,null,null,null,null,null,null,null,null,null,null,null,"Lod"]
[null,null,null,null,null,null,null,null,null,null,null,null,"Lod"]
[null,null,null,null,null,null,null,null,null,null,null,null,"Lod"]
[null,null,null,null,null,null,null,null,null,null,null,null,"Lod"]
[null,null,null,null,null,null,null,null,null,null,null,null,"Lod"]
[null,null,null,null,null,null,null,null,null,null,null,null,"Lod"]
[null,null,null,null,null,null,null,null,null,null,null,null,"Lod"]
[null,null,null,null,null,null,null,null,null,null,null,null,"Lod"]
[null,null,null,null,null,null,null,null,null,null,null,null,"Lod"]
[null,null,null,null,null,null,null,null,null,null,null,null,"Lod"]
[null,null,null,null,null,null,null,null,null,null,null,null,"Lod"]
[null,null,null,null,null,null,null,null,null,null,null,null,"Lod"]
[null,null,null,null,null,null,null,null,null,null,null,null,"Lod"]
[null,null,null,null,null,null,null,null,null,null,null,null,"Lod"]
[null,null,null,null,null,null,null,null,null,null,null,null,"Lod"]
[null,null,null,null,null,null,null,null,null,null,null,null,"Lod"]
[null,null,null,null,null,null,null,null,null,null,null,null,"Lod"]
[null,null,null,null,null,null,null,null,null,null,null,null,"Lod"]
[null,null,null,null,null,null,null,null,null,null,null,null,"Lod"]
[null,null,null,null,null,null,null,null,null,null,null,null,"Lod"]
[null,null,null,null,null,null,null,null,null,null,null,null,"Lod"]
[null,null,null,null,null,null,null,null,null,null,null,null,"Lod"]
[null,null,null,null,null,null,null,null,null,null,null,null,"Lod"]
[null,null,null,null,null,null,null,null,null,null,null,null,"Lod"]
[null,null,null,null,null,null,null,null,null,null,null,null,"Lod"]
[null,null,null,null,null,null,null,null,null,null,null,null,"Lod"]
[null,null,null,null,null,null,null,null,null,null,null,null,"Lod"]
[null,null,null,null,null,null,null,null,null,null,null,null,"Lod"]
[null,null,null,null,null,null,null,null,null,null,null,null,"Lod"]
[null,null,null,null,null,null,null,null,null,null,null,null,"Lod"]
[null,null,null,null,null,null,null,null,null,null,null,null,"Lod"]
[null,null,null,null,null,null,null,null,null,null,null,null,"Lod"]
[null,null,null,null,null,null,null,null,null,null,null,null,"Lod"]
[null,null,null,null,null,null,null,null,null,null,null,null,"Lod"]
[null,null,null,null,null,null,null,null,null,null,null,null,"Lod"]
[null,null,null,null,null,null,null,null,null,null,null,null,"Lod"]
[null,null,null,null,null,null,null,null,null,null,null,null,"Lod"]
[null,null,null,null,null,null,null,null,null,null,null,null,"Lod"]
[null,null,null,null,null,null,null,null,null,null,null,null,"Lod"]
[null,null,null,null,null,null,null,null,null,null,null,null,"Lod"]
[null,null,null,null,null,null,null,null,null,null,null,null,"Lod"]
[null,null,null,null,null,null,null,null,null,null,null,null,"Lod"]
[null,null,null,null,null,null,null,null,null,null,null,null,"Lod"]
[null,null,null,null,null,null,null,null,null,null,null,null,"Lod"]
[null,null,null,null,null,null,null,null,null,null,null,null,"Lod"]
[null,null,null,null,null,null,null,null,null,null,null,null,"Lod"]
[null,null,null,null,null,null,null,null,null,null,null,null,"Lod"]
[null,null,null,null,null,null,null,null,null,null,null,null,"Lod"]
[null,null,null,null,null,null,null,null,null,null,null,null,"Lod"]
[null,null,null,null,null,null,null,null,null,null,null,null,"Lod"]
[null,null,null,null,null,null,null,null,null,null,null,null,"Lod"]
[null,null,null,null,null,null,null,null,null,null,null,null,"Lod"]
[null,null,null,null,null,null,null,null,null,null,null,null,"Lod"]
[null,null,null,null,null,null,null,null,null,null,null,null,"Lod"]
[null,null,null,null,null,null,null,null,null,null,null,null,"Lod"]
[null,null,null,null,null,null,null,null,null,null,null,null,"Lod"]
[null,null,null,null,null,null,null,null,null,null,null,null,"Lod"]
[null,null,null,null,null,null,null,null,null,null,null,null,"Lod"]
[null,null,null,null,null,null,null,null,null,null,null,null,"Lod"]
[null,null,null,null,null,null,null,null,null,null,null,null,"Lod"]
[null,null,null,null,null,null,null,null,null,null,null,null,"Lod"]
[null,null,null,null,null,null,null,null,null,null,null,null,"Lod"]
[null,null,null,null,null,null,null,null,null,null,null,null,"Lod"]
[null,null,null,null,null,null,null,null,null,null,null,null,"Lod"]
[null,null,null,null,null,null,null,null,null,null,null,null,"Lod"]
[null,null,null,null,null,null,null,null,null,null,null,null,"Lod"]
[null,null,null,null,null,null,null,null,null,null,null,null,"Lod"]
[null,null,null,null,null,null,null,null,null,null,null,null,"Lod"]
[null,null,null,null,null,null,null,null,null,null,null,null,"Lod"]
[null,null,null,null,null,null,null,null,null,null,null,null,"Lod"]
[null,null,null,null,null,null,null,null,null,null,null,null,"Lod"]
[null,null,null,null,null,null,null,null,null,null,null,null,"Lod"]
[null,null,null,null,null,null,null,null,null,null,null,null,"Lod"]
[null,null,null,null,null,null,null,null,null,null,null,null,"Lod"]
[null,null,null,null,null,null,null,null,null,null,null,null,"Lod"]
[null,null,null,null,null,null,null,null,null,null,null,null,"Lod"]
[null,null,null,null,null,null,null,null,null,null,null,null,"Lod"]
[null,null,null,null,null,null,null,null,null,null,null,null,"Lod"]
[null,null,null,null,null,null,null,null,null,null,null,null,"Lod"]
[null,null,null,null,null,null,null,null,null,null,null,null,"Lod"]
[null,null,null,null,null,null,null,null,null,null,null,null,"Lod"]
[null,null,null,null,null,null,null,null,null,null,null,null,"Lod"]
[null,null,null,null,null,null,null,null,null,null,null,null,"Lod"]
[null,null,null,null,null,null,null,null,null,null,null,null,"Lod"]
[null,null,null,null,null,null,null,null,null,null,null,null,"Lod"]
[null,null,null,null,null,null,null,null,null,null,null,null,"Lod"]
[null,null,null,null,null,null,null,null,null,null,null,null,"Lod"]
[null,null,null,null,null,null,null,null,null,null,null,null,"Lod"]
[null,null,null,null,null,null,null,null,null,null,null,null,"Lod"]
[null,null,null,null,null,null,null,null,null,null,null,null,"Lod"]
[null,null,null,null,null,null,null,null,null,null,null,null,"Lod"]
[null,null,null,null,null,null,null,null,null,null,null,null,"Lod"]
[null,null,null,null,null,null,null,null,null,null,null,null,"Lod"]
[null,null,null,null,null,null,null,null,null,null,null,null,"Lod"]
[null,null,null,null,null,null,null,null,null,null,null,null,"Lod"]
[null,null,null,null,null,null,null,null,null,null,null,null,"Lod"]
[null,null,null,null,null,null,null,null,null,null,null,null,"Lod"]
[null,null,null,null,null,null,null,null,null,null,null,null,"Lod"]
[null,null,null,null,null,null,null,null,null,null,null,null,"Lod"]
[null,null,null,null,null,null,null,null,null,null,null,null,"Lod"]
[null,null,null,null,null,null,null,null,null,null,null,null,"Lod"]
[null,null,null,null,null,null,null,null,null,null,null,null,"Lod"]
[null,null,null,null,null,null,null,null,null,null,null,null,"Lod"]
[null,null,null,null,null,null,null,null,null,null,null,null,"Lod"]
[null,null,null,null,null,null,null,null,null,null,null,null,"Lod"]
[null,null,null,null,null,null,null,null,null,null,null,null,"Lod"]
[null,null,null,null,null,null,null,null,null,null,null,null,"Lod"]
[null,null,null,null,null,null,null,null,null,null,null,null,"Lod"]
[null,null,null,null,null,null,null,null,null,null,null,null,"Lod"]
[null,null,null,null,null,null,null,null,null,null,null,null,"Lod"]
[null,null,null,null,null,null,null,null,null,null,null,null,"Lod"]
[null,null,null,null,null,null,null,null,null,null,null,null,"Lod"]
[null,null,null,null,null,null,null,null,null,null,null,null,"Lod"]
[null,null,null,null,null,null,null,null,null,null,null,null,"Lod"]
[null,null,null,null,null,null,null,null,null,null,null,null,"Lod"]
[null,null,null,null,null,null,null,null,null,null,null,null,"Lod"]
[null,null,null,null,null,null,null,null,null,null,null,null,"Lod"]
[null,null,null,null,null,null,null,null,null,null,null,null,"Lod"]
[null,null,null,null,null,null,null,null,null,null,null,null,"Lod"]
[null,null,null,null,null,null,null,null,null,null,null,null,"Lod"]
[null,null,null,null,null,null,null,null,null,null,null,null,"Lod"]
[null,null,null,null,null,null,null,null,null,null,null,null,"Lod"]
[null,null,null,null,null,null,null,null,null,null,null,null,"Lod"]
[null,null,null,null,null,null,null,null,null,null,null,null,"Lod"]
[null,null,null,null,null,null,null,null,null,null,null,null,"Lod"]
[null,null,null,null,null,null,null,null,null,null,null,null,"Lod"]
[null,null,null,null,null,null,null,null,null,null,null,null,"Lod"]
[null,null,null,null,null,null,null,null,null,null,null,null,"Lod"]
[null,null,null,null,null,null,null,null,null,null,null,null,"Lod"]
[null,null,null,null,null,null,null,null,null,null,null,null,"Lod"]
[null,null,null,null,null,null,null,null,null,null,null,null,"Lod"]
[null,null,null,null,null,null,null,null,null,null,null,null,"Lod"]
[null,null,null,null,null,null,null,null,null,null,null,null,"Lod"]
[null,null,null,null,null,null,null,null,null,null,null,null,"Lod"]
[null,null,null,null,null,null,null,null,null,null,null,null,"Lod"]
[null,null,null,null,null,null,null,null,null,null,null,null,"Lod"]
[null,null,null,null,null,null,null,null,null,null,null,null,"Lod"]
[null,null,null,null,null,null,null,null,null,null,null,null,"Lod"]
[null,null,null,null,null,null,null,null,null,null,null,null,"Lod"]
[null,null,null,null,null,null,null,null,null,null,null,null,"Lod"]
[null,null,null,null,null,null,null,null,null,null,null,null,"Lod"]
[null,null,null,null,null,null,null,null,null,null,null,null,"Lod"]
[null,null,null,null,null,null,null,null,null,null,null,null,"Lod"]
[null,null,null,null,null,null,null,null,null,null,null,null,"Lod"]
[null,null,null,null,null,null,null,null,null,null,null,null,"Lod"]
[null,null,null,null,null,null,null,null,null,null,null,null,"Lod"]
[null,null,null,null,null,null,null,null,null,null,null,null,"Lod"]
[null,null,null,null,null,null,null,null,null,null,null,null,"Lod"]
[null,null,null,null,null,null,null,null,null,null,null,null,"Lod"]
[null,null,null,null,null,null,null,null,null,null,null,null,"Lod"]
[null,null,null,null,null,null,null,null,null,null,null,null,"Lod"]
[null,null,null,null,null,null,null,null,null,null,null,null,"Lod"]
[null,null,null,null,null,null,null,null,null,null,null,null,"Lod"]
[null,null,null,null,null,null,null,null,null,null,null,null,"Lod"]
[null,null,null,null,null,null,null,null,null,null,null,null,"Lod"]
[null,null,null,null,null,null,null,null,null,null,null,null,"Lod"]
[null,null,null,null,null,null,null,null,null,null,null,null,"Lod"]
[null,null,null,null,null,null,null,null,null,null,null,null,"Lod"]
[null,null,null,null,null,null,null,null,null,null,null,null,"Lod"]
[null,null,null,null,null,null,null,null,null,null,null,null,"Lod"]
[null,null,null,null,null,null,null,null,null,null,null,null,"Lod"]
[null,null,null,null,null,null,null,null,null,null,null,null,"Lod"]
[null,null,null,null,null,null,null,null,null,null,null,null,"Lod"]
[null,null,null,null,null,null,null,null,null,null,null,null,"Lod"]
[null,null,null,null,null,null,null,null,null,null,null,null,"Lod"]
[null,null,null,null,null,null,null,null,null,null,null,null,"Lod"]
[null,null,null,null,null,null,null,null,null,null,null,null,"Lod"]
[null,null,null,null,null,null,null,null,null,null,null,null,"Lod"]
[null,null,null,null,null,null,null,null,null,null,null,null,"Lod"]
[null,null,null,null,null,null,null,null,null,null,null,null,"Lod"]
[null,null,null,null,null,null,null,null,null,null,null,null,"Lod"]
[null,null,null,null,null,null,null,null,null,null,null,null,"Lod"]
[null,null,null,null,null,null,null,null,null,null,null,null,"Lod"]
[null,null,null,null,null,null,null,null,null,null,null,null,"Lod"]
[null,null,null,null,null,null,null,null,null,null,null,null,"Lod"]
[null,null,null,null,null,null,null,null,null,null,null,null,"Lod"]
[null,null,null,null,null,null,null,null,null,null,null,null,"Lod"]
[null,null,null,null,null,null,null,null,null,null,null,null,"Lod"]
[null,null,null,null,null,null,null,null,null,null,null,null,"Lod"]
[null,null,null,null,null,null,null,null,null,null,null,null,"Lod"]
[null,null,null,null,null,null,null,null,null,null,null,null,"Lod"]
[null,null,null,null,null,null,null,null,null,null,null,null,"Lod"]
[null,null,null,null,null,null,null,null,null,null,null,null,"Lod"]
[null,null,null,null,null,null,null,null,null,null,null,null,"Lod"]
[null,null,null,null,null,null,null,null,null,null,null,null,"Lod"]
[null,null,null,null,null,null,null,null,null,null,null,null,"Lod"]
[null,null,null,null,null,null,null,null,null,null,null,null,"Lod"]
[null,null,null,null,null,null,null,null,null,null,null,null,"Lod"]
[null,null,null,null,null,null,null,null,null,null,null,null,"Lod"]
[null,null,null,null,null,null,null,null,null,null,null,null,"Lod"]
[null,null,null,null,null,null,null,null,null,null,null,null,"Lod"]
[null,null,null,null,null,null,null,null,null,null,null,null,"Lod"]
[null,null,null,null,null,null,null,null,null,null,null,null,"Lod"]
[null,null,null,null,null,null,null,null,null,null,null,null,"Lod"]
[null,null,null,null,null,null,null,null,null,null,null,null,"Lod"]
[null,null,null,null,null,null,null,null,null,null,null,null,"Lod"]
[null,null,null,null,null,null,null,null,null,null,null,null,"Lod"]
[null,null,null,null,null,null,null,null,null,null,null,null,"Lod"]
[null,null,null,null,null,null,null,null,null,null,null,null,"Lod"]
[null,null,null,null,null,null,null,null,null,null,null,null,"Lod"]
[null,null,null,null,null,null,null,null,null,null,null,null,"Lod"]
[null,null,null,null,null,null,null,null,null,null,null,null,"Lod"]
[null,null,null,null,null,null,null,null,null,null,null,null,"Lod"]
[null,null,null,null,null,null,null,null,null,null,null,null,"Lod"]
[null,null,null,null,null,null,null,null,null,null,null,null,"Lod"]
[null,null,null,null,null,null,null,null,null,null,null,null,"Lod"]
[null,null,null,null,null,null,null,null,null,null,null,null,"Lod"]
[null,null,null,null,null,null,null,null,null,null,null,null,"Lod"]
[null,null,null,null,null,null,null,null,null,null,null,null,"Lod"]
[null,null,null,null,null,null,null,null,null,null,null,null,"Lod"]
[null,null,null,null,null,null,null,null,null,null,null,null,"Lod"]
[null,null,null,null,null,null,null,null,null,null,null,null,"Lod"]
[null,null,null,null,null,null,null,null,null,null,null,null,"Lod"]
[null,null,null,null,null,null,null,null,null,null,null,null,"Lod"]
[null,null,null,null,null,null,null,null,null,null,null,null,"Lod"]
[null,null,null,null,null,null,null,null,null,null,null,null,"Lod"]
[null,null,null,null,null,null,null,null,null,null,null,null,"Lod"]
[null,null,null,null,null,null,null,null,null,null,null,null,"Lod"]
[null,null,null,null,null,null,null,null,null,null,null,null,"Lod"]
[null,null,null,null,null,null,null,null,null,null,null,null,"Lod"]
[null,null,null,null,null,null,null,null,null,null,null,null,"Lod"]
[null,null,null,null,null,null,null,null,null,null,null,null,"Lod"]
[null,null,null,null,null,null,null,null,null,null,null,null,"Lod"]
[null,null,null,null,null,null,null,null,null,null,null,null,"Lod"]
[null,null,null,null,null,null,null,null,null,null,null,null,"Lod"]
[null,null,null,null,null,null,null,null,null,null,null,null,"Lod"]
[null,null,null,null,null,null,null,null,null,null,null,null,"Lod"]
[null,null,null,null,null,null,null,null,null,null,null,null,"Lod"]
[null,null,null,null,null,null,null,null,null,null,null,null,"Lod"]
[null,null,null,null,null,null,null,null,null,null,null,null,"Lod"]
[null,null,null,null,null,null,null,null,null,null,null,null,"Lod"]
[null,null,null,null,null,null,null,null,null,null,null,null,"Lod"]
[null,null,null,null,null,null,null,null,null,null,null,null,"Lod"]
[null,null,null,null,null,null,null,null,null,null,null,null,"Lod"]
[null,null,null,null,null,null,null,null,null,null,null,null,"Lod"]
[null,null,null,null,null,null,null,null,null,null,null,null,"Lod"]
[null,null,null,null,null,null,null,null,null,null,null,null,"Lod"]
[null,null,null,null,null,null,null,null,null,null,null,null,"Lod"]
[null,null,null,null,null,null,null,null,null,null,null,null,"Lod"]
[null,null,null,null,null,null,null,null,null,null,null,null,"Lod"]
[null,null,null,null,null,null,null,null,null,null,null,null,"Lod"]
[null,null,null,null,null,null,null,null,null,null,null,null,"Lod"]
[null,null,null,null,null,null,null,null,null,null,null,null,"Lod"]
[null,null,null,null,null,null,null,null,null,null,null,null,"Lod"]
[null,null,null,null,null,null,null,null,null,null,null,null,"Lod"]
[null,null,null,null,null,null,null,null,null,null,null,null,"Lod"]
[null,null,null,null,null,null,null,null,null,null,null,null,"Lod"]
[null,null,null,null,null,null,null,null,null,null,null,null,"Lod"]
[null,null,null,null,null,null,null,null,null,null,null,null,"Lod"]
[null,null,null,null,null,null,null,null,null,null,null,null,"Lod"]
[null,null,null,null,null,null,null,null,null,null,null,null,"Lod"]
[null,null,null,null,null,null,null,null,null,null,null,null,"Lod"]
[null,null,null,null,null,null,null,null,null,null,null,null,"Lod"]
[null,null,null,null,null,null,null,null,null,null,null,null,"Lod"]
[null,null,null,null,null,null,null,null,null,null,null,null,"Lod"]
[null,null,null,null,null,null,null,null,null,null,null,null,"Lod"]
[null,null,null,null,null,null,null,null,null,null,null,null,"Lod"]
[null,null,null,null,null,null,null,null,null,null,null,null,"Lod"]
[null,null,null,null,null,null,null,null,null,null,null,null,"Lod"]
[null,null,null,null,null,null,null,null,null,null,null,null,"Lod"]
[null,null,null,null,null,null,null,null,null,null,null,null,"Lod"]
[null,null,null,null,null,null,null,null,null,null,null,null,"Lod"]
[null,null,null,null,null,null,null,null,null,null,null,null,"Lod"]
[null,null,null,null,null,null,null,null,null,null,null,null,"Lod"]
[null,null,null,null,null,null,null,null,null,null,null,null,"Lod"]
[null,null,null,null,null,null,null,null,null,null,null,null,"Lod"]
[null,null,null,null,null,null,null,null,null,null,null,null,"Lod"]
[null,null,null,null,null,null,null,null,null,null,null,null,"Lod"]
[null,null,null,null,null,null,null,null,null,null,null,null,"Lod"]
[null,null,null,null,null,null,null,null,null,null,null,null,"Lod"]
[null,null,null,null,null,null,null,null,null,null,null,null,"Lod"]
[null,null,null,null,null,null,null,null,null,null,null,null,"Lod"]
[null,null,null,null,null,null,null,null,null,null,null,null,"Lod"]
[null,null,null,null,null,null,null,null,null,null,null,null,"Lod"]
[null,null,null,null,null,null,null,null,null,null,null,null,"Lod"]
[null,null,null,null,null,null,null,null,null,null,null,null,"Lod"]
[null,null,null,null,null,null,null,null,null,null,null,null,"Lod"]
[null,null,null,null,null,null,null,null,null,null,null,null,"Lod"]
[null,null,null,null,null,null,null,null,null,null,null,null,"Lod"]
[null,null,null,null,null,null,null,null,null,null,null,null,"Lod"]
[null,null,null,null,null,null,null,null,null,null,null,null,"Lod"]
[null,null,null,null,null,null,null,null,null,null,null,null,"Lod"]
[null,null,null,null,null,null,null,null,null,null,null,null,"Lod"]
[null,null,null,null,null,null,null,null,null,null,null,null,"Lod"]
[null,null,null,null,null,null,null,null,null,null,null,null,"Lod"]
[null,null,null,null,null,null,null,null,null,null,null,null,"Lod"]
[null,null,null,null,null,null,null,null,null,null,null,null,"Lod"]
[null,null,null,null,null,null,null,null,null,null,null,null,"Lod"]
[null,null,null,null,null,null,null,null,null,null,null,null,"Lod"]
[null,null,null,null,null,null,null,null,null,null,null,null,"Lod"]
[null,null,null,null,null,null,null,null,null,null,null,null,"Lod"]
[null,null,null,null,null,null,null,null,null,null,null,null,"Lod"]
[null,null,null,null,null,null,null,null,null,null,null,null,"Lod"]
[null,null,null,null,null,null,null,null,null,null,null,null,"Lod"]
[null,null,null,null,null,null,null,null,null,null,null,null,"Lod"]
[null,null,null,null,null,null,null,null,null,null,null,null,"Lod"]
[null,null,null,null,null,null,null,null,null,null,null,null,"Lod"]
[null,null,null,null,null,null,null,null,null,null,null,null,"Lod"]
[null,null,null,null,null,null,null,null,null,null,null,null,"Lod"]
[null,null,null,null,null,null,null,null,null,null,null,null,"Lod"]
[null,null,null,null,null,null,null,null,null,null,null,null,"Lod"]
[null,null,null,null,null,null,null,null,null,null,null,null,"Lod"]
[null,null,null,null,null,null,null,null,null,null,null,null,"Lod"]
[null,null,null,null,null,null,null,null,null,null,null,null,"Lod"]
[null,null,null,null,null,null,null,null,null,null,null,null,"Lod"]
[null,null,null,null,null,null,null,null,null,null,null,null,"Lod"]
[null,null,null,null,null,null,null,null,null,null,null,null,"Lod"]
[null,null,null,null,null,null,null,null,null,null,null,null,"Lod"]
[null,null,null,null,null,null,null,null,null,null,null,null,"Lod"]
[null,null,null,null,null,null,null,null,null,null,null,null,"Lod"]
[null,null,null,null,null,null,null,null,null,null,null,null,"Lod"]
[null,null,null,null,null,null,null,null,null,null,null,null,"Lod"]
[null,null,null,null,null,null,null,null,null,null,null,null,"Lod"]
[null,null,null,null,null,null,null,null,null,null,null,null,"Lod"]
[null,null,null,null,null,null,null,null,null,null,null,null,"Lod"]
[null,null,null,null,null,null,null,null,null,null,null,null,"Lod"]
[null,null,null,null,null,null,null,null,null,null,null,null,"Lod"]
[null,null,null,null,null,null,null,null,null,null,null,null,"Lod"]
[null,null,null,null,null,null,null,null,null,null,null,null,"Lod"]
[null,null,null,null,null,null,null,null,null,null,null,null,"Lod"]
[null,null,null,null,null,null,null,null,null,null,null,null,"Lod"]
[null,null,null,null,null,null,null,null,null,null,null,null,"Lod"]
[null,null,null,null,null,null,null,null,null,null,null,null,"Lod"]
[null,null,null,null,null,null,null,null,null,null,null,null,"Lod"]
[null,null,null,null,null,null,null,null,null,null,null,null,"Lod"]
[null,null,null,null,null,null,null,null,null,null,null,null,"Lod"]
[null,null,null,null,null,null,null,null,null,null,null,null,"Lod"]
[null,null,null,null,null,null,null,null,null,null,null,null,"Lod"]
[null,null,null,null,null,null,null,null,null,null,null,null,"Lod"]
[null,null,null,null,null,null,null,null,null,null,null,null,"Lod"]
[null,null,null,null,null,null,null,null,null,null,null,null,"Lod"]
[null,null,null,null,null,null,null,null,null,null,null,null,"Lod"]
[null,null,null,null,null,null,null,null,null,null,null,null,"Lod"]
[null,null,null,null,null,null,null,null,null,null,null,null,"Lod"]
[null,null,null,null,null,null,null,null,null,null,null,null,"Lod"]
[null,null,null,null,null,null,null,null,null,null,null,null,"Lod"]
[null,null,null,null,null,null,null,null,null,null,null,null,"Lod"]
[null,null,null,null,null,null,null,null,null,null,null,null,"Lod"]
[null,null,null,null,null,null,null,null,null,null,null,null,"Lod"]
[null,null,null,null,null,null,null,null,null,null,null,null,"Lod"]
[null,null,null,null,null,null,null,null,null,null,null,null,"Lod"]
[null,null,null,null,null,null,null,null,null,null,null,null,"Lod"]
[null,null,null,null,null,null,null,null,null,null,null,null,"Lod"]
[null,null,null,null,null,null,null,null,null,null,null,null,"Lod"]
[null,null,null,null,null,null,null,null,null,null,null,null,"Lod"]
[null,null,null,null,null,null,null,null,null,null,null,null,"Lod"]
[null,null,null,null,null,null,null,null,null,null,null,null,"Lod"]
[null,null,null,null,null,null,null,null,null,null,null,null,"Lod"]
[null,null,null,null,null,null,null,null,null,null,null,null,"Lod"]
[null,null,null,null,null,null,null,null,null,null,null,null,"Lod"]
[null,null,null,null,null,null,null,null,null,null,null,null,"Lod"]
[null,null,null,null,null,null,null,null,null,null,null,null,"Lod"]
[null,null,null,null,null,null,null,null,null,null,null,null,"Lod"]
[null,null,null,null,null,null,null,null,null,null,null,null,"Lod"]
[null,null,null,null,null,null,null,null,null,null,null,null,"Lod"]
[null,null,null,null,null,null,null,null,null,null,null,null,"Lod"]
[null,null,null,null,null,null,null,null,null,null,null,null,"Lod"]
[null,null,null,null,null,null,null,null,null,null,null,null,"Lod"]
[null,null,null,null,null,null,null,null,null,null,null,null,"Lod"]
[null,null,null,null,null,null,null,null,null,null,null,null,"Lod"]
[null,null,null,null,null,null,null,null,null,null,null,null,"Lod"]
[null,null,null,null,null,null,null,null,null,null,null,null,"Lod"]
[null,null,null,null,null,null,null,null,null,null,null,null,"Lod"]
[null,null,null,null,null,null,null,null,null,null,null,null,"Lod"]
[null,null,null,null,null,null,null,null,null,null,null,null,"Lod"]
[null,null,null,null,null,null,null,null,null,null,null,null,"Lod"]
[null,null,null,null,null,null,null,null,null,null,null,null,"Lod"]
[null,null,null,null,null,null,null,null,null,null,null,null,"Lod"]
[null,null,null,null,null,null,null,null,null,null,null,null,"Lod"]
[null,null,null,null,null,null,null,null,null,null,null,null,"Lod"]
[null,null,null,null,null,null,null,null,null,null,null,null,"Lod"]
[null,null,null,null,null,null,null,null,null,null,null,null,"Lod"]
[null,null,null,null,null,null,null,null,null,null,null,null,"Lod"]
[null,null,null,null,null,null,null,null,null,null,null,null,"Lod"]
[null,null,null,null,null,null,null,null,null,null,null,null,"Lod"]
[null,null,null,null,null,null,null,null,null,null,null,null,"Lod"]
[null,null,null,null,null,null,null,null,null,null,null,null,"Lod"]
[null,null,null,null,null,null,null,null,null,null,null,null,"Lod"]
[null,null,null,null,null,null,null,null,null,null,null,null,"Lod"]
[null,null,null,null,null,null,null,null,null,null,null,null,"Lod"]
[null,null,null,null,null,null,null,null,null,null,null,null,"Lod"]
[null,null,null,null,null,null,null,null,null,null,null,null,"Lod"]
[null,null,null,null,null,null,null,null,null,null,null,null,"Lod"]
[null,null,null,null,null,null,null,null,null,null,null,null,"Lod"]
[null,null,null,null,null,null,null,null,null,null,null,null,"Lod"]
[null,null,null,null,null,null,null,null,null,null,null,null,"Lod"]
[null,null,null,null,null,null,null,null,null,null,null,null,"Lod"]
[null,null,null,null,null,null,null,null,null,null,null,null,"Lod"]
[null,null,null,null,null,null,null,null,null,null,null,null,"Lod"]
[null,null,null,null,null,null,null,null,null,null,null,null,"Lod"]
[null,null,null,null,null,null,null,null,null,null,null,null,"Lod"]
[null,null,null,null,null,null,null,null,null,null,null,null,"Lod"]
[null,null,null,null,null,null,null,null,null,null,null,null,"Lod"]
[null,null,null,null,null,null,null,null,null,null,null,null,"Lod"]
[null,null,null,null,null,null,null,null,null,null,null,null,"Lod"]
[null,null,null,null,null,null,null,null,null,null,null,null,"Lod"]
[null,null,null,null,null,null,null,null,null,null,null,null,"Lod"]
[null,null,null,null,null,null,null,null,null,null,null,null,"Lod"]
[null,null,null,null,null,null,null,null,null,null,null,null,"Lod"]
[null,null,null,null,null,null,null,null,null,null,null,null,"Lod"]
[null,null,null,null,null,null,null,null,null,null,null,null,"Lod"]
[null,null,null,null,null,null,null,null,null,null,null,null,"Lod"]
[null,null,null,null,null,null,null,null,null,null,null,null,"Lod"]
[null,null,null,null,null,null,null,null,null,null,null,null,"Lod"]
[null,null,null,null,null,null,null,null,null,null,null,null,"Lod"]
[null,null,null,null,null,null,null,null,null,null,null,null,"Lod"]
[null,null,null,null,null,null,null,null,null,null,null,null,"Lod"]
[null,null,null,null,null,null,null,null,null,null,null,null,"Lod"]
[null,null,null,null,null,null,null,null,null,null,null,null,"Lod"]
[null,null,null,null,null,null,null,null,null,null,null,null,"Lod"]
[null,null,null,null,null,null,null,null,null,null,null,null,"Lod"]
[null,null,null,null,null,null,null,null,null,null,null,null,"Lod"]
[null,null,null,null,null,null,null,null,null,null,null,null,"Lod"]
[null,null,null,null,null,null,null,null,null,null,null,null,"Lod"]
[null,null,null,null,null,null,null,null,null,null,null,null,"Lod"]
[null,null,null,null,null,null,null,null,null,null,null,null,"Lod"]
[null,null,null,null,null,null,null,null,null,null,null,null,"Lod"]
[null,null,null,null,null,null,null,null,null,null,null,null,"Lod"]
[null,null,null,null,null,null,null,null,null,null,null,null,"Lod"]
[null,null,null,null,null,null,null,null,null,null,null,null,"Lod"]
[null,null,null,null,null,null,null,null,null,null,null,null,"Lod"]
[null,null,null,null,null,null,null,null,null,null,null,null,"Lod"]
[null,null,null,null,null,null,null,null,null,null,null,null,"Lod"]
[null,null,null,null,null,null,null,null,null,null,null,null,"Lod"]
[null,null,null,null,null,null,null,null,null,null,null,null,"Lod"]
[null,null,null,null,null,null,null,null,null,null,null,null,"Lod"]
[null,null,null,null,null,null,null,null,null,null,null,null,"Lod"]
[null,null,null,null,null,null,null,null,null,null,null,null,"Lod"]
[null,null,null,null,null,null,null,null,null,null,null,null,"Lod"]
[null,null,null,null,null,null,null,null,null,null,null,null,"Lod"]
[null,null,null,null,null,null,null,null,null,null,null,null,"Lod"]
[null,null,null,null,null,null,null,null,null,null,null,null,"Lod"]
[null,null,null,null,null,null,null,null,null,null,null,null,"Lod"]
[null,null,null,null,null,null,null,null,null,null,null,null,"Lod"]
[null,null,null,null,null,null,null,null,null,null,null,null,"Lod"]
[null,null,null,null,null,null,null,null,null,null,null,null,"Lod"]
[null,null,null,null,null,null,null,null,null,null,null,null,"Lod"]
[null,null,null,null,null,null,null,null,null,null,null,null,"Lod"]
[null,null,null,null,null,null,null,null,null,null,null,null,"Lod"]
[null,null,null,null,null,null,null,null,null,null,null,null,"Lod"]
[null,null,null,null,null,null,null,null,null,null,null,null,"Lod"]
[null,null,null,null,null,null,null,null,null,null,null,null,"Lod"]
[null,null,null,null,null,null,null,null,null,null,null,null,"Lod"]
[null,null,null,null,null,null,null,null,null,null,null,null,"Lod"]
[null,null,null,null,null,null,null,null,null,null,null,null,"Lod"]
[null,null,null,null,null,null,null,null,null,null,null,null,"Lod"]
[null,null,null,null,null,null,null,null,null,null,null,null,"Lod"]
[null,null,null,null,null,null,null,null,null,null,null,null,"Lod"]
[null,null,null,null,null,null,null,null,null,null,null,null,"Lod"]
[null,null,null,null,null,null,null,null,null,null,null,null,"Lod"]
[null,null,null,null,null,null,null,null,null,null,null,null,"Lod"]
[null,null,null,null,null,null,null,null,null,null,null,null,"Lod"]
[null,null,null,null,null,null,null,null,null,null,null,null,"Lod"]
[null,null,null,null,null,null,null,null,null,null,null,null,"Lod"]
[null,null,null,null,null,null,null,null,null,null,null,null,"Lod"]
[null,null,null,null,null,null,null,null,null,null,null,null,"Lod"]
[null,null,null,null,null,null,null,null,null,null,null,null,"Lod"]
[null,null,null,null,null,null,null,null,null,null,null,null,"Lod"]
[null,null,null,null,null,null,null,null,null,null,null,null,"Lod"]
[null,null,null,null,null,null,null,null,null,null,null,null,"Lod"]
[null,null,null,null,null,null,null,null,null,null,null,null,"Lod"]
[null,null,null,null,null,null,null,null,null,null,null,null,"Lod"]
[null,null,null,null,null,null,null,null,null,null,null,null,"Lod"]
[null,null,null,null,null,null,null,null,null,null,null,null,"Lod"]
[null,null,null,null,null,null,null,null,null,null,null,null,"Lod"]
[null,null,null,null,null,null,null,null,null,null,null,null,"Lod"]
[null,null,null,null,null,null,null,null,null,null,null,null,"Lod"]
[null,null,null,null,null,null,null,null,null,null,null,null,"Lod"]
[null,null,null,null,null,null,null,null,null,null,null,null,"Lod"]
[null,null,null,null,null,null,null,null,null,null,null,null,"Lod"]
[null,null,null,null,null,null,null,null,null,null,null,null,"Lod"]
[null,null,null,null,null,null,null,null,null,null,null,null,"Lod"]
[null,null,null,null,null,null,null,null,null,null,null,null,"Lod"]
[null,null,null,null,null,null,null,null,null,null,null,null,"Lod"]
[null,null,null,null,null,null,null,null,null,null,null,null,"Lod"]
[null,null,null,null,null,null,null,null,null,null,null,null,"Lod"]
[null,null,null,null,null,null,null,null,null,null,null,null,"Lod"]
[null,null,null,null,null,null,null,null,null,null,null,null,"Lod"]
[null,null,null,null,null,null,null,null,null,null,null,null,"Lod"]
[null,null,null,null,null,null,null,null,null,null,null,null,"Lod"]
[null,null,null,null,null,null,null,null,null,null,null,null,"Lod"]
[null,null,null,null,null,null,null,null,null,null,null,null,"Lod"]
[null,null,null,null,null,null,null,null,null,null,null,null,"Lod"]
[null,null,null,null,null,null,null,null,null,null,null,null,"Lod"]
[null,null,null,null,null,null,null,null,null,null,null,null,"Lod"]
[null,null,null,null,null,null,null,null,null,null,null,null,"Lod"]
[null,null,null,null,null,null,null,null,null,null,null,null,"Lod"]
[null,null,null,null,null,null,null,null,null,null,null,null,"Lod"]
[null,null,null,null,null,null,null,null,null,null,null,null,"Lod"]
[null,null,null,null,null,null,null,null,null,null,null,null,"Lod"]
[null,null,null,null,null,null,null,null,null,null,null,null,"Lod"]
[null,null,null,null,null,null,null,null,null,null,null,null,"Lod"]
[null,null,null,null,null,null,null,null,null,null,null,null,"Lod"]
[null,null,null,null,null,null,null,null,null,null,null,null,"Lod"]
[null,null,null,null,null,null,null,null,null,null,null,null,"Lod"]
[null,null,null,null,null,null,null,null,null,null,null,null,"Lod"]
[null,null,null,null,null,null,null,null,null,null,null,null,"Lod"]
[null,null,null,null,null,null,null,null,null,null,null,null,"Lod"]
[null,null,null,null,null,null,null,null,null,null,null,null,"Lod"]
[null,null,null,null,null,null,null,null,null,null,null,null,"Lod"]
[null,null,null,null,null,null,null,null,null,null,null,null,"Lod"]
[null,null,null,null,null,null,null,null,null,null,null,null,"Lod"]
[null,null,null,null,null,null,null,null,null,null,null,null,"Lod"]
[null,null,null,null,null,null,null,null,null,null,null,null,"Lod"]
[null,null,null,null,null,null,null,null,null,null,null,null,"Lod"]
[null,null,null,null,null,null,null,null,null,null,null,null,"Lod"]
[null,null,null,null,null,null,null,null,null,null,null,null,"Lod"]
[null,null,null,null,null,null,null,null,null,null,null,null,"Lod"]
[null,null,null,null,null,null,null,null,null,null,null,null,"Lod"]
[null,null,null,null,null,null,null,null,null,null,null,null,"Lod"]
[null,null,null,null,null,null,null,null,null,null,null,null,"Lod"]
[null,null,null,null,null,null,null,null,null,null,null,null,"Lod"]
[null,null,null,null,null,null,null,null,null,null,null,null,"Lod"]
[null,null,null,null,null,null,null,null,null,null,null,null,"Lod"]
[null,null,null,null,null,null,null,null,null,null,null,null,"Lod"]
[null,null,null,null,null,null,null,null,null,null,null,null,"Lod"]
[null,null,null,null,null,null,null,null,null,null,null,null,"Lod"]
[null,null,null,null,null,null,null,null,null,null,null,null,"Lod"]
[null,null,null,null,null,null,null,null,null,null,null,null,"Lod"]
[null,null,null,null,null,null,null,null,null,null,null,null,"Lod"]
[null,null,null,null,null,null,null,null,null,null,null,null,"Lod"]
[null,null,null,null,null,null,null,null,null,null,null,null,"Lod"]
[null,null,null,null,null,null,null,null,null,null,null,null,"Lod"]
[null,null,null,null,null,null,null,null,null,null,null,null,"Lod"]
[null,null,null,null,null,null,null,null,null,null,null,null,"Lod"]
[null,null,null,null,null,null,null,null,null,null,null,null,"Lod"]
[null,null,null,null,null,null,null,null,null,null,null,null,"Lod"]
[null,null,null,null,null,null,null,null,null,null,null,null,"Lod"]
[null,null,null,null,null,null,null,null,null,null,null,null,"Lod"]
[null,null,null,null,null,null,null,null,null,null,null,null,"Lod"]
[null,null,null,null,null,null,null,null,null,null,null,null,"Lod"]
[null,null,null,null,null,null,null,null,null,null,null,null,"Lod"]
[null,null,null,null,null,null,null,null,null,null,null,null,"Lod"]
[null,null,null,null,null,null,null,null,null,null,null,null,"Lod"]
[null,null,null,null,null,null,null,null,null,null,null,null,"Lod"]
[null,null,null,null,null,null,null,null,null,null,null,null,"Lod"]
[null,null,null,null,null,null,null,null,null,null,null,null,"Lod"]
[null,null,null,null,null,null,null,null,null,null,null,null,"Lod"]
[null,null,null,null,null,null,null,null,null,null,null,null,"Lod"]
[null,null,null,null,null,null,null,null,null,null,null,null,"Lod"]
[null,null,null,null,null,null,null,null,null,null,null,null,"Lod"]
[null,null,null,null,null,null,null,null,null,null,null,null,"Lod"]
[null,null,null,null,null,null,null,null,null,null,null,null,"Lod"]
[null,null,null,null,null,null,null,null,null,null,null,null,"Lod"]
[null,null,null,null,null,null,null,null,null,null,null,null,"Lod"]
[null,null,null,null,null,null,null,null,null,null,null,null,"Lod"]
[null,null,null,null,null,null,null,null,null,null,null,null,"Lod"]
[null,null,null,null,null,null,null,null,null,null,null,null,"Lod"]
[null,null,null,null,null,null,null,null,null,null,null,null,"Lod"]
[null,null,null,null,null,null,null,null,null,null,null,null,"Lod"]
[null,null,null,null,null,null,null,null,null,null,null,null,"Lod"]
[null,null,null,null,null,null,null,null,null,null,null,null,"Lod"]
[null,null,null,null,null,null,null,null,null,null,null,null,"Lod"]
[null,null,null,null,null,null,null,null,null,null,null,null,"Lod"]
[null,null,null,null,null,null,null,null,null,null,null,null,"Lod"]
[null,null,null,null,null,null,null,null,null,null,null,null,"Lod"]
[null,null,null,null,null,null,null,null,null,null,null,null,"Lod"]
[null,null,null,null,null,null,null,null,null,null,null,null,"Lod"]
[null,null,null,null,null,null,null,null,null,null,null,null,"Lod"]
[null,null,null,null,null,null,null,null,null,null,null,null,"Lod"]
[null,null,null,null,null,null,null,null,null,null,null,null,"Lod"]
[null,null,null,null,null,null,null,null,null,null,null,null,"Lod"]
[null,null,null,null,null,null,null,null,null,null,null,null,"Lod"]
[null,null,null,null,null,null,null,null,null,null,null,null,"Lod"]
[null,null,null,null,null,null,null,null,null,null,null,null,"Lod"]
[null,null,null,null,null,null,null,null,null,null,null,null,"Lod"]
[null,null,null,null,null,null,null,null,null,null,null,null,"Lod"]
[null,null,null,null,null,null,null,null,null,null,null,null,"Lod"]
[null,null,null,null,null,null,null,null,null,null,null,null,"Lod"]
[null,null,null,null,null,null,null,null,null,null,null,null,"Lod"]
[null,null,null,null,null,null,null,null,null,null,null,null,"Lod"]
[null,null,null,null,null,null,null,null,null,null,null,null,"Lod"]
[null,null,null,null,null,null,null,null,null,null,null,null,"Lod"]
[null,null,null,null,null,null,null,null,null,null,null,null,"Lod"]
[null,null,null,null,null,null,null,null,null,null,null,null,"Lod"]
[null,null,null,null,null,null,null,null,null,null,null,null,"Lod"]
[null,null,null,null,null,null,null,null,null,null,null,null,"Lod"]
[null,null,null,null,null,null,null,null,null,null,null,null,"Lod"]
[null,null,null,null,null,null,null,null,null,null,null,null,"Lod"]
[null,null,null,null,null,null,null,null,null,null,null,null,"Lod"]
[null,null,null,null,null,null,null,null,null,null,null,null,"Lod"]
[null,null,null,null,null,null,null,null,null,null,null,null,"Lod"]
[null,null,null,null,null,null,null,null,null,null,null,null,"Lod"]
[null,null,null,null,null,null,null,null,null,null,null,null,"Lod"]
[null,null,null,null,null,null,null,null,null,null,null,null,"Lod"]
[null,null,null,null,null,null,null,null,null,null,null,null,"Lod"]
[null,null,null,null,null,null,null,null,null,null,null,null,"Lod"]
[null,null,null,null,null,null,null,null,null,null,null,null,"Lod"]
[null,null,null,null,null,null,null,null,null,null,null,null,"Lod"]
[null,null,null,null,null,null,null,null,null,null,null,null,"Lod"]
[null,null,null,null,null,null,null,null,null,null,null,null,"Lod"]
[null,null,null,null,null,null,null,null,null,null,null,null,"Lod"]
[null,null,null,null,null,null,null,null,null,null,null,null,"Lod"]
[null,null,null,null,null,null,null,null,null,null,null,null,"Lod"]
[null,null,null,null,null,null,null,null,null,null,null,null,"Lod"]
[null,null,null,null,null,null,null,null,null,null,null,null,"Lod"]
[null,null,null,null,null,null,null,null,null,null,null,null,"Lod"]
[null,null,null,null,null,null,null,null,null,null,null,null,"Lod"]
[null,null,null,null,null,null,null,null,null,null,null,null,"Lod"]
[null,null,null,null,null,null,null,null,null,null,null,null,"Lod"]
[null,null,null,null,null,null,null,null,null,null,null,null,"Lod"]
[null,null,null,null,null,null,null,null,null,null,null,null,"Lod"]
[null,null,null,null,null,null,null,null,null,null,null,null,"Lod"]
[null,null,null,null,null,null,null,null,null,null,null,null,"Lod"]
[null,null,null,null,null,null,null,null,null,null,null,null,"Lod"]
[null,null,null,null,null,null,null,null,null,null,null,null,"Lod"]
[null,null,null,null,null,null,null,null,null,null,null,null,"Lod"]
[null,null,null,null,null,null,null,null,null,null,null,null,"Lod"]
[null,null,null,null,null,null,null,null,null,null,null,null,"Lod"]
[null,null,null,null,null,null,null,null,null,null,null,null,"Lod"]
[null,null,null,null,null,null,null,null,null,null,null,null,"Lod"]
[null,null,null,null,null,null,null,null,null,null,null,null,"Lod"]
[null,null,null,null,null,null,null,null,null,null,null,null,"Lod"]
[null,null,null,null,null,null,null,null,null,null,null,null,"Lod"]
[null,null,null,null,null,null,null,null,null,null,null,null,"Lod"]
[null,null,null,null,null,null,null,null,null,null,null,null,"Lod"]
[null,null,null,null,null,null,null,null,null,null,null,null,"Lod"]
[null,null,null,null,null,null,null,null,null,null,null,null,"Lod"]
[null,null,null,null,null,null,null,null,null,null,null,null,"Lod"]
[null,null,null,null,null,null,null,null,null,null,null,null,"Lod"]
[null,null,null,null,null,null,null,null,null,null,null,null,"Lod"]
[null,null,null,null,null,null,null,null,null,null,null,null,"Lod"]
[null,null,null,null,null,null,null,null,null,null,null,null,"Lod"]
[null,null,null,null,null,null,null,null,null,null,null,null,"Lod"]
[null,null,null,null,null,null,null,null,null,null,null,null,"Lod"]
[null,null,null,null,null,null,null,null,null,null,null,null,"Lod"]
[null,null,null,null,null,null,null,null,null,null,null,null,"Lod"]
[null,null,null,null,null,null,null,null,null,null,null,null,"Lod"]
[null,null,null,null,null,null,null,null,null,null,null,null,"Lod"]
[null,null,null,null,null,null,null,null,null,null,null,null,"Lod"]
[null,null,null,null,null,null,null,null,null,null,null,null,"Lod"]
[null,null,null,null,null,null,null,null,null,null,null,null,"Lod"]
[null,null,null,null,null,null,null,null,null,null,null,null,"Lod"]
[null,null,null,null,null,null,null,null,null,null,null,null,"Lod"]
[null,null,null,null,null,null,null,null,null,null,null,null,"Lod"]
[null,null,null,null,null,null,null,null,null,null,null,null,"Lod"]
[null,null,null,null,null,null,null,null,null,null,null,null,"Lod"]
[null,null,null,null,null,null,null,null,null,null,null,null,"Lod"]
[null,null,null,null,null,null,null,null,null,null,null,null,"Lod"]
[null,null,null,null,null,null,null,null,null,null,null,null,"Lod"]
[null,null,null,null,null,null,null,null,null,null,null,null,"Lod"]
[null,null,null,null,null,null,null,null,null,null,null,null,"Lod"]
[null,null,null,null,null,null,null,null,null,null,null,null,"Lod"]
[null,null,null,null,null,null,null,null,null,null,null,null,"Lod"]
[null,null,null,null,null,null,null,null,null,null,null,null,"Lod"]
[null,null,null,null,null,null,null,null,null,null,null,null,"Lod"]
[null,null,null,null,null,null,null,null,null,null,null,null,"Lod"]
[null,null,null,null,null,null,null,null,null,null,null,null,"Lod"]
[null,null,null,null,null,null,null,null,null,null,null,null,"Lod"]
[null,null,null,null,null,null,null,null,null,null,null,null,"Lod"]
[null,null,null,null,null,null,null,null,null,null,null,null,"Lod"]
[null,null,null,null,null,null,null,null,null,null,null,null,"Lod"]
[null,null,null,null,null,null,null,null,null,null,null,null,"Lod"]
[null,null,null,null,null,null,null,null,null,null,null,null,"Lod"]
[null,null,null,null,null,null,null,null,null,null,null,null,"Lod"]
[null,null,null,null,null,null,null,null,null,null,null,null,"Lod"]
[null,null,null,null,null,null,null,null,null,null,null,null,"Lod"]
[null,null,null,null,null,null,null,null,null,null,null,null,"Lod"]
[null,null,null,null,null,null,null,null,null,null,null,null,"Lod"]
[null,null,null,null,null,null,null,null,null,null,null,null,"Lod"]
[null,null,null,null,null,null,null,null,null,null,null,null,"Lod"]
[null,null,null,null,null,null,null,null,null,null,null,null,"Lod"]
[null,null,null,null,null,null,null,null,null,null,null,null,"Lod"]
[null,null,null,null,null,null,null,null,null,null,null,null,"Lod"]
[null,null,null,null,null,null,null,null,null,null,null,null,"Lod"]
[null,null,null,null,null,null,null,null,null,null,null,null,"Lod"]
[null,null,null,null,null,null,null,null,null,null,null,null,"Lod"]
[null,null,null,null,null,null,null,null,null,null,null,null,"Lod"]
[null,null,null,null,null,null,null,null,null,null,null,null,"Lod"]
[null,null,null,null,null,null,null,null,null,null,null,null,"Lod"]
[null,null,null,null,null,null,null,null,null,null,null,null,"Lod"]
[null,null,null,null,null,null,null,null,null,null,null,null,"Lod"]
[null,null,null,null,null,null,null,null,null,null,null,null,"Lod"]
[null,null,null,null,null,null,null,null,null,null,null,null,"Lod"]
[null,null,null,null,null,null,null,null,null,null,null,null,"Lod"]
[null,null,null,null,null,null,null,null,null,null,null,null,"Lod"]
[null,null,null,null,null,null,null,null,null,null,null,null,"Lod"]
[null,null,null,null,null,null,null,null,null,null,null,null,"Lod"]
[null,null,null,null,null,null,null,null,null,null,null,null,"Lod"]
[null,null,null,null,null,null,null,null,null,null,null,null,"Lod"]
[null,null,null,null,null,null,null,null,null,null,null,null,"Lod"]
[null,null,null,null,null,null,null,null,null,null,null,null,"Lod"]
[null,null,null,null,null,null,null,null,null,null,null,null,"Lod"]
[null,null,null,null,null,null,null,null,null,null,null,null,"Lod"]
[null,null,null,null,null,null,null,null,null,null,null,null,"Lod"]
[null,null,null,null,null,null,null,null,null,null,null,null,"Lod"]
[null,null,null,null,null,null,null,null,null,null,null,null,"Lod"]
[null,null,null,null,null,null,null,null,null,null,null,null,"Lod"]
[null,null,null,null,null,null,null,null,null,null,null,null,"Lod"]
[null,null,null,null,null,null,null,null,null,null,null,null,"Lod"]
[null,null,null,null,null,null,null,null,null,null,null,null,"Lod"]
[null,null,null,null,null,null,null,null,null,null,null,null,"Lod"]
[null,null,null,null,null,null,null,null,null,null,null,null,"Lod"]
[null,null,null,null,null,null,null,null,null,null,null,null,"Lod"]
[null,null,null,null,null,null,null,null,null,null,null,null,"Lod"]
[null,null,null,null,null,null,null,null,null,null,null,null,"Lod"]
[null,null,null,null,null,null,null,null,null,null,null,null,"Lod"]
[null,null,null,null,null,null,null,null,null,null,null,null,"Lod"]
[null,null,null,null,null,null,null,null,null,null,null,null,"Lod"]
[null,null,null,null,null,null,null,null,null,null,null,null,"Lod"]
[null,null,null,null,null,null,null,null,null,null,null,null,"Lod"]
[null,null,null,null,null,null,null,null,null,null,null,null,"Lod"]
[null,null,null,null,null,null,null,null,null,null,null,null,"Lod"]
[null,null,null,null,null,null,null,null,null,null,null,null,"Lod"]
[null,null,null,null,null,null,null,null,null,null,null,null,"Lod"]
[null,null,null,null,null,null,null,null,null,null,null,null,"Lod"]
[null,null,null,null,null,null,null,null,null,null,null,null,"Lod"]
[null,null,null,null,null,null,null,null,null,null,null,null,"Lod"]
[null,null,null,null,null,null,null,null,null,null,null,null,"Lod"]
[null,null,null,null,null,null,null,null,null,null,null,null,"Lod"]
[null,null,null,null,null,null,null,null,null,null,null,null,"Lod"]
[null,null,null,null,null,null,null,null,null,null,null,null,"Lod"]
[null,null,null,null,null,null,null,null,null,null,null,null,"Lod"]
[null,null,null,null,null,null,null,null,null,null,null,null,"Lod"]
[null,null,null,null,null,null,null,null,null,null,null,null,"Lod"]
[null,null,null,null,null,null,null,null,null,null,null,null,"Lod"]
[null,null,null,null,null,null,null,null,null,null,null,null,"Lod"]
[null,null,null,null,null,null,null,null,null,null,null,null,"Lod"]
[null,null,null,null,null,null,null,null,null,null,null,null,"Lod"]
[null,null,null,null,null,null,null,null,null,null,null,null,"Lod"]
[null,null,null,null,null,null,null,null,null,null,null,null,"Lod"]
[null,null,null,null,null,null,null,null,null,null,null,null,"Lod"]
[null,null,null,null,null,null,null,null,null,null,null,null,"Lod"]
[null,null,null,null,null,null,null,null,null,null,null,null,"Lod"]
[null,null,null,null,null,null,null,null,null,null,null,null,"Lod"]
[null,null,null,null,null,null,null,null,null,null,null,null,"Lod"]
[null,null,null,null,null,null,null,null,null,null,null,null,"Lod"]
[null,null,null,null,null,null,null,null,null,null,null,null,"Lod"]
[null,null,null,null,null,null,null,null,null,null,null,null,"Lod"]
[null,null,null,null,null,null,null,null,null,null,null,null,"Lod"]
[null,null,null,null,null,null,null,null,null,null,null,null,"Lod"]
[null,null,null,null,null,null,null,null,null,null,null,null,"Lod"]
[null,null,null,null,null,null,null,null,null,null,null,null,"Lod"]
[null,null,null,null,null,null,null,null,null,null,null,null,"Lod"]
[null,null,null,null,null,null,null,null,null,null,null,null,"Lod"]
[null,null,null,null,null,null,null,null,null,null,null,null,"Lod"]
[null,null,null,null,null,null,null,null,null,null,null,null,"Lod"]
[null,null,null,null,null,null,null,null,null,null,null,null,"Lod"]
[null,null,null,null,null,null,null,null,null,null,null,null,"Lod"]
[null,null,null,null,null,null,null,null,null,null,null,null,"Lod"]
[null,null,null,null,null,null,null,null,null,null,null,null,"Lod"]
[null,null,null,null,null,null,null,null,null,null,null,null,"Lod"]
[null,null,null,null,null,null,null,null,null,null,null,null,"Lod"]
[null,null,null,null,null,null,null,null,null,null,null,null,"Lod"]
[null,null,null,null,null,null,null,null,null,null,null,null,"Lod"]
[null,null,null,null,null,null,null,null,null,null,null,null,"Lod"]
[null,null,null,null,null,null,null,null,null,null,null,null,"Lod"]
[null,null,null,null,null,null,null,null,null,null,null,null,"Lod"]
[null,null,null,null,null,null,null,null,null,null,null,null,"Lod"]
[null,null,null,null,null,null,null,null,null,null,null,null,"Lod"]
[null,null,null,null,null,null,null,null,null,null,null,null,"Lod"]
[null,null,null,null,null,null,null,null,null,null,null,null,"Lod"]
[null,null,null,null,null,null,null,null,null,null,null,null,"Lod"]
[null,null,null,null,null,null,null,null,null,null,null,null,"Lod"]
[null,null,null,null,null,null,null,null,null,null,null,null,"Lod"]
[null,null,null,null,null,null,null,null,null,null,null,null,"Lod"]
[null,null,null,null,null,null,null,null,null,null,null,null,"Lod"]
[null,null,null,null,null,null,null,null,null,null,null,null,"Lod"]
[null,null,null,null,null,null,null,null,null,null,null,null,"Lod"]
[null,null,null,null,null,null,null,null,null,null,null,null,"Lod"]
[null,null,null,null,null,null,null,null,null,null,null,null,"Lod"]
[null,null,null,null,null,null,null,null,null,null,null,null,"Lod"]
[null,null,null,null,null,null,null,null,null,null,null,null,"Lod"]
[null,null,null,null,null,null,null,null,null,null,null,null,"Lod"]
[null,null,null,null,null,null,null,null,null,null,null,null,"Lod"]
[null,null,null,null,null,null,null,null,null,null,null,null,"Lod"]
[null,null,null,null,null,null,null,null,null,null,null,null,"Lod"]
[null,null,null,null,null,null,null,null,null,null,null,null,"Lod"]
[null,null,null,null,null,null,null,null,null,null,null,null,"Lod"]
[null,null,null,null,null,null,null,null,null,null,null,null,"Lod"]
[null,null,null,null,null,null,null,null,null,null,null,null,"Lod"]
[null,null,null,null,null,null,null,null,null,null,null,null,"Lod"]
[null,null,null,null,null,null,null,null,null,null,null,null,"Lod"]
[null,null,null,null,null,null,null,null,null,null,null,null,"Lod"]
[null,null,null,null,null,null,null,null,null,null,null,null,"Lod"]
[null,null,null,null,null,null,null,null,null,null,null,null,"Lod"]
[null,null,null,null,null,null,null,null,null,null,null,null,"Lod"]
[null,null,null,null,null,null,null,null,null,null,null,null,"Lod"]
[null,null,null,null,null,null,null,null,null,null,null,null,"Lod"]
[null,null,null,null,null,null,null,null,null,null,null,null,"Lod"]
[null,null,null,null,null,null,null,null,null,null,null,null,"Lod"]
[null,null,null,null,null,null,null,null,null,null,null,null,"Lod"]
[null,null,null,null,null,null,null,null,null,null,null,null,"Lod"]
[null,null,null,null,null,null,null,null,null,null,null,null,"Lod"]
[null,null,null,null,null,null,null,null,null,null,null,null,"Lod"]
[null,null,null,null,null,null,null,null,null,null,null,null,"Lod"]
[null,null,null,null,null,null,null,null,null,null,null,null,"Lod"]
[null,null,null,null,null,null,null,null,null,null,null,null,"Lod"]
[null,null,null,null,null,null,null,null,null,null,null,null,"Lod"]
[null,null,null,null,null,null,null,null,null,null,null,null,"Lod"]
[null,null,null,null,null,null,null,null,null,null,null,null,"Lod"]
[null,null,null,null,null,null,null,null,null,null,null,null,"Lod"]
[null,null,null,null,null,null,null,null,null,null,null,null,"Lod"]
[null,null,null,null,null,null,null,null,null,null,null,null,"Lod"]
[null,null,null,null,null,null,null,null,null,null,null,null,"Lod"]
[null,null,null,null,null,null,null,null,null,null,null,null,"Lod"]
[null,null,null,null,null,null,null,null,null,null,null,null,"Lod"]
[null,null,null,null,null,null,null,null,null,null,null,null,"Lod"]
[null,null,null,null,null,null,null,null,null,null,null,null,"Lod"]
[null,null,null,null,null,null,null,null,null,null,null,null,"Lod"]
[null,null,null,null,null,null,null,null,null,null,null,null,"Lod"]
[null,null,null,null,null,null,null,null,null,null,null,null,"Lod"]
[null,null,null,null,null,null,null,null,null,null,null,null,"Lod"]
[null,null,null,null,null,null,null,null,null,null,null,null,"Lod"]
[null,null,null,null,null,null,null,null,null,null,null,null,"Lod"]
[null,null,null,null,null,null,null,null,null,null,null,null,"Lod"]
[null,null,null,null,null,null,null,null,null,null,null,null,"Lod"]
[null,null,null,null,null,null,null,null,null,null,null,null,"Lod"]
[null,null,null,null,null,null,null,null,null,null,null,null,"Lod"]
[null,null,null,null,null,null,null,null,null,null,null,null,"Lod"]
[null,null,null,null,null,null,null,null,null,null,null,null,"Lod"]
[null,null,null,null,null,null,null,null,null,null,null,null,"Lod"]
[null,null,null,null,null,null,null,null,null,null,null,null,"Lod"]
[null,null,null,null,null,null,null,null,null,null,null,null,"Lod"]
[null,null,null,null,null,null,null,null,null,null,null,null,"Lod"]
[null,null,null,null,null,null,null,null,null,null,null,null,"Lod"]
[null,null,null,null,null,null,null,null,null,null,null,null,"Lod"]
[null,null,null,null,null,null,null,null,null,null,null,null,"Lod"]
[null,null,null,null,null,null,null,null,null,null,null,null,"Lod"]
[null,null,null,null,null,null,null,null,null,null,null,null,"Lod"]
[null,null,null,null,null,null,null,null,null,null,null,null,"Lod"]
[null,null,null,null,null,null,null,null,null,null,null,null,"Lod"]
[null,null,null,null,null,null,null,null,null,null,null,null,"Lod"]
[null,null,null,null,null,null,null,null,null,null,null,null,"Lod"]
[null,null,null,null,null,null,null,null,null,null,null,null,"Lod"]
[null,null,null,null,null,null,null,null,null,null,null,null,"Lod"]
[null,null,null,null,null,null,null,null,null,null,null,null,"Lod"]
[null,null,null,null,null,null,null,null,null,null,null,null,"Lod"]
[null,null,null,null,null,null,null,null,null,null,null,null,"Lod"]
[null,null,null,null,null,null,null,null,null,null,null,null,"Lod"]
[null,null,null,null,null,null,null,null,null,null,null,null,"Lod"]
[null,null,null,null,null,null,null,null,null,null,null,null,"Lod"]
[null,null,null,null,null,null,null,null,null,null,null,null,"Lod"]
[null,null,null,null,null,null,null,null,null,null,null,null,"Lod"]
[null,null,null,null,null,null,null,null,null,null,null,null,"Lod"]
[null,null,null,null,null,null,null,null,null,null,null,null,"Lod"]
[null,null,null,null,null,null,null,null,null,null,null,null,"Lod"]
[null,null,null,null,null,null,null,null,null,null,null,null,"Lod"]
[null,null,null,null,null,null,null,null,null,null,null,null,"Lod"]
[null,null,null,null,null,null,null,null,null,null,null,null,"Lod"]
[null,null,null,null,null,null,null,null,null,null,null,null,"Lod"]
[null,null,null,null,null,null,null,null,null,null,null,null,"Lod"]
[null,null,null,null,null,null,null,null,null,null,null,null,"Lod"]
[null,null,null,null,null,null,null,null,null,null,null,null,"Lod"]
[null,null,null,null,null,null,null,null,null,null,null,null,"Lod"]
[null,null,null,null,null,null,null,null,null,null,null,null,"Lod"]
[null,null,null,null,null,null,null,null,null,null,null,null,"Lod"]
[null,null,null,null,null,null,null,null,null,null,null,null,"Lod"]
[null,null,null,null,null,null,null,null,null,null,null,null,"Lod"]
[null,null,null,null,null,null,null,null,null,null,null,null,"Lod"]
[null,null,null,null,null,null,null,null,null,null,null,null,"Lod"]
[null,null,null,null,null,null,null,null,null,null,null,null,"Lod"]
[null,null,null,null,null,null,null,null,null,null,null,null,"Lod"]
[null,null,null,null,null,null,null,null,null,null,null,null,"Lod"]
[null,null,null,null,null,null,null,null,null,null,null,null,"Lod"]
[null,null,null,null,null,null,null,null,null,null,null,null,"Lod"]
[null,null,null,null,null,null,null,null,null,null,null,null,"Lod"]
[null,null,null,null,null,null,null,null,null,null,null,null,"Lod"]
[null,null,null,null,null,null,null,null,null,null,null,null,"Lod"]
[null,null,null,null,null,null,null,null,null,null,null,null,"Lod"]
[null,null,null,null,null,null,null,null,null,null,null,null,"Lod"]
[null,null,null,null,null,null,null,null,null,null,null,null,"Lod"]
[null,null,null,null,null,null,null,null,null,null,null,null,"Lod"]
[null,null,null,null,null,null,null,null,null,null,null,null,"Lod"]
[null,null,null,null,null,null,null,null,null,null,null,null,"Lod"]
[null,null,null,null,null,null,null,null,null,null,null,null,"Lod"]
[null,null,null,null,null,null,null,null,null,null,null,null,"Lod"]
[null,null,null,null,null,null,null,null,null,null,null,null,"Lod"]
[null,null,null,null,null,null,null,null,null,null,null,null,"Lod"]
[null,null,null,null,null,null,null,null,null,null,null,null,"Lod"]
[null,null,null,null,null,null,null,null,null,null,null,null,"Lod"]
[null,null,null,null,null,null,null,null,null,null,null,null,"Lod"]
[null,null,null,null,null,null,null,null,null,null,null,null,"Lod"]
[null,null,null,null,null,null,null,null,null,null,null,null,"Lod"]
[null,null,null,null,null,null,null,null,null,null,null,null,"Lod"]
[null,null,null,null,null,null,null,null,null,null,null,null,"Lod"]
[null,null,null,null,null,null,null,null,null,null,null,null,"Lod"]
[null,null,null,null,null,null,null,null,null,null,null,null,"Lod"]
[null,null,null,null,null,null,null,null,null,null,null,null,"Lod"]
[null,null,null,null,null,null,null,null,null,null,null,null,"Lod"]
[null,null,null,null,null,null,null,null,null,null,null,null,"Lod"]
[null,null,null,null,null,null,null,null,null,null,null,null,"Lod"]
[null,null,null,null,null,null,null,null,null,null,null,null,"Lod"]
[null,null,null,null,null,null,null,null,null,null,null,null,"Lod"]
[null,null,null,null,null,null,null,null,null,null,null,null,"Lod"]
[null,null,null,null,null,null,null,null,null,null,null,null,"Lod"]
[null,null,null,null,null,null,null,null,null,null,null,null,"Lod"]
[null,null,null,null,null,null,null,null,null,null,null,null,"Lod"]
[null,null,null,null,null,null,null,null,null,null,null,null,"Lod"]
[null,null,null,null,null,null,null,null,null,null,null,null,"Lod"]
[null,null,null,null,null,null,null,null,null,null,null,null,"Lod"]
[null,null,null,null,null,null,null,null,null,null,null,null,"Lod"]
[null,null,null,null,null,null,null,null,null,null,null,null,"Lod"]
[null,null,null,null,null,null,null,null,null,null,null,null,"Lod"]
[null,null,null,null,null,null,null,null,null,null,null,null,"Lod"]
[null,null,null,null,null,null,null,null,null,null,null,null,"Lod"]
[null,null,null,null,null,null,null,null,null,null,null,null,"Lod"]
[null,null,null,null,null,null,null,null,null,null,null,null,"Lod"]
[null,null,null,null,null,null,null,null,null,null,null,null,"Lod"]
[null,null,null,null,null,null,null,null,null,null,null,null,"Lod"]
[null,null,null,null,null,null,null,null,null,null,null,null,"Lod"]
[null,null,null,null,null,null,null,null,null,null,null,null,"Lod"]
[null,null,null,null,null,null,null,null,null,null,null,null,"Lod"]
[null,null,null,null,null,null,null,null,null,null,null,null,"Lod"]
[null,null,null,null,null,null,null,null,null,null,null,null,"Lod"]
[null,null,null,null,null,null,null,null,null,null,null,null,"Lod"]
[null,null,null,null,null,null,null,null,null,null,null,null,"Lod"]
[null,null,null,null,null,null,null,null,null,null,null,null,"Lod"]
[null,null,null,null,null,null,null,null,null,null,null,null,"Lod"]
[null,null,null,null,null,null,null,null,null,null,null,null,"Lod"]
[null,null,null,null,null,null,null,null,null,null,null,null,"Lod"]
[null,null,null,null,null,null,null,null,null,null,null,null,"Lod"]
[null,null,null,null,null,null,null,null,null,null,null,null,"Lod"]
[null,null,null,null,null,null,null,null,null,null,null,null,"Lod"]
[null,null,null,null,null,null,null,null,null,null,null,null,"Lod"]
[null,null,null,null,null,null,null,null,null,null,null,null,"Lod"]
[null,null,null,null,null,null,null,null,null,null,null,null,"Lod"]
[null,null,null,null,null,null,null,null,null,null,null,null,"Lod"]
[null,null,null,null,null,null,null,null,null,null,null,null,"Lod"]
[null,null,null,null,null,null,null,null,null,null,null,null,"Lod"]
[null,null,null,null,null,null,null,null,null,null,null,null,"Lod"]
[null,null,null,null,null,null,null,null,null,null,null,null,"Lod"]
[null,null,null,null,null,null,null,null,null,null,null,null,"Lod"]
[null,null,null,null,null,null,null,null,null,null,null,null,"Lod"]
[null,null,null,null,null,null,null,null,null,null,null,null,"Lod"]
[null,null,null,null,null,null,null,null,null,null,null,null,"Lod"]
[null,null,null,null,null,null,null,null,null,null,null,null,"Lod"]
[null,null,null,null,null,null,null,null,null,null,null,null,"Lod"]
[null,null,null,null,null,null,null,null,null,null,null,null,"Lod"]
[null,null,null,null,null,null,null,null,null,null,null,null,"Lod"]
[null,null,null,null,null,null,null,null,null,null,null,null,"Lod"]
[null,null,null,null,null,null,null,null,null,null,null,null,"Lod"]
[null,null,null,null,null,null,null,null,null,null,null,null,"Lod"]
[null,null,null,null,null,null,null,null,null,null,null,null,"Lod"]
[null,null,null,null,null,null,null,null,null,null,null,null,"Lod"]
[null,null,null,null,null,null,null,null,null,null,null,null,"Lod"]
[null,null,null,null,null,null,null,null,null,null,null,null,"Lod"]
[null,null,null,null,null,null,null,null,null,null,null,null,"Lod"]
[null,null,null,null,null,null,null,null,null,null,null,null,"Lod"]
[null,null,null,null,null,null,null,null,null,null,null,null,"Lod"]
[null,null,null,null,null,null,null,null,null,null,null,null,"Lod"]
[null,null,null,null,null,null,null,null,null,null,null,null,"Lod"]
[null,null,null,null,null,null,null,null,null,null,null,null,"Lod"]
[null,null,null,null,null,null,null,null,null,null,null,null,"Lod"]
[null,null,null,null,null,null,null,null,null,null,null,null,"Lod"]
[null,null,null,null,null,null,null,null,null,null,null,null,"Lod"]
[null,null,null,null,null,null,null,null,null,null,null,null,"Lod"]
[null,null,null,null,null,null,null,null,null,null,null,null,"Lod"]
[null,null,null,null,null,null,null,null,null,null,null,null,"Lod"]
[null,null,null,null,null,null,null,null,null,null,null,null,"Lod"]
[null,null,null,null,null,null,null,null,null,null,null,null,"Lod"]
[null,null,null,null,null,null,null,null,null,null,null,null,"Lod"]
[null,null,null,null,null,null,null,null,null,null,null,null,"Lod"]
[null,null,null,null,null,null,null,null,null,null,null,null,"Lod"]
[null,null,null,null,null,null,null,null,null,null,null,null,"Lod"]
[null,null,null,null,null,null,null,null,null,null,null,null,"Lod"]
[null,null,null,null,null,null,null,null,null,null,null,null,"Lod"]
[null,null,null,null,null,null,null,null,null,null,null,null,"Lod"]
[null,null,null,null,null,null,null,null,null,null,null,null,"Lod"]
[null,null,null,null,null,null,null,null,null,null,null,null,"Lod"]
[null,null,null,null,null,null,null,null,null,null,null,null,"Lod"]
[null,null,null,null,null,null,null,null,null,null,null,null,"Lod"]
[null,null,null,null,null,null,null,null,null,null,null,null,"Lod"]
[null,null,null,null,null,null,null,null,null,null,null,null,"Lod"]
[null,null,null,null,null,null,null,null,null,null,null,null,"Lod"]
[null,null,null,null,null,null,null,null,null,null,null,null,"Lod"]
[null,null,null,null,null,null,null,null,null,null,null,null,"Lod"]
[null,null,null,null,null,null,null,null,null,null,null,null,"Lod"]
[null,null,null,null,null,null,null,null,null,null,null,null,"Lod"]
[null,null,null,null,null,null,null,null,null,null,null,null,"Lod"]
[null,null,null,null,null,null,null,null,null,null,null,null,"Lod"]
[null,null,null,null,null,null,null,null,null,null,null,null,"Lod"]
[null,null,null,null,null,null,null,null,null,null,null,null,"Lod"]
[null,null,null,null,null,null,null,null,null,null,null,null,"Lod"]
[null,null,null,null,null,null,null,null,null,null,null,null,"Lod"]
[null,null,null,null,null,null,null,null,null,null,null,null,"Lod"]
[null,null,null,null,null,null,null,null,null,null,null,null,"Lod"]
[null,null,null,null,null,null,null,null,null,null,null,null,"Lod"]
[null,null,null,null,null,null,null,null,null,null,null,null,"Lod"]
[null,null,null,null,null,null,null,null,null,null,null,null,"Lod"]
[null,null,null,null,null,null,null,null,null,null,null,null,"Lod"]
[null,null,null,null,null,null,null,null,null,null,null,null,"Lod"]
[null,null,null,null,null,null,null,null,null,null,null,null,"Lod"]
[null,null,null,null,null,null,null,null,null,null,null,null,"Lod"]
[null,null,null,null,null,null,null,null,null,null,null,null,"Lod"]
[null,null,null,null,null,null,null,null,null,null,null,null,"Lod"]
[null,null,null,null,null,null,null,null,null,null,null,null,"Lod"]
[null,null,null,null,null,null,null,null,null,null,null,null,"Lod"]
[null,null,null,null,null,null,null,null,null,null,null,null,"Lod"]
[null,null,null,null,null,null,null,null,null,null,null,null,"Lod"]
[null,null,null,null,null,null,null,null,null,null,null,null,"Lod"]
[null,null,null,null,null,null,null,null,null,null,null,null,"Lod"]
[null,null,null,null,null,null,null,null,null,null,null,null,"Lod"]
[null,null,null,null,null,null,null,null,null,null,null,null,"Lod"]
[null,null,null,null,null,null,null,null,null,null,null,null,"Lod"]
[null,null,null,null,null,null,null,null,null,null,null,null,"Lod"]
[null,null,null,null,null,null,null,null,null,null,null,null,"Lod"]
[null,null,null,null,null,null,null,null,null,null,null,null,"Lod"]
[null,null,null,null,null,null,null,null,null,null,null,null,"Lod"]
[null,null,null,null,null,null,null,null,null,null,null,null,"Lod"]
[null,null,null,null,null,null,null,null,null,null,null,null,"Lod"]
[null,null,null,null,null,null,null,null,null,null,null,null,"Lod"]
[null,null,null,null,null,null,null,null,null,null,null,null,"Lod"]
[null,null,null,null,null,null,null,null,null,null,null,null,"Lod"]
[null,null,null,null,null,null,null,null,null,null,null,null,"Lod"]
[null,null,null,null,null,null,null,null,null,null,null,null,"Lod"]
[null,null,null,null,null,null,null,null,null,null,null,null,"Lod"]
[null,null,null,null,null,null,null,null,null,null,null,null,"Lod"]
[null,null,null,null,null,null,null,null,null,null,null,null,"Lod"]
[null,null,null,null,null,null,null,null,null,null,null,null,"Lod"]
[null,null,null,null,null,null,null,null,null,null,null,null,"Lod"]
[null,null,null,null,null,null,null,null,null,null,null,null,"Lod"]
[null,null,null,null,null,null,null,null,null,null,null,null,"Lod"]
[null,null,null,null,null,null,null,null,null,null,null,null,"Lod"]
[null,null,null,null,null,null,null,null,null,null,null,null,"Lod"]
[null,null,null,null,null,null,null,null,null,null,null,null,"Lod"]
[null,null,null,null,null,null,null,null,null,null,null,null,"Lod"]
[null,null,null,null,null,null,null,null,null,null,null,null,"Lod"]
[null,null,null,null,null,null,null,null,null,null,null,null,"Lod"]
[null,null,null,null,null,null,null,null,null,null,null,null,"Lod"]
[null,null,null,null,null,null,null,null,null,null,null,null,"Lod"]
[null,null,null,null,null,null,null,null,null,null,null,null,"Lod"]
[null,null,null,null,null,null,null,null,null,null,null,null,"Lod"]
[null,null,null,null,null,null,null,null,null,null,null,null,"Lod"]
[null,null,null,null,null,null,null,null,null,null,null,null,"Lod"]
[null,null,null,null,null,null,null,null,null,null,null,null,"Lod"]
[null,null,null,null,null,null,null,null,null,null,null,null,"Lod"]
[null,null,null,null,null,null,null,null,null,null,null,null,"Lod"]
[null,null,null,null,null,null,null,null,null,null,null,null,"Lod"]
[null,null,null,null,null,null,null,null,null,null,null,null,"Lod"]
[null,null,null,null,null,null,null,null,null,null,null,null,"Lod"]
[null,null,null,null,null,null,null,null,null,null,null,null,"Lod"]
[null,null,null,null,null,null,null,null,null,null,null,null,"Lod"]
[null,null,null,null,null,null,null,null,null,null,null,null,"Lod"]
[null,null,null,null,null,null,null,null,null,null,null,null,"Lod"]
[null,null,null,null,null,null,null,null,null,null,null,null,"Lod"]
[null,null,null,null,null,null,null,null,null,null,null,null,"Lod"]
[null,null,null,null,null,null,null,null,null,null,null,null,"Lod"]
[null,null,null,null,null,null,null,null,null,null,null,null,"Lod"]
[null,null,null,null,null,null,null,null,null,null,null,null,"Lod"]
[null,null,null,null,null,null,null,null,null,null,null,null,"Lod"]
[null,null,null,null,null,null,null,null,null,null,null,null,"Lod"]
[null,null,null,null,null,null,null,null,null,null,null,null,"Lod"]
[null,null,null,null,null,null,null,null,null,null,null,null,"Lod"]
[null,null,null,null,null,null,null,null,null,null,null,null,"Lod"]
[null,null,null,null,null,null,null,null,null,null,null,null,"Lod"]
[null,null,null,null,null,null,null,null,null,null,null,null,"Lod"]
[null,null,null,null,null,null,null,null,null,null,null,null,"Lod"]
[null,null,null,null,null,null,null,null,null,null,null,null,"Lod"]
[null,null,null,null,null,null,null,null,null,null,null,null,"Lod"]
[null,null,null,null,null,null,null,null,null,null,null,null,"Lod"]
[null,null,null,null,null,null,null,null,null,null,null,null,"Lod"]
[null,null,null,null,null,null,null,null,null,null,null,null,"Lod"]
[null,null,null,null,null,null,null,null,null,null,null,null,"Lod"]
[null,null,null,null,null,null,null,null,null,null,null,null,"Lod"]
[null,null,null,null,null,null,null,null,null,null,null,null,"Lod"]
[null,null,null,null,null,null,null,null,null,null,null,null,"Lod"]
[null,null,null,null,null,null,null,null,null,null,null,null,"Lod"]
[null,null,null,null,null,null,null,null,null,null,null,null,"Lod"]
[null,null,null,null,null,null,null,null,null,null,null,null,"Lod"]
[null,null,null,null,null,null,null,null,null,null,null,null,"Lod"]
[null,null,null,null,null,null,null,null,null,null,null,null,"Lod"]
[null,null,null,null,null,null,null,null,null,null,null,null,"Lod"]
[null,null,null,null,null,null,null,null,null,null,null,null,"Lod"]
[null,null,null,null,null,null,null,null,null,null,null,null,"Lod"]
[null,null,null,null,null,null,null,null,null,null,null,null,"Lod"]
[null,null,null,null,null,null,null,null,null,null,null,null,"Lod"]
[null,null,null,null,null,null,null,null,null,null,null,null,"Lod"]
[null,null,null,null,null,null,null,null,null,null,null,null,"Lod"]
[null,null,null,null,null,null,null,null,null,null,null,null,"Lod"]
[null,null,null,null,null,null,null,null,null,null,null,null,"Lod"]
[null,null,null,null,null,null,null,null,null,null,null,null,"Lod"]
[null,null,null,null,null,null,null,null,null,null,null,null,"Lod"]
[null,null,null,null,null,null,null,null,null,null,null,null,"Lod"]
[null,null,null,null,null,null,null,null,null,null,null,null,"Lod"]
[null,null,null,null,null,null,null,null,null,null,null,null,"Lod"]
[null,null,null,null,null,null,null,null,null,null,null,null,"Lod"]
[null,null,null,null,null,null,null,null,null,null,null,null,"Lod"]
[null,null,null,null,null,null,null,null,null,null,null,null,"Lod"]
[null,null,null,null,null,null,null,null,null,null,null,null,"Lod"]
[null,null,null,null,null,null,null,null,null,null,null,null,"Lod"]
[null,null,null,null,null,null,null,null,null,null,null,null,"Lod"]
[null,null,null,null,null,null,null,null,null,null,null,null,"Lod"]
[null,null,null,null,null,null,null,null,null,null,null,null,"Lod"]
[null,null,null,null,null,null,null,null,null,null,null,null,"Lod"]
[null,null,null,null,null,null,null,null,null,null,null,null,"Lod"]
[null,null,null,null,null,null,null,null,null,null,null,null,"Lod"]
[null,null,null,null,null,null,null,null,null,null,null,null,"Lod"]
[null,null,null,null,null,null,null,null,null,null,null,null,"Lod"]
[null,null,null,null,null,null,null,null,null,null,null,null,"Lod"]
[null,null,null,null,null,null,null,null,null,null,null,null,"Lod"]
[null,null,null,null,null,null,null,null,null,null,null,null,"Lod"]
[null,null,null,null,null,null,null,null,null,null,null,null,"Lod"]
[null,null,null,null,null,null,null,null,null,null,null,null,"Lod"]
[null,null,null,null,null,null,null,null,null,null,null,null,"Lod"]
[null,null,null,null,null,null,null,null,null,null,null,null,"Lod"]
[null,null,null,null,null,null,null,null,null,null,null,null,"Lod"]
[null,null,null,null,null,null,null,null,null,null,null,null,"Lod"]
[null,null,null,null,null,null,null,null,null,null,null,null,"Lod"]
[null,null,null,null,null,null,null,null,null,null,null,null,"Lod"]
[null,null,null,null,null,null,null,null,null,null,null,null,"Lod"]
[null,null,null,null,null,null,null,null,null,null,null,null,"Lod"]
[null,null,null,null,null,null,null,null,null,null,null,null,"Lod"]
[null,null,null,null,null,null,null,null,null,null,null,null,"Lod"]
[null,null,null,null,null,null,null,null,null,null,null,null,"Lod"]
[null,null,null,null,null,null,null,null,null,null,null,null,"Lod"]
[null,null,null,null,null,null,null,null,null,null,null,null,"Lod"]
[null,null,null,null,null,null,null,null,null,null,null,null,"Lod"]
[null,null,null,null,null,null,null,null,null,null,null,null,"Lod"]
[null,null,null,null,null,null,null,null,null,null,null,null,"Lod"]
[null,null,null,null,null,null,null,null,null,null,null,null,"Lod"]
[null,null,null,null,null,null,null,null,null,null,null,null,"Lod"]
[null,null,null,null,null,null,null,null,null,null,null,null,"Lod"]
[null,null,null,null,null,null,null,null,null,null,null,null,"Lod"]
[null,null,null,null,null,null,null,null,null,null,null,null,"Lod"]
[null,null,null,null,null,null,null,null,null,null,null,null,"Lod"]
[null,null,null,null,null,null,null,null,null,null,null,null,"Lod"]
[null,null,null,null,null,null,null,null,null,null,null,null,"Lod"]
[null,null,null,null,null,null,null,null,null,null,null,null,"Lod"]
[null,null,null,null,null,null,null,null,null,null,null,null,"Lod"]
[null,null,null,null,null,null,null,null,null,null,null,null,"Lod"]
[null,null,null,null,null,null,null,null,null,null,null,null,"Lod"]
[null,null,null,null,null,null,null,null,null,null,null,null,"Lod"]
[null,null,null,null,null,null,null,null,null,null,null,null,"Lod"]
[null,null,null,null,null,null,null,null,null,null,null,null,"Lod"]
[null,null,null,null,null,null,null,null,null,null,null,null,"Lod"]
[null,null,null,null,null,null,null,null,null,null,null,null,"Lod"]
[null,null,null,null,null,null,null,null,null,null,null,null,"Lod"]
[null,null,null,null,null,null,null,null,null,null,null,null,"Lod"]
[null,null,null,null,null,null,null,null,null,null,null,null,"Lod"]
[null,null,null,null,null,null,null,null,null,null,null,null,"Lod"]
[null,null,null,null,null,null,null,null,null,null,null,null,"Lod"]
[null,null,null,null,null,null,null,null,null,null,null,null,"Lod"]
[null,null,null,null,null,null,null,null,null,null,null,null,"Lod"]
[null,null,null,null,null,null,null,null,null,null,null,null,"Lod"]
[null,null,null,null,null,null,null,null,null,null,null,null,"Lod"]
[null,null,null,null,null,null,null,null,null,null,null,null,"Lod"]
[null,null,null,null,null,null,null,null,null,null,null,null,"Lod"]
[null,null,null,null,null,null,null,null,null,null,null,null,"Lod"]
[null,null,null,null,null,null,null,null,null,null,null,null,"Lod"]
[null,null,null,null,null,null,null,null,null,null,null,null,"Lod"]
[null,null,null,null,null,null,null,null,null,null,null,null,"Lod"]
[null,null,null,null,null,null,null,null,null,null,null,null,"Lod"]
[null,null,null,null,null,null,null,null,null,null,null,null,"Lod"]
[null,null,null,null,null,null,null,null,null,null,null,null,"Lod"]
[null,null,null,null,null,null,null,null,null,null,null,null,"Lod"]
[null,null,null,null,null,null,null,null,null,null,null,null,"Lod"]
[null,null,null,null,null,null,null,null,null,null,null,null,"Lod"]
[null,null,null,null,null,null,null,null,null,null,null,null,"Lod"]
[null,null,null,null,null,null,null,null,null,null,null,null,"Lod"]
[null,null,null,null,null,null,null,null,null,null,null,null,"Lod"]
[null,null,null,null,null,null,null,null,null,null,null,null,"Lod"]
[null,null,null,null,null,null,null,null,null,null,null,null,"Lod"]
[null,null,null,null,null,null,null,null,null,null,null,null,"Lod"]
[null,null,null,null,null,null,null,null,null,null,null,null,"Lod"]
[null,null,null,null,null,null,null,null,null,null,null,null,"Lod"]
[null,null,null,null,null,null,null,null,null,null,null,null,"Lod"]
[null,null,null,null,null,null,null,null,null,null,null,null,"Lod"]
[null,null,null,null,null,null,null,null,null,null,null,null,"Lod"]
[null,null,null,null,null,null,null,null,null,null,null,null,"Lod"]
[null,null,null,null,null,null,null,null,null,null,null,null,"Lod"]
[null,null,null,null,null,null,null,null,null,null,null,null,"Lod"]
[null,null,null,null,null,null,null,null,null,null,null,null,"Lod"]
[null,null,null,null,null,null,null,null,null,null,null,null,"Lod"]
[null,null,null,null,null,null,null,null,null,null,null,null,"Lod"]
[null,null,null,null,null,null,null,null,null,null,null,null,"Lod"]
[null,null,null,null,null,null,null,null,null,null,null,null,"Lod"]
[null,null,null,null,null,null,null,null,null,null,null,null,"Lod"]
[null,null,null,null,null,null,null,null,null,null,null,null,"Lod"]
[null,null,null,null,null,null,null,null,null,null,null,null,"Lod"]
[null,null,null,null,null,null,null,null,null,null,null,null,"Lod"]
[null,null,null,null,null,null,null,null,null,null,null,null,"Lod"]
[null,null,null,null,null,null,null,null,null,null,null,null,"Lod"]
[null,null,null,null,null,null,null,null,null,null,null,null,"Lod"]
[null,null,null,null,null,null,null,null,null,null,null,null,"Lod"]
[null,null,null,null,null,null,null,null,null,null,null,null,"Lod"]
[null,null,null,null,null,null,null,null,null,null,null,null,"Lod"]
[null,null,null,null,null,null,null,null,null,null,null,null,"Lod"]
[null,null,null,null,null,null,null,null,null,null,null,null,"Lod"]
[null,null,null,null,null,null,null,null,null,null,null,null,"Lod"]
[null,null,null,null,null,null,null,null,null,null,null,null,"Lod"]
[null,null,null,null,null,null,null,null,null,null,null,null,"Lod"]
[null,null,null,null,null,null,null,null,null,null,null,null,"Lod"]
[null,null,null,null,null,null,null,null,null,null,null,null,"Lod"]
[null,null,null,null,null,null,null,null,null,null,null,null,"Lod"]
[null,null,null,null,null,null,null,null,null,null,null,null,"Lod"]
[null,null,null,null,null,null,null,null,null,null,null,null,"Lod"]
[null,null,null,null,null,null,null,null,null,null,null,null,"Lod"]
[null,null,null,null,null,null,null,null,null,null,null,null,"Lod"]
[null,null,null,null,null,null,null,null,null,null,null,null,"Lod"]
[null,null,null,null,null,null,null,null,null,null,null,null,"Lod"]
[null,null,null,null,null,null,null,null,null,null,null,null,"Lod"]
[null,null,null,null,null,null,null,null,null,null,null,null,"Lod"]
[null,null,null,null,null,null,null,null,null,null,null,null,"Lod"]
[null,null,null,null,null,null,null,null,null,null,null,null,"Lod"]
[null,null,null,null,null,null,null,null,null,null,null,null,"Lod"]
[null,null,null,null,null,null,null,null,null,null,null,null,"Lod"]
[null,null,null,null,null,null,null,null,null,null,null,null,"Lod"]
[null,null,null,null,null,null,null,null,null,null,null,null,"Lod"]
[null,null,null,null,null,null,null,null,null,null,null,null,"Lod"]
[null,null,null,null,null,null,null,null,null,null,null,null,"Lod"]
[null,null,null,null,null,null,null,null,null,null,null,null,"Lod"]
[null,null,null,null,null,null,null,null,null,null,null,null,"Lod"]
[null,null,null,null,null,null,null,null,null,null,null,null,"Lod"]
[null,null,null,null,null,null,null,null,null,null,null,null,"Lod"]
[null,null,null,null,null,null,null,null,null,null,null,null,"Lod"]
[null,null,null,null,null,null,null,null,null,null,null,null,"Lod"]
[null,null,null,null,null,null,null,null,null,null,null,null,"Lod"]
[null,null,null,null,null,null,null,null,null,null,null,null,"Lod"]
[null,null,null,null,null,null,null,null,null,null,null,null,"Lod"]
[null,null,null,null,null,null,null,null,null,null,null,null,"Lod"]
[null,null,null,null,null,null,null,null,null,null,null,null,"Lod"]
[null,null,null,null,null,null,null,null,null,null,null,null,"Lod"]
[null,null,null,null,null,null,null,null,null,null,null,null,"Lod"]
[null,null,null,null,null,null,null,null,null,null,null,null,"Lod"]
[null,null,null,null,null,null,null,null,null,null,null,null,"Lod"]
[null,null,null,null,null,null,null,null,null,null,null,null,"Lod"]
[null,null,null,null,null,null,null,null,null,null,null,null,"Lod"]
[null,null,null,null,null,null,null,null,null,null,null,null,"Lod"]
[null,null,null,null,null,null,null,null,null,null,null,null,"Lod"]
[null,null,null,null,null,null,null,null,null,null,null,null,"Lod"]
[null,null,null,null,null,null,null,null,null,null,null,null,"Lod"]
[null,null,null,null,null,null,null,null,null,null,null,null,"Lod"]
[null,null,null,null,null,null,null,null,null,null,null,null,"Lod"]
[null,null,null,null,null,null,null,null,null,null,null,null,"Lod"]
[null,null,null,null,null,null,null,null,null,null,null,null,"Lod"]
[null,null,null,null,null,null,null,null,null,null,null,null,"Lod"]
[null,null,null,null,null,null,null,null,null,null,null,null,"Lod"]
[null,null,null,null,null,null,null,null,null,null,null,null,"Lod"]
[null,null,null,null,null,null,null,null,null,null,null,null,"Lod"]
[null,null,null,null,null,null,null,null,null,null,null,null,"Lod"]
[null,null,null,null,null,null,null,null,null,null,null,null,"Lod"]
[null,null,null,null,null,null,null,null,null,null,null,null,"Lod"]
[null,null,null,null,null,null,null,null,null,null,null,null,"Lod"]
[null,null,null,null,null,null,null,null,null,null,null,null,"Lod"]
[null,null,null,null,null,null,null,null,null,null,null,null,"Lod"]
[null,null,null,null,null,null,null,null,null,null,null,null,"Lod"]
[null,null,null,null,null,null,null,null,null,null,null,null,"Lod"]
[null,null,null,null,null,null,null,null,null,null,null,null,"Lod"]
[null,null,null,null,null,null,null,null,null,null,null,null,"Lod"]
[null,null,null,null,null,null,null,null,null,null,null,null,"Lod"]
[null,null,null,null,null,null,null,null,null,null,null,null,"Lod"]
[null,null,null,null,null,null,null,null,null,null,null,null,"Lod"]
[null,null,null,null,null,null,null,null,null,null,null,null,"Lod"]
[null,null,null,null,null,null,null,null,null,null,null,null,"Lod"]
[null,null,null,null,null,null,null,null,null,null,null,null,"Lod"]
[null,null,null,null,null,null,null,null,null,null,null,null,"Lod"]
[null,null,null,null,null,null,null,null,null,null,null,null,"Lod"]
[null,null,null,null,null,null,null,null,null,null,null,null,"Lod"]
[null,null,null,null,null,null,null,null,null,null,null,null,"Lod"]
[null,null,null,null,null,null,null,null,null,null,null,null,"Lod"]
[null,null,null,null,null,null,null,null,null,null,null,null,"Lod"]
[null,null,null,null,null,null,null,null,null,null,null,null,"Lod"]
[null,null,null,null,null,null,null,null,null,null,null,null,"Lod"]
[null,null,null,null,null,null,null,null,null,null,null,null,"Lod"]
[null,null,null,null,null,null,null,null,null,null,null,null,"Lod"]
[null,null,null,null,null,null,null,null,null,null,null,null,"Lod"]
[null,null,null,null,null,null,null,null,null,null,null,null,"Lod"]
[null,null,null,null,null,null,null,null,null,null,null,null,"Lod"]
[null,null,null,null,null,null,null,null,null,null,null,null,"Lod"]
[null,null,null,null,null,null,null,null,null,null,null,null,"Lod"]
[null,null,null,null,null,null,null,null,null,null,null,null,"Lod"]
[null,null,null,null,null,null,null,null,null,null,null,null,"Lod"]
[null,null,null,null,null,null,null,null,null,null,null,null,"Lod"]
[null,null,null,null,null,null,null,null,null,null,null,null,"Lod"]
[null,null,null,null,null,null,null,null,null,null,null,null,"Lod"]
[null,null,null,null,null,null,null,null,null,null,null,null,"Lod"]
[null,null,null,null,null,null,null,null,null,null,null,null,"Lod"]
[null,null,null,null,null,null,null,null,null,null,null,null,"Lod"]
[null,null,null,null,null,null,null,null,null,null,null,null,"Lod"]
[null,null,null,null,null,null,null,null,null,null,null,null,"Lod"]
[null,null,null,null,null,null,null,null,null,null,null,null,"Lod"]
[null,null,null,null,null,null,null,null,null,null,null,null,"Lod"]
[null,null,null,null,null,null,null,null,null,null,null,null,"Lod"]
[null,null,null,null,null,null,null,null,null,null,null,null,"Lod"]
[null,null,null,null,null,null,null,null,null,null,null,null,"Lod"]
[null,null,null,null,null,null,null,null,null,null,null,null,"Lod"]
[null,null,null,null,null,null,null,null,null,null,null,null,"Lod"]
[null,null,null,null,null,null,null,null,null,null,null,null,"Lod"]
[null,null,null,null,null,null,null,null,null,null,null,null,"Lod"]
[null,null,null,null,null,null,null,null,null,null,null,null,"Lod"]
[null,null,null,null,null,null,null,null,null,null,null,null,"Lod"]
[null,null,null,null,null,null,null,null,null,null,null,null,"Lod"]
[null,null,null,null,null,null,null,null,null,null,null,null,"Lod"]
[null,null,null,null,null,null,null,null,null,null,null,null,"Lod"]
[null,null,null,null,null,null,null,null,null,null,null,null,"Lod"]
[null,null,null,null,null,null,null,null,null,null,null,null,"Lod"]
[null,null,null,null,null,null,null,null,null,null,null,null,"Lod"]
[null,null,null,null,null,null,null,null,null,null,null,null,"Lod"]
[null,null,null,null,null,null,null,null,null,null,null,null,"Lod"]
[null,null,null,null,null,null,null,null,null,null,null,null,"Lod"]
[null,null,null,null,null,null,null,null,null,null,null,null,"Lod"]
[null,null,null,null,null,null,null,null,null,null,null,null,"Lod"]
[null,null,null,null,null,null,null,null,null,null,null,null,"Lod"]
[null,null,null,null,null,null,null,null,null,null,null,null,"Lod"]
[null,null,null,null,null,null,null,null,null,null,null,null,"Lod"]
[null,null,null,null,null,null,null,null,null,null,null,null,"Lod"]
[null,null,null,null,null,null,null,null,null,null,null,null,"Lod"]
[null,null,null,null,null,null,null,null,null,null,null,null,"Lod"]
[null,null,null,null,null,null,null,null,null,null,null,null,"Lod"]
[null,null,null,null,null,null,null,null,null,null,null,null,"Lod"]
[null,null,null,null,null,null,null,null,null,null,null,null,"Lod"]
[null,null,null,null,null,null,null,null,null,null,null,null,"Lod"]
[null,null,null,null,null,null,null,null,null,null,null,null,"Lod"]
[null,null,null,null,null,null,null,null,null,null,null,null,"Lod"]
[null,null,null,null,null,null,null,null,null,null,null,null,"Lod"]
[null,null,null,null,null,null,null,null,null,null,null,null,"Lod"]
[null,null,null,null,null,null,null,null,null,null,null,null,"Lod"]
[null,null,null,null,null,null,null,null,null,null,null,null,"Lod"]
[null,null,null,null,null,null,null,null,null,null,null,null,"Lod"]
[null,null,null,null,null,null,null,null,null,null,null,null,"Lod"]
[null,null,null,null,null,null,null,null,null,null,null,null,"Lod"]
[null,null,null,null,null,null,null,null,null,null,null,null,"Lod"]
[null,null,null,null,null,null,null,null,null,null,null,null,"Lod"]
[null,null,null,null,null,null,null,null,null,null,null,null,"Lod"]
[null,null,null,null,null,null,null,null,null,null,null,null,"Lod"]
[null,null,null,null,null,null,null,null,null,null,null,null,"Lod"]
[null,null,null,null,null,null,null,null,null,null,null,null,"Lod"]
[null,null,null,null,null,null,null,null,null,null,null,null,"Lod"]
[null,null,null,null,null,null,null,null,null,null,null,null,"Lod"]
[null,null,null,null,null,null,null,null,null,null,null,null,"Lod"]
[null,null,null,null,null,null,null,null,null,null,null,null,"Lod"]
[null,null,null,null,null,null,null,null,null,null,null,null,"Lod"]
[null,null,null,null,null,null,null,null,null,null,null,null,"Lod"]
[null,null,null,null,null,null,null,null,null,null,null,null,"Lod"]
[null,null,null,null,null,null,null,null,null,null,null,null,"Lod"]
[null,null,null,null,null,null,null,null,null,null,null,null,"Lod"]
[null,null,null,null,null,null,null,null,null,null,null,null,"Lod"]
[null,null,null,null,null,null,null,null,null,null,null,null,"Lod"]
[null,null,null,null,null,null,null,null,null,null,null,null,"Lod"]
[null,null,null,null,null,null,null,null,null,null,null,null,"Lod"]
[null,null,null,null,null,null,null,null,null,null,null,null,"Lod"]
[null,null,null,null,null,null,null,null,null,null,null,null,"Lod"]
[null,null,null,null,null,null,null,null,null,null,null,null,"Lod"]
[null,null,null,null,null,null,null,null,null,null,null,null,"Lod"]
[null,null,null,null,null,null,null,null,null,null,null,null,"Lod"]
[null,null,null,null,null,null,null,null,null,null,null,null,"Lod"]
[null,null,null,null,null,null,null,null,null,null,null,null,"Lod"]
[null,null,null,null,null,null,null,null,null,null,null,null,"Lod"]
[null,null,null,null,null,null,null,null,null,null,null,null,"Lod"]
[null,null,null,null,null,null,null,null,null,null,null,null,"Lod"]
[null,null,null,null,null,null,null,null,null,null,null,null,"Lod"]
[null,null,null,null,null,null,null,null,null,null,null,null,"Lod"]
[null,null,null,null,null,null,null,null,null,null,null,null,"Lod"]
[null,null,null,null,null,null,null,null,null,null,null,null,"Lod"]
[null,null,null,null,null,null,null,null,null,null,null,null,"Lod"]
[null,null,null,null,null,null,null,null,null,null,null,null,"Lod"]
[null,null,null,null,null,null,null,null,null,null,null,null,"Lod"]
[null,null,null,null,null,null,null,null,null,null,null,null,"Lod"]
[null,null,null,null,null,null,null,null,null,null,null,null,"Lod"]
[null,null,null,null,null,null,null,null,null,null,null,null,"Lod"]
[null,null,null,null,null,null,null,null,null,null,null,null,"Lod"]
[null,null,null,null,null,null,null,null,null,null,null,null,"Lod"]
[null,null,null,null,null,null,null,null,null,null,null,null,"Lod"]
[null,null,null,null,null,null,null,null,null,null,null,null,"Lod"]
[null,null,null,null,null,null,null,null,null,null,null,null,"Lod"]
[null,null,null,null,null,null,null,null,null,null,null,null,"Lod"]
[null,null,null,null,null,null,null,null,null,null,null,null,"Lod"]
[null,null,null,null,null,null,null,null,null,null,null,null,"Lod"]
[null,null,null,null,null,null,null,null,null,null,null,null,"Lod"]
[null,null,null,null,null,null,null,null,null,null,null,null,"Lod"]
[null,null,null,null,null,null,null,null,null,null,null,null,"Lod"]
[null,null,null,null,null,null,null,null,null,null,null,null,"Lod"]
[null,null,null,null,null,null,null,null,null,null,null,null,"Lod"]
[null,null,null,null,null,null,null,null,null,null,null,null,"Lod"]
[null,null,null,null,null,null,null,null,null,null,null,null,"Lod"]
[null,null,null,null,null,null,null,null,null,null,null,null,"Lod"]
[null,null,null,null,null,null,null,null,null,null,null,null,"Lod"]
[null,null,null,null,null,null,null,null,null,null,null,null,"Lod"]
[null,null,null,null,null,null,null,null,null,null,null,null,"Lod"]
[null,null,null,null,null,null,null,null,null,null,null,null,"Lod"]
[null,null,null,null,null,null,null,null,null,null,null,null,"Lod"]
[null,null,null,null,null,null,null,null,null,null,null,null,"Lod"]
[null,null,null,null,null,null,null,null,null,null,null,null,"Lod"]
[null,null,null,null,null,null,null,null,null,null,null,null,"Lod"]
[null,null,null,null,null,null,null,null,null,null,null,null,"Lod"]
[null,null,null,null,null,null,null,null,null,null,null,null,"Lod"]
[null,null,null,null,null,null,null,null,null,null,null,null,"Lod"]
[null,null,null,null,null,null,null,null,null,null,null,null,"Lod"]
[null,null,null,null,null,null,null,null,null,null,null,null,"Lod"]
[null,null,null,null,null,null,null,null,null,null,null,null,"Lod"]
[null,null,null,null,null,null,null,null,null,null,null,null,"Lod"]
[null,null,null,null,null,null,null,null,null,null,null,null,"Lod"]
[null,null,null,null,null,null,null,null,null,null,null,null,"Lod"]
[null,null,null,null,null,null,null,null,null,null,null,null,"Lod"]
[null,null,null,null,null,null,null,null,null,null,null,null,"Lod"]
[null,null,null,null,null,null,null,null,null,null,null,null,"Lod"]
[null,null,null,null,null,null,null,null,null,null,null,null,"Lod"]
[null,null,null,null,null,null,null,null,null,null,null,null,"Lod"]
[null,null,null,null,null,null,null,null,null,null,null,null,"Lod"]
[null,null,null,null,null,null,null,null,null,null,null,null,"Lod"]
[null,null,null,null,null,null,null,null,null,null,null,null,"Lod"]
[null,null,null,null,null,null,null,null,null,null,null,null,"Lod"]
[null,null,null,null,null,null,null,null,null,null,null,null,"Lod"]
[null,null,null,null,null,null,null,null,null,null,null,null,"Lod"]
[null,null,null,null,null,null,null,null,null,null,null,null,"Lod"]
[null,null,null,null,null,null,null,null,null,null,null,null,"Lod"]
[null,null,null,null,null,null,null,null,null,null,null,null,"Lod"]
[null,null,null,null,null,null,null,null,null,null,null,null,"Lod"]
[null,null,null,null,null,null,null,null,null,null,null,null,"Lod"]
[null,null,null,null,null,null,null,null,null,null,null,null,"Lod"]
[null,null,null,null,null,null,null,null,null,null,null,null,"Lod"]
[null,null,null,null,null,null,null,null,null,null,null,null,"Lod"]
[null,null,null,null,null,null,null,null,null,null,null,null,"Lod"]
[null,null,null,null,null,null,null,null,null,null,null,null,"Lod"]
[null,null,null,null,null,null,null,null,null,null,null,null,"Lod"]
[null,null,null,null,null,null,null,null,null,null,null,null,"Lod"]
[null,null,null,null,null,null,null,null,null,null,null,null,"Lod"]
[null,null,null,null,null,null,null,null,null,null,null,null,"Lod"]
[null,null,null,null,null,null,null,null,null,null,null,null,"Lod"]
[null,null,null,null,null,null,null,null,null,null,null,null,"Lod"]
[null,null,null,null,null,null,null,null,null,null,null,null,"Lod"]
[null,null,null,null,null,null,null,null,null,null,null,null,"Lod"]
[null,null,null,null,null,null,null,null,null,null,null,null,"Lod"]
[null,null,null,null,null,null,null,null,null,null,null,null,"Lod"]
[null,null,null,null,null,null,null,null,null,null,null,null,"Lod"]
[null,null,null,null,null,null,null,null,null,null,null,null,"Lod"]
[null,null,null,null,null,null,null,null,null,null,null,null,"Lod"]
[null,null,null,null,null,null,null,null,null,null,null,null,"Lod"]
[null,null,null,null,null,null,null,null,null,null,null,null,"Lod"]
[null,null,null,null,null,null,null,null,null,null,null,null,"Lod"]
[null,null,null,null,null,null,null,null,null,null,null,null,"Lod"]
[null,null,null,null,null,null,null,null,null,null,null,null,"Lod"]
[null,null,null,null,null,null,null,null,null,null,null,null,"Lod"]
[null,null,null,null,null,null,null,null,null,null,null,null,"Lod"]
[null,null,null,null,null,null,null,null,null,null,null,null,"Lod"]
[null,null,null,null,null,null,null,null,null,null,null,null,"Lod"]
[null,null,null,null,null,null,null,null,null,null,null,null,"Lod"]
[null,null,null,null,null,null,null,null,null,null,null,null,"Lod"]
[null,null,null,null,null,null,null,null,null,null,null,null,"Lod"]
[null,null,null,null,null,null,null,null,null,null,null,null,"Lod"]
[null,null,null,null,null,null,null,null,null,null,null,null,"Lod"]
[null,null,null,null,null,null,null,null,null,null,null,null,"Lod"]
[null,null,null,null,null,null,null,null,null,null,null,null,"Lod"]
[null,null,null,null,null,null,null,null,null,null,null,null,"Lod"]
[null,null,null,null,null,null,null,null,null,null,null,null,"Lod"]
[null,null,null,null,null,null,null,null,null,null,null,null,"Lod"]
[null,null,null,null,null,null,null,null,null,null,null,null,"Lod"]
[null,null,null,null,null,null,null,null,null,null,null,null,"Lod"]
[null,null,null,null,null,null,null,null,null,null,null,null,"Lod"]
[null,null,null,null,null,null,null,null,null,null,null,null,"Lod"]
[null,null,null,null,null,null,null,null,null,null,null,null,"Lod"]
[null,null,null,null,null,null,null,null,null,null,null,null,"Lod"]
[null,null,null,null,null,null,null,null,null,null,null,null,"Lod"]
[null,null,null,null,null,null,null,null,null,null,null,null,"Lod"]
[null,null,null,null,null,null,null,null,null,null,null,null,"Lod"]
[null,null,null,null,null,null,null,null,null,null,null,null,"Lod"]
[null,null,null,null,null,null,null,null,null,null,null,null,"Lod"]
[null,null,null,null,null,null,null,null,null,null,null,null,"Lod"]
[null,null,null,null,null,null,null,null,null,null,null,null,"Lod"]
[null,null,null,null,null,null,null,null,null,null,null,null,"Lod"]
[null,null,null,null,null,null,null,null,null,null,null,null,"Lod"]
[null,null,null,null,null,null,null,null,null,null,null,null,"Lod"]
[null,null,null,null,null,null,null,null,null,null,null,null,"Lod"]
[null,null,null,null,null,null,null,null,null,null,null,null,"Lod"]
[null,null,null,null,null,null,null,null,null,null,null,null,"Lod"]
[null,null,null,null,null,null,null,null,null,null,null,null,"Lod"]
[null,null,null,null,null,null,null,null,null,null,null,null,"Lod"]
[null,null,null,null,null,null,null,null,null,null,null,null,"Lod"]
[null,null,null,null,null,null,null,null,null,null,null,null,"Lod"]
[null,null,null,null,null,null,null,null,null,null,null,null,"Lod"]
[null,null,null,null,null,null,null,null,null,null,null,null,"Lod"]
[null,null,null,null,null,null,null,null,null,null,null,null,"Lod"]
[null,null,null,null,null,null,null,null,null,null,null,null,"Lod"]
[null,null,null,null,null,null,null,null,null,null,null,null,"Lod"]
[null,null,null,null,null,null,null,null,null,null,null,null,"Lod"]
[null,null,null,null,null,null,null,null,null,null,null,null,"Lod"]
[null,null,null,null,null,null,null,null,null,null,null,null,"Lod"]
[null,null,null,null,null,null,null,null,null,null,null,null,"Lod"]
[null,null,null,null,null,null,null,null,null,null,null,null,"Lod"]
[null,null,null,null,null,null,null,null,null,null,null,null,"Lod"]
[null,null,null,null,null,null,null,null,null,null,null,null,"Lod"]
[null,null,null,null,null,null,null,null,null,null,null,null,"Lod"]
[null,null,null,null,null,null,null,null,null,null,null,null,"Lod"]
[null,null,null,null,null,null,null,null,null,null,null,null,"Lod"]
[null,null,null,null,null,null,null,null,null,null,null,null,"Lod"]
[null,null,null,null,null,null,null,null,null,null,null,null,"Lod"]
[null,null,null,null,null,null,null,null,null,null,null,null,"Lod"]
[null,null,null,null,null,null,null,null,null,null,null,null,"Lod"]
[null,null,null,null,null,null,null,null,null,null,null,null,"Lod"]
[null,null,null,null,null,null,null,null,null,null,null,null,"Lod"]
[null,null,null,null,null,null,null,null,null,null,null,null,"Lod"]
[null,null,null,null,null,null,null,null,null,null,null,null,"Lod"]
[null,null,null,null,null,null,null,null,null,null,null,null,"Lod"]
[null,null,null,null,null,null,null,null,null,null,null,null,"Lod"]
[null,null,null,null,null,null,null,null,null,null,null,null,"Lod"]
[null,null,null,null,null,null,null,null,null,null,null,null,"Lod"]
[null,null,null,null,null,null,null,null,null,null,null,null,"Lod"]
[null,null,null,null,null,null,null,null,null,null,null,null,"Lod"]
[null,null,null,null,null,null,null,null,null,null,null,null,"Lod"]
[null,null,null,null,null,null,null,null,null,null,null,null,"Lod"]
[null,null,null,null,null,null,null,null,null,null,null,null,"Lod"]
[null,null,null,null,null,null,null,null,null,null,null,null,"Lod"]
[null,null,null,null,null,null,null,null,null,null,null,null,"Lod"]
[null,null,null,null,null,null,null,null,null,null,null,null,"Lod"]
[null,null,null,null,null,null,null,null,null,null,null,null,"Lod"]
[null,null,null,null,null,null,null,null,null,null,null,null,"Lod"]
[null,null,null,null,null,null,null,null,null,null,null,null,"Lod"]
[null,null,null,null,null,null,null,null,null,null,null,null,"Lod"]
[null,null,null,null,null,null,null,null,null,null,null,null,"Lod"]
[null,null,null,null,null,null,null,null,null,null,null,null,"Lod"]
[null,null,null,null,null,null,null,null,null,null,null,null,"Lod"]
[null,null,null,null,null,null,null,null,null,null,null,null,"Lod"]
[null,null,null,null,null,null,null,null,null,null,null,null,"Lod"]
[null,null,null,null,null,null,null,null,null,null,null,null,"Lod"]
[null,null,null,null,null,null,null,null,null,null,null,null,"Lod"]
[null,null,null,null,null,null,null,null,null,null,null,null,"Lod"]
[null,null,null,null,null,null,null,null,null,null,null,null,"Lod"]
[null,null,null,null,null,null,null,null,null,null,null,null,"Lod"]
[null,null,null,null,null,null,null,null,null,null,null,null,"Lod"]
[null,null,null,null,null,null,null,null,null,null,null,null,"Lod"]
[null,null,null,null,null,null,null,null,null,null,null,null,"Lod"]
[null,null,null,null,null,null,null,null,null,null,null,null,"Lod"]
[null,null,null,null,null,null,null,null,null,null,null,null,"Lod"]
[null,null,null,null,null,null,null,null,null,null,null,null,"Lod"]
[null,null,null,null,null,null,null,null,null,null,null,null,"Lod"]
[null,null,null,null,null,null,null,null,null,null,null,null,"Lod"]
[null,null,null,null,null,null,null,null,null,null,null,null,"Lod"]
[null,null,null,null,null,null,null,null,null,null,null,null,"Lod"]
[null,null,null,null,null,null,null,null,null,null,null,null,"Lod"]
[null,null,null,null,null,null,null,null,null,null,null,null,"Lod"]
[null,null,null,null,null,null,null,null,null,null,null,null,"Lod"]
[null,null,null,null,null,null,null,null,null,null,null,null,"Lod"]
[null,null,null,null,null,null,null,null,null,null,null,null,"Lod"]
[null,null,null,null,null,null,null,null,null,null,null,null,"Lod"]
[null,null,null,null,null,null,null,null,null,null,null,null,"Lod"]
[null,null,null,null,null,null,null,null,null,null,null,null,"Lod"]
[null,null,null,null,null,null,null,null,null,null,null,null,"Lod"]
[null,null,null,null,null,null,null,null,null,null,null,null,"Lod"]
[null,null,null,null,null,null,null,null,null,null,null,null,"Lod"]
[null,null,null,null,null,null,null,null,null,null,null,null,"Lod"]
[null,null,null,null,null,null,null,null,null,null,null,null,"Lod"]
[null,null,null,null,null,null,null,null,null,null,null,null,"Lod"]
[null,null,null,null,null,null,null,null,null,null,null,null,"Lod"]
[null,null,null,null,null,null,null,null,null,null,null,null,"Lod"]
[null,null,null,null,null,null,null,null,null,null,null,null,"Lod"]
[null,null,null,null,null,null,null,null,null,null,null,null,"Lod"]
[null,null,null,null,null,null,null,null,null,null,null,null,"Lod"]
[null,null,null,null,null,null,null,null,null,null,null,null,"Lod"]
[null,null,null,null,null,null,null,null,null,null,null,null,"Lod"]
[null,null,null,null,null,null,null,null,null,null,null,null,"Lod"]
[null,null,null,null,null,null,null,null,null,null,null,null,"Lod"]
[null,null,null,null,null,null,null,null,null,null,null,null,"Lod"]
[null,null,null,null,null,null,null,null,null,null,null,null,"Lod"]
[null,null,null,null,null,null,null,null,null,null,null,null,"Lod"]
[null,null,null,null,null,null,null,null,null,null,null,null,"Lod"]
[null,null,null,null,null,null,null,null,null,null,null,null,"Lod"]
[null,null,null,null,null,null,null,null,null,null,null,null,"Lod"]
[null,null,null,null,null,null,null,null,null,null,null,null,"Lod"]
[null,null,null,null,null,null,null,null,null,null,null,null,"Lod"]
[null,null,null,null,null,null,null,null,null,null,null,null,"Lod"]
[null,null,null,null,null,null,null,null,null,null,null,null,"Lod"]
[null,null,null,null,null,null,null,null,null,null,null,null,"Lod"]
[null,null,null,null,null,null,null,null,null,null,null,null,"Lod"]
[null,null,null,null,null,null,null,null,null,null,null,null,"Lod"]
[null,null,null,null,null,null,null,null,null,null,null,null,"Lod"]
[null,null,null,null,null,null,null,null,null,null,null,null,"Lod"]
[null,null,null,null,null,null,null,null,null,null,null,null,"Lod"]
[null,null,null,null,null,null,null,null,null,null,null,null,"Lod"]
[null,null,null,null,null,null,null,null,null,null,null,null,"Lod"]
[null,null,null,null,null,null,null,null,null,null,null,null,"Lod"]
[null,null,null,null,null,null,null,null,null,null,null,null,"Lod"]
[null,null,null,null,null,null,null,null,null,null,null,null,"Lod"]
[null,null,null,null,null,null,null,null,null,null,null,null,"Lod"]
[null,null,null,null,null,null,null,null,null,null,null,null,"Lod"]
[null,null,null,null,null,null,null,null,null,null,null,null,"Lod"]
[null,null,null,null,null,null,null,null,null,null,null,null,"Lod"]
[null,null,null,null,null,null,null,null,null,null,null,null,"Lod"]
[null,null,null,null,null,null,null,null,null,null,null,null,"Lod"]
[null,null,null,null,null,null,null,null,null,null,null,null,"Lod"]
[null,null,null,null,null,null,null,null,null,null,null,null,"Lod"]
[null,null,null,null,null,null,null,null,null,null,null,null,"Lod"]
[null,null,null,null,null,null,null,null,null,null,null,null,"Lod"]
[null,null,null,null,null,null,null,null,null,null,null,null,"Lod"]
[null,null,null,null,null,null,null,null,null,null,null,null,"Lod"]
[null,null,null,null,null,null,null,null,null,null,null,null,"Lod"]
[null,null,null,null,null,null,null,null,null,null,null,null,"Lod"]
[null,null,null,null,null,null,null,null,null,null,null,null,"Lod"]
[null,null,null,null,null,null,null,null,null,null,null,null,"Lod"]
[null,null,null,null,null,null,null,null,null,null,null,null,"Lod"]
[null,null,null,null,null,null,null,null,null,null,null,null,"Lod"]
[null,null,null,null,null,null,null,null,null,null,null,null,"Lod"]
[null,null,null,null,null,null,null,null,null,null,null,null,"Lod"]
[null,null,null,null,null,null,null,null,null,null,null,null,"Lod"]
[null,null,null,null,null,null,null,null,null,null,null,null,"Lod"]
[null,null,null,null,null,null,null,null,null,null,null,null,"Lod"]
[null,null,null,null,null,null,null,null,null,null,null,null,"Lod"]
[null,null,null,null,null,null,null,null,null,null,null,null,"Lod"]
[null,null,null,null,null,null,null,null,null,null,null,null,"Lod"]
[null,null,null,null,null,null,null,null,null,null,null,null,"Lod"]
[null,null,null,null,null,null,null,null,null,null,null,null,"Lod"]
[null,null,null,null,null,null,null,null,null,null,null,null,"Lod"]
[null,null,null,null,null,null,null,null,null,null,null,null,"Lod"]
[null,null,null,null,null,null,null,null,null,null,null,null,"Lod"]
[null,null,null,null,null,null,null,null,null,null,null,null,"Lod"]
[null,null,null,null,null,null,null,null,null,null,null,null,"Lod"]
[null,null,null,null,null,null,null,null,null,null,null,null,"Lod"]
[null,null,null,null,null,null,null,null,null,null,null,null,"Lod"]
[null,null,null,null,null,null,null,null,null,null,null,null,"Lod"]
[null,null,null,null,null,null,null,null,null,null,null,null,"Lod"]
[null,null,null,null,null,null,null,null,null,null,null,null,"Lod"]
[null,null,null,null,null,null,null,null,null,null,null,null,"Lod"]
[null,null,null,null,null,null,null,null,null,null,null,null,"Lod"]
[null,null,null,null,null,null,null,null,null,null,null,null,"Lod"]
[null,null,null,null,null,null,null,null,null,null,null,null,"Lod"]
[null,null,null,null,null,null,null,null,null,null,null,null,"Lod"]
[null,null,null,null,null,null,null,null,null,null,null,null,"Lod"]
[null,null,null,null,null,null,null,null,null,null,null,null,"Lod"]
[null,null,null,null,null,null,null,null,null,null,null,null,"Lod"]
[null,null,null,null,null,null,null,null,null,null,null,null,"Lod"]
[null,null,null,null,null,null,null,null,null,null,null,null,"Lod"]
[null,null,null,null,null,null,null,null,null,null,null,null,"Lod"]
[null,null,null,null,null,null,null,null,null,null,null,null,"Lod"]
[null,null,null,null,null,null,null,null,null,null,null,null,"Lod"]
[null,null,null,null,null,null,null,null,null,null,null,null,"Lod"]
[null,null,null,null,null,null,null,null,null,null,null,null,"Lod"]
[null,null,null,null,null,null,null,null,null,null,null,null,"Lod"]
[null,null,null,null,null,null,null,null,null,null,null,null,"Lod"]
[null,null,null,null,null,null,null,null,null,null,null,null,"Lod"]
[null,null,null,null,null,null,null,null,null,null,null,null,"Lod"]
[null,null,null,null,null,null,null,null,null,null,null,null,"Lod"]
[null,null,null,null,null,null,null,null,null,null,null,null,"Lod"]
[null,null,null,null,null,null,null,null,null,null,null,null,"Lod"]
[null,null,null,null,null,null,null,null,null,null,null,null,"Lod"]
[null,null,null,null,null,null,null,null,null,null,null,null,"Lod"]
[null,null,null,null,null,null,null,null,null,null,null,null,"Lod"]
[null,null,null,null,null,null,null,null,null,null,null,null,"Lod"]
[null,null,null,null,null,null,null,null,null,null,null,null,"Lod"]
[null,null,null,null,null,null,null,null,null,null,null,null,"Lod"]
[null,null,null,null,null,null,null,null,null,null,null,null,"Lod"]
[null,null,null,null,null,null,null,null,null,null,null,null,"Lod"]
[null,null,null,null,null,null,null,null,null,null,null,null,"Lod"]
[null,null,null,null,null,null,null,null,null,null,null,null,"Lod"]
[null,null,null,null,null,null,null,null,null,null,null,null,"Lod"]
[null,null,null,null,null,null,null,null,null,null,null,null,"Lod"]
[null,null,null,null,null,null,null,null,null,null,null,null,"Lod"]
[null,null,null,null,null,null,null,null,null,null,null,null,"Lod"]
[null,null,null,null,null,null,null,null,null,null,null,null,"Lod"]
[null,null,null,null,null,null,null,null,null,null,null,null,"Lod"]
[null,null,null,null,null,null,null,null,null,null,null,null,"Lod"]
[null,null,null,null,null,null,null,null,null,null,null,null,"Lod"]
[null,null,null,null,null,null,null,null,null,null,null,null,"Lod"]
[null,null,null,null,null,null,null,null,null,null,null,null,"Lod"]
[null,null,null,null,null,null,null,null,null,null,null,null,"Lod"]
[null,null,null,null,null,null,null,null,null,null,null,null,"Lod"]
[null,null,null,null,null,null,null,null,null,null,null,null,"Lod"]
[null,null,null,null,null,null,null,null,null,null,null,null,"Lod"]
[null,null,null,null,null,null,null,null,null,null,null,null,"Lod"]
[null,null,null,null,null,null,null,null,null,null,null,null,"Lod"]
[null,null,null,null,null,null,null,null,null,null,null,null,"Lod"]
[null,null,null,null,null,null,null,null,null,null,null,null,"Lod"]
[null,null,null,null,null,null,null,null,null,null,null,null,"Lod"]
[null,null,null,null,null,null,null,null,null,null,null,null,"Lod"]
[null,null,null,null,null,null,null,null,null,null,null,null,"Lod"]
[null,null,null,null,null,null,null,null,null,null,null,null,"Lod"]
[null,null,null,null,null,null,null,null,null,null,null,null,"Lod"]
[null,null,null,null,null,null,null,null,null,null,null,null,"Lod"]
[null,null,null,null,null,null,null,null,null,null,null,null,"Lod"]
[null,null,null,null,null,null,null,null,null,null,null,null,"Lod"]
[null,null,null,null,null,null,null,null,null,null,null,null,"Lod"]
[null,null,null,null,null,null,null,null,null,null,null,null,"Lod"]
[null,null,null,null,null,null,null,null,null,null,null,null,"Lod"]
[null,null,null,null,null,null,null,null,null,null,null,null,"Lod"]
[null,null,null,null,null,null,null,null,null,null,null,null,"Lod"]
[null,null,null,null,null,null,null,null,null,null,null,null,"Lod"]
[null,null,null,null,null,null,null,null,null,null,null,null,"Lod"]
[null,null,null,null,null,null,null,null,null,null,null,null,"Lod"]
[null,null,null,null,null,null,null,null,null,null,null,null,"Lod"]
[null,null,null,null,null,null,null,null,null,null,null,null,"Lod"]
[null,null,null,null,null,null,null,null,null,null,null,null,"Lod"]
[null,null,null,null,null,null,null,null,null,null,null,null,"Lod"]
[null,null,null,null,null,null,null,null,null,null,null,null,"Lod"]
[null,null,null,null,null,null,null,null,null,null,null,null,"Lod"]
[null,null,null,null,null,null,null,null,null,null,null,null,"Lod"]
[null,null,null,null,null,null,null,null,null,null,null,null,"Lod"]
[null,null,null,null,null,null,null,null,null,null,null,null,"Lod"]
[null,null,null,null,null,null,null,null,null,null,null,null,"Lod"]
[null,null,null,null,null,null,null,null,null,null,null,null,"Lod"]
[null,null,null,null,null,null,null,null,null,null,null,null,"Lod"]
[null,null,null,null,null,null,null,null,null,null,null,null,"Lod"]
[null,null,null,null,null,null,null,null,null,null,null,null,"Lod"]
[null,null,null,null,null,null,null,null,null,null,null,null,"Lod"]
[null,null,null,null,null,null,null,null,null,null,null,null,"Lod"]
[null,null,null,null,null,null,null,null,null,null,null,null,"Lod"]
[null,null,null,null,null,null,null,null,null,null,null,null,"Lod"]
[null,null,null,null,null,null,null,null,null,null,null,null,"Lod"]
[null,null,null,null,null,null,null,null,null,null,null,null,"Lod"]
[null,null,null,null,null,null,null,null,null,null,null,null,"Lod"]
[null,null,null,null,null,null,null,null,null,null,null,null,"Lod"]
[null,null,null,null,null,null,null,null,null,null,null,null,"Lod"]
[null,null,null,null,null,null,null,null,null,null,null,null,"Lod"]
[null,null,null,null,null,null,null,null,null,null,null,null,"Lod"]
[null,null,null,null,null,null,null,null,null,null,null,null,"Lod"]
[null,null,null,null,null,null,null,null,null,null,null,null,"Lod"]
[null,null,null,null,null,null,null,null,null,null,null,null,"Lod"]
[null,null,null,null,null,null,null,null,null,null,null,null,"Lod"]
[null,null,null,null,null,null,null,null,null,null,null,null,"Lod"]
[null,null,null,null,null,null,null,null,null,null,null,null,"Lod"]
[null,null,null,null,null,null,null,null,null,null,null,null,"Lod"]
[null,null,null,null,null,null,null,null,null,null,null,null,"Lod"]
[null,null,null,null,null,null,null,null,null,null,null,null,"Lod"]
[null,null,null,null,null,null,null,null,null,null,null,null,"Lod"]
[null,null,null,null,null,null,null,null,null,null,null,null,"Lod"]
[null,null,null,null,null,null,null,null,null,null,null,null,"Lod"]
[null,null,null,null,null,null,null,null,null,null,null,null,"Lod"]
[null,null,null,null,null,null,null,null,null,null,null,null,"Lod"]
[null,null,null,null,null,null,null,null,null,null,null,null,"Lod"]
[null,null,null,null,null,null,null,null,null,null,null,null,"Lod"]
[null,null,null,null,null,null,null,null,null,null,null,null,"Lod"]
[null,null,null,null,null,null,null,null,null,null,null,null,"Lod"]
[null,null,null,null,null,null,null,null,null,null,null,null,"Lod"]
[null,null,null,null,null,null,null,null,null,null,null,null,"Lod"]
[null,null,null,null,null,null,null,null,null,null,null,null,"Lod"]
[null,null,null,null,null,null,null,null,null,null,null,null,"Lod"]
[null,null,null,null,null,null,null,null,null,null,null,null,"Lod"]
[null,null,null,null,null,null,null,null,null,null,null,null,"Lod"]
[null,null,null,null,null,null,null,null,null,null,null,null,"Lod"]
[null,null,null,null,null,null,null,null,null,null,null,null,"Lod"]
[null,null,null,null,null,null,null,null,null,null,null,null,"Lod"]
[null,null,null,null,null,null,null,null,null,null,null,null,"Lod"]
[null,null,null,null,null,null,null,null,null,null,null,null,"Lod"]
[null,null,null,null,null,null,null,null,null,null,null,null,"Lod"]
[null,null,null,null,null,null,null,null,null,null,null,null,"Lod"]
[null,null,null,null,null,null,null,null,null,null,null,null,"Lod"]
[null,null,null,null,null,null,null,null,null,null,null,null,"Lod"]
[null,null,null,null,null,null,null,null,null,null,null,null,"Lod"]
[null,null,null,null,null,null,null,null,null,null,null,null,"Lod"]
[null,null,null,null,null,null,null,null,null,null,null,null,"Lod"]
[null,null,null,null,null,null,null,null,null,null,null,null,"Lod"]
[null,null,null,null,null,null,null,null,null,null,null,null,"Lod"]
[null,null,null,null,null,null,null,null,null,null,null,null,"Lod"]
[null,null,null,null,null,null,null,null,null,null,null,null,"Lod"]
[null,null,null,null,null,null,null,null,null,null,null,null,"Lod"]
[null,null,null,null,null,null,null,null,null,null,null,null,"Lod"]
[null,null,null,null,null,null,null,null,null,null,null,null,"Lod"]
[null,null,null,null,null,null,null,null,null,null,null,null,"Lod"]
[null,null,null,null,null,null,null,null,null,null,null,null,"Lod"]
[null,null,null,null,null,null,null,null,null,null,null,null,"Lod"]
[null,null,null,null,null,null,null,null,null,null,null,null,"Lod"]
[null,null,null,null,null,null,null,null,null,null,null,null,"Lod"]
[null,null,null,null,null,null,null,null,null,null,null,null,"Lod"]
[null,null,null,null,null,null,null,null,null,null,null,null,"Lod"]
[null,null,null,null,null,null,null,null,null,null,null,null,"Lod"]
[null,null,null,null,null,null,null,null,null,null,null,null,"Lod"]
[null,null,null,null,null,null,null,null,null,null,null,null,"Lod"]
[null,null,null,null,null,null,null,null,null,null,null,null,"Lod"]
[null,null,null,null,null,null,null,null,null,null,null,null,"Lod"]
[null,null,null,null,null,null,null,null,null,null,null,null,"Lod"]
[null,null,null,null,null,null,null,null,null,null,null,null,"Lod"]
[null,null,null,null,null,null,null,null,null,null,null,null,"Lod"]
[null,null,null,null,null,null,null,null,null,null,null,null,"Lod"]
[null,null,null,null,null,null,null,null,null,null,null,null,"Lod"]
[null,null,null,null,null,null,null,null,null,null,null,null,"Lod"]
[null,null,null,null,null,null,null,null,null,null,null,null,"Lod"]
[null,null,null,null,null,null,null,null,null,null,null,null,"Lod"]
[null,null,null,null,null,null,null,null,null,null,null,null,"Lod"]
[null,null,null,null,null,null,null,null,null,null,null,null,"Lod"]
[null,null,null,null,null,null,null,null,null,null,null,null,"Lod"]
[null,null,null,null,null,null,null,null,null,null,null,null,"Lod"]
[null,null,null,null,null,null,null,null,null,null,null,null,"Lod"]
[null,null,null,null,null,null,null,null,null,null,null,null,"Lod"]
[null,null,null,null,null,null,null,null,null,null,null,null,"Lod"]
[null,null,null,null,null,null,null,null,null,null,null,null,"Lod"]
[null,null,null,null,null,null,null,null,null,null,null,null,"Lod"]
[null,null,null,null,null,null,null,null,null,null,null,null,"Lod"]
[null,null,null,null,null,null,null,null,null,null,null,null,"Lod"]
[null,null,null,null,null,null,null,null,null,null,null,null,"Lod"]
[null,null,null,null,null,null,null,null,null,null,null,null,"Lod"]
[null,null,null,null,null,null,null,null,null,null,null,null,"Lod"]
[null,null,null,null,null,null,null,null,null,null,null,null,"Lod"]
[null,null,null,null,null,null,null,null,null,null,null,null,"Lod"]
[null,null,null,null,null,null,null,null,null,null,null,null,"Lod"]
[null,null,null,null,null,null,null,null,null,null,null,null,"Lod"]
[null,null,null,null,null,null,null,null,null,null,null,null,"Lod"]
[null,null,null,null,null,null,null,null,null,null,null,null,"Lod"]
[null,null,null,null,null,null,null,null,null,null,null,null,"Lod"]
[null,null,null,null,null,null,null,null,null,null,null,null,"Lod"]
[null,null,null,null,null,null,null,null,null,null,null,null,"Lod"]
[null,null,null,null,null,null,null,null,null,null,null,null,"Lod"]
[null,null,null,null,null,null,null,null,null,null,null,null,"Lod"]
[null,null,null,null,null,null,null,null,null,null,null,null,"Lod"]
[null,null,null,null,null,null,null,null,null,null,null,null,"Lod"]
[null,null,null,null,null,null,null,null,null,null,null,null,"Lod"]
[null,null,null,null,null,null,null,null,null,null,null,null,"Lod"]
[null,null,null,null,null,null,null,null,null,null,null,null,"Lod"]
[null,null,null,null,null,null,null,null,null,null,null,null,"Lod"]
[null,null,null,null,null,null,null,null,null,null,null,null,"Lod"]
[null,null,null,null,null,null,null,null,null,null,null,null,"Lod"]
[null,null,null,null,null,null,null,null,null,null,null,null,"Lod"]
[null,null,null,null,null,null,null,null,null,null,null,null,"Lod"]
[null,null,null,null,null,null,null,null,null,null,null,null,"Lod"]
[null,null,null,null,null,null,null,null,null,null,null,null,"Lod"]
[null,null,null,null,null,null,null,null,null,null,null,null,"Lod"]
[null,null,null,null,null,null,null,null,null,null,null,null,"Lod"]
[null,null,null,null,null,null,null,null,null,null,null,null,"Lod"]
[null,null,null,null,null,null,null,null,null,null,null,null,"Lod"]
[null,null,null,null,null,null,null,null,null,null,null,null,"Lod"]
[null,null,null,null,null,null,null,null,null,null,null,null,"Lod"]
[null,null,null,null,null,null,null,null,null,null,null,null,"Lod"]
[null,null,null,null,null,null,null,null,null,null,null,null,"Lod"]
[null,null,null,null,null,null,null,null,null,null,null,null,"Lod"]
[null,null,null,null,null,null,null,null,null,null,null,null,"Lod"]
[null,null,null,null,null,null,null,null,null,null,null,null,"Lod"]
[null,null,null,null,null,null,null,null,null,null,null,null,"Lod"]
[null,null,null,null,null,null,null,null,null,null,null,null,"Lod"]
[null,null,null,null,null,null,null,null,null,null,null,null,"Lod"]
[null,null,null,null,null,null,null,null,null,null,null,null,"Lod"]
[null,null,null,null,null,null,null,null,null,null,null,null,"Lod"]
[null,null,null,null,null,null,null,null,null,null,null,null,"Lod"]
[null,null,null,null,null,null,null,null,null,null,null,null,"Lod"]
[null,null,null,null,null,null,null,null,null,null,null,null,"Lod"]
[null,null,null,null,null,null,null,null,null,null,null,null,"Lod"]
[null,null,null,null,null,null,null,null,null,null,null,null,"Lod"]
[null,null,null,null,null,null,null,null,null,null,null,null,"Lod"]
[null,null,null,null,null,null,null,null,null,null,null,null,"Lod"]
[null,null,null,null,null,null,null,null,null,null,null,null,"Lod"]
[null,null,null,null,null,null,null,null,null,null,null,null,"Lod"]
[null,null,null,null,null,null,null,null,null,null,null,null,"Lod"]
[null,null,null,null,null,null,null,null,null,null,null,null,"Lod"]
[null,null,null,null,null,null,null,null,null,null,null,null,"Lod"]
[null,null,null,null,null,null,null,null,null,null,null,null,"Lod"]
[null,null,null,null,null,null,null,null,null,null,null,null,"Lod"]
[null,null,null,null,null,null,null,null,null,null,null,null,"Lod"]
[null,null,null,null,null,null,null,null,null,null,null,null,"Lod"]
[null,null,null,null,null,null,null,null,null,null,null,null,"Lod"]
[null,null,null,null,null,null,null,null,null,null,null,null,"Lod"]
[null,null,null,null,null,null,null,null,null,null,null,null,"Lod"]
[null,null,null,null,null,null,null,null,null,null,null,null,"Lod"]
[null,null,null,null,null,null,null,null,null,null,null,null,"Lod"]
[null,null,null,null,null,null,null,null,null,null,null,null,"Lod"]
[null,null,null,null,null,null,null,null,null,null,null,null,"Lod"]
[null,null,null,null,null,null,null,null,null,null,null,null,"Lod"]
[null,null,null,null,null,null,null,null,null,null,null,null,"Lod"]
[null,null,null,null,null,null,null,null,null,null,null,null,"Lod"]
[null,null,null,null,null,null,null,null,null,null,null,null,"Lod"]
[null,null,null,null,null,null,null,null,null,null,null,null,"Lod"]
[null,null,null,null,null,null,null,null,null,null,null,null,"Lod"]
[null,null,null,null,null,null,null,null,null,null,null,null,"Lod"]
[null,null,null,null,null,null,null,null,null,null,null,null,"Lod"]
[null,null,null,null,null,null,null,null,null,null,null,null,"Lod"]
[null,null,null,null,null,null,null,null,null,null,null,null,"Lod"]
[null,null,null,null,null,null,null,null,null,null,null,null,"Lod"]
[null,null,null,null,null,null,null,null,null,null,null,null,"Lod"]
[null,null,null,null,null,null,null,null,null,null,null,null,"Lod"]
[null,null,null,null,null,null,null,null,null,null,null,null,"Lod"]
[null,null,null,null,null,null,null,null,null,null,null,null,"Lod"]
[null,null,null,null,null,null,null,null,null,null,null,null,"Lod"]
[null,null,null,null,null,null,null,null,null,null,null,null,"Lod"]
[null,null,null,null,null,null,null,null,null,null,null,null,"Lod"]
[null,null,null,null,null,null,null,null,null,null,null,null,"Lod"]
[null,null,null,null,null,null,null,null,null,null,null,null,"Lod"]
[null,null,null,null,null,null,null,null,null,null,null,null,"Lod"]
[null,null,null,null,null,null,null,null,null,null,null,null,"Lod"]
[null,null,null,null,null,null,null,null,null,null,null,null,"Lod"]
[null,null,null,null,null,null,null,null,null,null,null,null,"Lod"]
[null,null,null,null,null,null,null,null,null,null,null,null,"Lod"]
[null,null,null,null,null,null,null,null,null,null,null,null,"Lod"]
[null,null,null,null,null,null,null,null,null,null,null,null,"Lod"]
[null,null,null,null,null,null,null,null,null,null,null,null,"Lod"]
[null,null,null,null,null,null,null,null,null,null,null,null,"Lod"]
[null,null,null,null,null,null,null,null,null,null,null,null,"Lod"]
[null,null,null,null,null,null,null,null,null,null,null,null,"Lod"]
[null,null,null,null,null,null,null,null,null,null,null,null,"Lod"]
[null,null,null,null,null,null,null,null,null,null,null,null,"Lod"]
[null,null,null,null,null,null,null,null,null,null,null,null,"Lod"]
[null,null,null,null,null,null,null,null,null,null,null,null,"Lod"]
[null,null,null,null,null,null,null,null,null,null,null,null,"Lod"]
[null,null,null,null,null,null,null,null,null,null,null,null,"Lod"]
[null,null,null,null,null,null,null,null,null,null,null,null,"Lod"]
[null,null,null,null,null,null,null,null,null,null,null,null,"Lod"]
[null,null,null,null,null,null,null,null,null,null,null,null,"Lod"]
[null,null,null,null,null,null,null,null,null,null,null,null,"Lod"]
[null,null,null,null,null,null,null,null,null,null,null,null,"Lod"]
[null,null,null,null,null,null,null,null,null,null,null,null,"Lod"]
[null,null,null,null,null,null,null,null,null,null,null,null,"Lod"]
[null,null,null,null,null,null,null,null,null,null,null,null,"Lod"]
[null,null,null,null,null,null,null,null,null,null,null,null,"Lod"]
[null,null,null,null,null,null,null,null,null,null,null,null,"Lod"]
[null,null,null,null,null,null,null,null,null,null,null,null,"Lod"]
[null,null,null,null,null,null,null,null,null,null,null,null,"Lod"]
[null,null,null,null,null,null,null,null,null,null,null,null,"Lod"]
[null,null,null,null,null,null,null,null,null,null,null,null,"Lod"]
[null,null,null,null,null,null,null,null,null,null,null,null,"Lod"]
[null,null,null,null,null,null,null,null,null,null,null,null,"Lod"]
[null,null,null,null,null,null,null,null,null,null,null,null,"Lod"]
[null,null,null,null,null,null,null,null,null,null,null,null,"Lod"]
[null,null,null,null,null,null,null,null,null,null,null,null,"Lod"]
[null,null,null,null,null,null,null,null,null,null,null,null,"Lod"]
[null,null,null,null,null,null,null,null,null,null,null,null,"Lod"]
[null,null,null,null,null,null,null,null,null,null,null,null,"Lod"]
[null,null,null,null,null,null,null,null,null,null,null,null,"Lod"]
[null,null,null,null,null,null,null,null,null,null,null,null,"Lod"]
[null,null,null,null,null,null,null,null,null,null,null,null,"Lod"]
[null,null,null,null,null,null,null,null,null,null,null,null,"Lod"]
[null,null,null,null,null,null,null,null,null,null,null,null,"Lod"]
[null,null,null,null,null,null,null,null,null,null,null,null,"Lod"]
[null,null,null,null,null,null,null,null,null,null,null,null,"Lod"]
[null,null,null,null,null,null,null,null,null,null,null,null,"Lod"]
[null,null,null,null,null,null,null,null,null,null,null,null,"Lod"]
[null,null,null,null,null,null,null,null,null,null,null,null,"Lod"]
[null,null,null,null,null,null,null,null,null,null,null,null,"Lod"]
[null,null,null,null,null,null,null,null,null,null,null,null,"Lod"]
[null,null,null,null,null,null,null,null,null,null,null,null,"Lod"]
[null,null,null,null,null,null,null,null,null,null,null,null,"Lod"]
[null,null,null,null,null,null,null,null,null,null,null,null,"Lod"]
[null,null,null,null,null,null,null,null,null,null,null,null,"Lod"]
[null,null,null,null,null,null,null,null,null,null,null,null,"Lod"]
[null,null,null,null,null,null,null,null,null,null,null,null,"Lod"]
[null,null,null,null,null,null,null,null,null,null,null,null,"Lod"]
[null,null,null,null,null,null,null,null,null,null,null,null,"Lod"]
[null,null,null,null,null,null,null,null,null,null,null,null,"Lod"]
[null,null,null,null,null,null,null,null,null,null,null,null,"Lod"]
[null,null,null,null,null,null,null,null,null,null,null,null,"Lod"]
[null,null,null,null,null,null,null,null,null,null,null,null,"Lod"]
[null,null,null,null,null,null,null,null,null,null,null,null,"Lod"]
[null,null,null,null,null,null,null,null,null,null,null,null,"Lod"]
[null,null,null,null,null,null,null,null,null,null,null,null,"Lod"]
[null,null,null,null,null,null,null,null,null,null,null,null,"Lod"]
[null,null,null,null,null,null,null,null,null,null,null,null,"Lod"]
[null,null,null,null,null,null,null,null,null,null,null,null,"Lod"]
[null,null,null,null,null,null,null,null,null,null,null,null,"Lod"]
[null,null,null,null,null,null,null,null,null,null,null,null,"Lod"]
[null,null,null,null,null,null,null,null,null,null,null,null,"Lod"]
[null,null,null,null,null,null,null,null,null,null,null,null,"Lod"]
[null,null,null,null,null,null,null,null,null,null,null,null,"Lod"]
[null,null,null,null,null,null,null,null,null,null,null,null,"Lod"]
[null,null,null,null,null,null,null,null,null,null,null,null,"Lod"]
[null,null,null,null,null,null,null,null,null,null,null,null,"Lod"]
[null,null,null,null,null,null,null,null,null,null,null,null,"Lod"]
[null,null,null,null,null,null,null,null,null,null,null,null,"Lod"]
[null,null,null,null,null,null,null,null,null,null,null,null,"Lod"]
[null,null,null,null,null,null,null,null,null,null,null,null,"Lod"]
[null,null,null,null,null,null,null,null,null,null,null,null,"Lod"]
[null,null,null,null,null,null,null,null,null,null,null,null,"Lod"]
[null,null,null,null,null,null,null,null,null,null,null,null,"Lod"]
[null,null,null,null,null,null,null,null,null,null,null,null,"Lod"]
[null,null,null,null,null,null,null,null,null,null,null,null,"Lod"]
[null,null,null,null,null,null,null,null,null,null,null,null,"Lod"]
[null,null,null,null,null,null,null,null,null,null,null,null,"Lod"]
[null,null,null,null,null,null,null,null,null,null,null,null,"Lod"]
[null,null,null,null,null,null,null,null,null,null,null,null,"Lod"]
[null,null,null,null,null,null,null,null,null,null,null,null,"Lod"]
[null,null,null,null,null,null,null,null,null,null,null,null,"Lod"]
[null,null,null,null,null,null,null,null,null,null,null,null,"Lod"]
[null,null,null,null,null,null,null,null,null,null,null,null,"Lod"]
[null,null,null,null,null,null,null,null,null,null,null,null,"Lod"]
[null,null,null,null,null,null,null,null,null,null,null,null,"Lod"]
[null,null,null,null,null,null,null,null,null,null,null,null,"Lod"]
[null,null,null,null,null,null,null,null,null,null,null,null,"Lod"]
[null,null,null,null,null,null,null,null,null,null,null,null,"Lod"]
[null,null,null,null,null,null,null,null,null,null,null,null,"Lod"]
[null,null,null,null,null,null,null,null,null,null,null,null,"Lod"]
[null,null,null,null,null,null,null,null,null,null,null,null,"Lod"]
[null,null,null,null,null,null,null,null,null,null,null,null,"Lod"]
[null,null,null,null,null,null,null,null,null,null,null,null,"Lod"]
[null,null,null,null,null,null,null,null,null,null,null,null,"Lod"]
[null,null,null,null,null,null,null,null,null,null,null,null,"Lod"]
[null,null,null,null,null,null,null,null,null,null,null,null,"Lod"]
[null,null,null,null,null,null,null,null,null,null,null,null,"Lod"]
[null,null,null,null,null,null,null,null,null,null,null,null,"Lod"]
[null,null,null,null,null,null,null,null,null,null,null,null,"Lod"]
[null,null,null,null,null,null,null,null,null,null,null,null,"Lod"]
[null,null,null,null,null,null,null,null,null,null,null,null,"Lod"]
[null,null,null,null,null,null,null,null,null,null,null,null,"Lod"]
[null,null,null,null,null,null,null,null,null,null,null,null,"Lod"]
[null,null,null,null,null,null,null,null,null,null,null,null,"Lod"]
[null,null,null,null,null,null,null,null,null,null,null,null,"Lod"]
[null,null,null,null,null,null,null,null,null,null,null,null,"Lod"]
[null,null,null,null,null,null,null,null,null,null,null,null,"Lod"]
[null,null,null,null,null,null,null,null,null,null,null,null,"Lod"]
[null,null,null,null,null,null,null,null,null,null,null,null,"Lod"]
[null,null,null,null,null,null,null,null,null,null,null,null,"Lod"]
[null,null,null,null,null,null,null,null,null,null,null,null,"Lod"]
[null,null,null,null,null,null,null,null,null,null,null,null,"Lod"]
[null,null,null,null,null,null,null,null,null,null,null,null,"Lod"]
[null,null,null,null,null,null,null,null,null,null,null,null,"Lod"]
[null,null,null,null,null,null,null,null,null,null,null,null,"Lod"]
[null,null,null,null,null,null,null,null,null,null,null,null,"Lod"]
[null,null,null,null,null,null,null,null,null,null,null,null,"Lod"]
[null,null,null,null,null,null,null,null,null,null,null,null,"Lod"]
[null,null,null,null,null,null,null,null,null,null,null,null,"Lod"]
[null,null,null,null,null,null,null,null,null,null,null,null,"Lod"]
[null,null,null,null,null,null,null,null,null,null,null,null,"Lod"]
[null,null,null,null,null,null,null,null,null,null,null,null,"Lod"]
[null,null,null,null,null,null,null,null,null,null,null,null,"Lod"]
[null,null,null,null,null,null,null,null,null,null,null,null,"Lod"]
[null,null,null,null,null,null,null,null,null,null,null,null,"Lod"]
[null,null,null,null,null,null,null,null,null,null,null,null,"Lod"]
[null,null,null,null,null,null,null,null,null,null,null,null,"Lod"]
[null,null,null,null,null,null,null,null,null,null,null,null,"Lod"]
[null,null,null,null,null,null,null,null,null,null,null,null,"Lod"]
[null,null,null,null,null,null,null,null,null,null,null,null,"Lod"]
[null,null,null,null,null,null,null,null,null,null,null,null,"Lod"]
[null,null,null,null,null,null,null,null,null,null,null,null,"Lod"]
[null,null,null,null,null,null,null,null,null,null,null,null,"Lod"]
[null,null,null,null,null,null,null,null,null,null,null,null,"Lod"]
[null,null,null,null,null,null,null,null,null,null,null,null,"Lod"]
[null,null,null,null,null,null,null,null,null,null,null,null,"Lod"]
[null,null,null,null,null,null,null,null,null,null,null,null,"Lod"]
[null,null,null,null,null,null,null,null,null,null,null,null,"Lod"]
[null,null,null,null,null,null,null,null,null,null,null,null,"Lod"]
[null,null,null,null,null,null,null,null,null,null,null,null,"Lod"]
[null,null,null,null,null,null,null,null,null,null,null,null,"Lod"]
[null,null,null,null,null,null,null,null,null,null,null,null,"Lod"]
[null,null,null,null,null,null,null,null,null,null,null,null,"Lod"]
[null,null,null,null,null,null,null,null,null,null,null,null,"Lod"]
[null,null,null,null,null,null,null,null,null,null,null,null,"Lod"]
[null,null,null,null,null,null,null,null,null,null,null,null,"Lod"]
[null,null,null,null,null,null,null,null,null,null,null,null,"Lod"]
[null,null,null,null,null,null,null,null,null,null,null,null,"Lod"]
[null,null,null,null,null,null,null,null,null,null,null,null,"Lod"]
[null,null,null,null,null,null,null,null,null,null,null,null,"Lod"]
[null,null,null,null,null,null,null,null,null,null,null,null,"Lod"]
[null,null,null,null,null,null,null,null,null,null,null,null,"Lod"]
[null,null,null,null,null,null,null,null,null,null,null,null,"Lod"]
[null,null,null,null,null,null,null,null,null,null,null,null,"Lod"]
[null,null,null,null,null,null,null,null,null,null,null,null,"Lod"]
[null,null,null,null,null,null,null,null,null,null,null,null,"Lod"]
[null,null,null,null,null,null,null,null,null,null,null,null,"Lod"]
[null,null,null,null,null,null,null,null,null,null,null,null,"Lod"]
[null,null,null,null,null,null,null,null,null,null,null,null,"Lod"]
[null,null,null,null,null,null,null,null,null,null,null,null,"Lod"]
[null,null,null,null,null,null,null,null,null,null,null,null,"Lod"]
[null,null,null,null,null,null,null,null,null,null,null,null,"Lod"]
[null,null,null,null,null,null,null,null,null,null,null,null,"Lod"]
[null,null,null,null,null,null,null,null,null,null,null,null,"Lod"]
[null,null,null,null,null,null,null,null,null,null,null,null,"Lod"]
[null,null,null,null,null,null,null,null,null,null,null,null,"Lod"]
[null,null,null,null,null,null,null,null,null,null,null,null,"Lod"]
[null,null,null,null,null,null,null,null,null,null,null,null,"Lod"]
[null,null,null,null,null,null,null,null,null,null,null,null,"Lod"]
[null,null,null,null,null,null,null,null,null,null,null,null,"Lod"]
[null,null,null,null,null,null,null,null,null,null,null,null,"Lod"]
[null,null,null,null,null,null,null,null,null,null,null,null,"Lod"]
[null,null,null,null,null,null,null,null,null,null,null,null,"Lod"]
[null,null,null,null,null,null,null,null,null,null,null,null,"Lod"]
[null,null,null,null,null,null,null,null,null,null,null,null,"Lod"]
[null,null,null,null,null,null,null,null,null,null,null,null,"Lod"]
[null,null,null,null,null,null,null,null,null,null,null,null,"Lod"]
[null,null,null,null,null,null,null,null,null,null,null,null,"Lod"]
[null,null,null,null,null,null,null,null,null,null,null,null,"Lod"]
[null,null,null,null,null,null,null,null,null,null,null,null,"Lod"]
[null,null,null,null,null,null,null,null,null,null,null,null,"Lod"]
[null,null,null,null,null,null,null,null,null,null,null,null,"Lod"]
[null,null,null,null,null,null,null,null,null,null,null,null,"Lod"]
[null,null,null,null,null,null,null,null,null,null,null,null,"Lod"]
[null,null,null,null,null,null,null,null,null,null,null,null,"Lod"]
[null,null,null,null,null,null,null,null,null,null,null,null,"Lod"]
[null,null,null,null,null,null,null,null,null,null,null,null,"Lod"]
[null,null,null,null,null,null,null,null,null,null,null,null,"Lod"]
[null,null,null,null,null,null,null,null,null,null,null,null,"Lod"]
[null,null,null,null,null,null,null,null,null,null,null,null,"Lod"]
[null,null,null,null,null,null,null,null,null,null,null,null,"Lod"]
[null,null,null,null,null,null,null,null,null,null,null,null,"Lod"]
[null,null,null,null,null,null,null,null,null,null,null,null,"Lod"]
[null,null,null,null,null,null,null,null,null,null,null,null,"Lod"]
[null,null,null,null,null,null,null,null,null,null,null,null,"Lod"]
[null,null,null,null,null,null,null,null,null,null,null,null,"Lod"]
[null,null,null,null,null,null,null,null,null,null,null,null,"Lod"]
[null,null,null,null,null,null,null,null,null,null,null,null,"Lod"]
[null,null,null,null,null,null,null,null,null,null,null,null,"Lod"]
[null,null,null,null,null,null,null,null,null,null,null,null,"Lod"]
[null,null,null,null,null,null,null,null,null,null,null,null,"Lod"]
[null,null,null,null,null,null,null,null,null,null,null,null,"Lod"]
[null,null,null,null,null,null,null,null,null,null,null,null,"Lod"]
[null,null,null,null,null,null,null,null,null,null,null,null,"Lod"]
[null,null,null,null,null,null,null,null,null,null,null,null,"Lod"]
[null,null,null,null,null,null,null,null,null,null,null,null,"Lod"]
[null,null,null,null,null,null,null,null,null,null,null,null,"Lod"]
[null,null,null,null,null,null,null,null,null,null,null,null,"Lod"]
[null,null,null,null,null,null,null,null,null,null,null,null,"Lod"]
[null,null,null,null,null,null,null,null,null,null,null,null,"Lod"]
[null,null,null,null,null,null,null,null,null,null,null,null,"Lod"]
[null,null,null,null,null,null,null,null,null,null,null,null,"Lod"]
[null,null,null,null,null,null,null,null,null,null,null,null,"Lod"]
[null,null,null,null,null,null,null,null,null,null,null,null,"Lod"]
[null,null,null,null,null,null,null,null,null,null,null,null,"Lod"]
[null,null,null,null,null,null,null,null,null,null,null,null,"Lod"]
[null,null,null,null,null,null,null,null,null,null,null,null,"Lod"]
[null,null,null,null,null,null,null,null,null,null,null,null,"Lod"]
[null,null,null,null,null,null,null,null,null,null,null,null,"Lod"]
[null,null,null,null,null,null,null,null,null,null,null,null,"Lod"]
[null,null,null,null,null,null,null,null,null,null,null,null,"Lod"]
[null,null,null,null,null,null,null,null,null,null,null,null,"Lod"]
[null,null,null,null,null,null,null,null,null,null,null,null,"Lod"]
[null,null,null,null,null,null,null,null,null,null,null,null,"Lod"]
[null,null,null,null,null,null,null,null,null,null,null,null,"Lod"]
[null,null,null,null,null,null,null,null,null,null,null,null,"Lod"]
[null,null,null,null,null,null,null,null,null,null,null,null,"Lod"]
[null,null,null,null,null,null,null,null,null,null,null,null,"Lod"]
[null,null,null,null,null,null,null,null,null,null,null,null,"Lod"]
[null,null,null,null,null,null,null,null,null,null,null,null,"Lod"]
[null,null,null,null,null,null,null,null,null,null,null,null,"Lod"]
[null,null,null,null,null,null,null,null,null,null,null,null,"Lod"]
[null,null,null,null,null,null,null,null,null,null,null,null,"Lod"]
[null,null,null,null,null,null,null,null,null,null,null,null,"Lod"]
[null,null,null,null,null,null,null,null,null,null,null,null,"Lod"]
[null,null,null,null,null,null,null,null,null,null,null,null,"Lod"]
[null,null,null,null,null,null,null,null,null,null,null,null,"Lod"]
[null,null,null,null,null,null,null,null,null,null,null,null,"Lod"]
[null,null,null,null,null,null,null,null,null,null,null,null,"Lod"]
[null,null,null,null,null,null,null,null,null,null,null,null,"Lod"]
[null,null,null,null,null,null,null,null,null,null,null,null,"Lod"]
[null,null,null,null,null,null,null,null,null,null,null,null,"Lod"]
[null,null,null,null,null,null,null,null,null,null,null,null,"Lod"]
[null,null,null,null,null,null,null,null,null,null,null,null,"Lod"]
[null,null,null,null,null,null,null,null,null,null,null,null,"Lod"]
[null,null,null,null,null,null,null,null,null,null,null,null,"Lod"]
[null,null,null,null,null,null,null,null,null,null,null,null,"Lod"]
[null,null,null,null,null,null,null,null,null,null,null,null,"Lod"]
[null,null,null,null,null,null,null,null,null,null,null,null,"Lod"]
[null,null,null,null,null,null,null,null,null,null,null,null,"Lod"]
[null,null,null,null,null,null,null,null,null,null,null,null,"Lod"]
[null,null,null,null,null,null,null,null,null,null,null,null,"Lod"]
[null,null,null,null,null,null,null,null,null,null,null,null,"Lod"]
[null,null,null,null,null,null,null,null,null,null,null,null,"Lod"]
[null,null,null,null,null,null,null,null,null,null,null,null,"Lod"]
[null,null,null,null,null,null,null,null,null,null,null,null,"Lod"]
[null,null,null,null,null,null,null,null,null,null,null,null,"Lod"]
[null,null,null,null,null,null,null,null,null,null,null,null,"Lod"]
[null,null,null,null,null,null,null,null,null,null,null,null,"Lod"]
[null,null,null,null,null,null,null,null,null,null,null,null,"Lod"]
[null,null,null,null,null,null,null,null,null,null,null,null,"Lod"]
[null,null,null,null,null,null,null,null,null,null,null,null,"Lod"]
[null,null,null,null,null,null,null,null,null,null,null,null,"Lod"]
[null,null,null,null,null,null,null,null,null,null,null,null,"Lod"]
[null,null,null,null,null,null,null,null,null,null,null,null,"Lod"]
[null,null,null,null,null,null,null,null,null,null,null,null,"Lod"]
[null,null,null,null,null,null,null,null,null,null,null,null,"Lod"]
[null,null,null,null,null,null,null,null,null,null,null,null,"Lod"]
[null,null,null,null,null,null,null,null,null,null,null,null,"Lod"]
[null,null,null,null,null,null,null,null,null,null,null,null,"Lod"]
[null,null,null,null,null,null,null,null,null,null,null,null,"Lod"]
[null,null,null,null,null,null,null,null,null,null,null,null,"Lod"]
[null,null,null,null,null,null,null,null,null,null,null,null,"Lod"]
[null,null,null,null,null,null,null,null,null,null,null,null,"Lod"]
[null,null,null,null,null,null,null,null,null,null,null,null,"Lod"]
[null,null,null,null,null,null,null,null,null,null,null,null,"Lod"]
[null,null,null,null,null,null,null,null,null,null,null,null,"Lod"]
[null,null,null,null,null,null,null,null,null,null,null,null,"Lod"]
[null,null,null,null,null,null,null,null,null,null,null,null,"Lod"]
[null,null,null,null,null,null,null,null,null,null,null,null,"Lod"]
[null,null,null,null,null,null,null,null,null,null,null,null,"Lod"]
[null,null,null,null,null,null,null,null,null,null,null,null,"Lod"]
[null,null,null,null,null,null,null,null,null,null,null,null,"Lod"]
[null,null,null,null,null,null,null,null,null,null,null,null,"Lod"]
[null,null,null,null,null,null,null,null,null,null,null,null,"Lod"]
[null,null,null,null,null,null,null,null,null,null,null,null,"Lod"]
[null,null,null,null,null,null,null,null,null,null,null,null,"Lod"]
[null,null,null,null,null,null,null,null,null,null,null,null,"Lod"]
[null,null,null,null,null,null,null,null,null,null,null,null,"Lod"]
[null,null,null,null,null,null,null,null,null,null,null,null,"Lod"]
[null,null,null,null,null,null,null,null,null,null,null,null,"Lod"]
[null,null,null,null,null,null,null,null,null,null,null,null,"Lod"]
[null,null,null,null,null,null,null,null,null,null,null,null,"Lod"]
[null,null,null,null,null,null,null,null,null,null,null,null,"Lod"]
[null,null,null,null,null,null,null,null,null,null,null,null,"Lod"]
[null,null,null,null,null,null,null,null,null,null,null,null,"Lod"]
[null,null,null,null,null,null,null,null,null,null,null,null,"Lod"]
[null,null,null,null,null,null,null,null,null,null,null,null,"Lod"]
[null,null,null,null,null,null,null,null,null,null,null,null,"Lod"]
[null,null,null,null,null,null,null,null,null,null,null,null,"Lod"]
[null,null,null,null,null,null,null,null,null,null,null,null,"Lod"]
[null,null,null,null,null,null,null,null,null,null,null,null,"Lod"]
[null,null,null,null,null,null,null,null,null,null,null,null,"Lod"]
[null,null,null,null,null,null,null,null,null,null,null,null,"Lod"]
[null,null,null,null,null,null,null,null,null,null,null,null,"Lod"]
[null,null,null,null,null,null,null,null,null,null,null,null,"Lod"]
[null,null,null,null,null,null,null,null,null,null,null,null,"Lod"]
[null,null,null,null,null,null,null,null,null,null,null,null,"Lod"]
[null,null,null,null,null,null,null,null,null,null,null,null,"Lod"]
[null,null,null,null,null,null,null,null,null,null,null,null,"Lod"]
[null,null,null,null,null,null,null,null,null,null,null,null,"Lod"]
[null,null,null,null,null,null,null,null,null,null,null,null,"Lod"]
[null,null,null,null,null,null,null,null,null,null,null,null,"Lod"]
[null,null,null,null,null,null,null,null,null,null,null,null,"Lod"]
[null,null,null,null,null,null,null,null,null,null,null,null,"Lod"]
[null,null,null,null,null,null,null,null,null,null,null,null,"Lod"]
[null,null,null,null,null,null,null,null,null,null,null,null,"Lod"]
[null,null,null,null,null,null,null,null,null,null,null,null,"Lod"]
[null,null,null,null,null,null,null,null,null,null,null,null,"Lod"]
[null,null,null,null,null,null,null,null,null,null,null,null,"Lod"]
[null,null,null,null,null,null,null,null,null,null,null,null,"Lod"]
[null,null,null,null,null,null,null,null,null,null,null,null,"Lod"]
[null,null,null,null,null,null,null,null,null,null,null,null,"Lod"]
[null,null,null,null,null,null,null,null,null,null,null,null,"Lod"]
[null,null,null,null,null,null,null,null,null,null,null,null,"Lod"]
[null,null,null,null,null,null,null,null,null,null,null,null,"Lod"]
[null,null,null,null,null,null,null,null,null,null,null,null,"Lod"]
[null,null,null,null,null,null,null,null,null,null,null,null,"Lod"]
[null,null,null,null,null,null,null,null,null,null,null,null,"Lod"]
[null,null,null,null,null,null,null,null,null,null,null,null,"Lod"]
[null,null,null,null,null,null,null,null,null,null,null,null,"Lod"]
[null,null,null,null,null,null,null,null,null,null,null,null,"Lod"]
[null,null,null,null,null,null,null,null,null,null,null,null,"Lod"]
[null,null,null,null,null,null,null,null,null,null,null,null,"Lod"]
[null,null,null,null,null,null,null,null,null,null,null,null,"Lod"]
[null,null,null,null,null,null,null,null,null,null,null,null,"Lod"]
[null,null,null,null,null,null,null,null,null,null,null,null,"Lod"]
[null,null,null,null,null,null,null,null,null,null,null,null,"Lod"]
[null,null,null,null,null,null,null,null,null,null,null,null,"Lod"]
[null,null,null,null,null,null,null,null,null,null,null,null,"Lod"]
[null,null,null,null,null,null,null,null,null,null,null,null,"Lod"]
[null,null,null,null,null,null,null,null,null,null,null,null,"Lod"]
[null,null,null,null,null,null,null,null,null,null,null,null,"Lod"]
[null,null,null,null,null,null,null,null,null,null,null,null,"Lod"]
[null,null,null,null,null,null,null,null,null,null,null,null,"Lod"]
[null,null,null,null,null,null,null,null,null,null,null,null,"Lod"]
[null,null,null,null,null,null,null,null,null,null,null,null,"Lod"]
[null,null,null,null,null,null,null,null,null,null,null,null,"Lod"]
[null,null,null,null,null,null,null,null,null,null,null,null,"Lod"]
[null,null,null,null,null,null,null,null,null,null,null,null,"Lod"]
[null,null,null,null,null,null,null,null,null,null,null,null,"Lod"]
[null,null,null,null,null,null,null,null,null,null,null,null,"Lod"]
[null,null,null,null,null,null,null,null,null,null,null,null,"Lod"]
[null,null,null,null,null,null,null,null,null,null,null,null,"Lod"]
[null,null,null,null,null,null,null,null,null,null,null,null,"Lod"]
[null,null,null,null,null,null,null,null,null,null,null,null,"Lod"]
[null,null,null,null,null,null,null,null,null,null,null,null,"Lod"]

{"sheet":"gegevens","index":1,"n_rows":37,"n_cols":6,"rows_kept":37,"cut":false,"hidden":false,"merged":[]}
["SLEUTEL","KRUK","VALDORPEL",4,"LOD"]
["SLEUTEL+PATENTGAT","KRUK+PATENTGAT","GEEN",5,"ROD"]
["CILINDER","KRUK ENKEL VOOR",null,6,"EUL"]
["CILINDER+PATENTGAT","KRUK ENKEL VOOR+PATENTGAT",null,7,"EUR"]
["GEEN","KRUK ENKEL ACHTER",null,8]
[null,"KRUK ENKEL ACHTER+PATENTGAT",null,9]
[null,"GEEN",null,10]
["LITTO SLEUTEL"]
["LITTO WC"]
["LITTO CILINDER"]
["XINNIX SLEUTEL"]
["XINNIX WC"]
["XINNIX CILINDER"]
["KFV RF CILINDER"]
["KFV RF SLEUTEL"]
[]
[]
[]
[]
[845,890,730,null,null,{"$f":"IF(AND(1+invullijst!$E$5>=A20,1+invullijst!$E$5<B20),C20,F21)","v":730}]
[890,945,780,null,null,{"$f":"IF(AND(1+invullijst!$E$5>=A21,1+invullijst!$E$5<B21),C21,F22)","v":0}]
[945,1000,830,null,null,{"$f":"IF(AND(1+invullijst!$E$5>=A22,1+invullijst!$E$5<B22),C22,F23)","v":0}]
[1000,1200,900,null,null,{"$f":"IF(AND(1+invullijst!$E$5>=A23,1+invullijst!$E$5<B23),C23,F24)","v":0}]
[null,null,null,null,null,{"$f":"IF(AND(1+invullijst!$E$5>=A24,1+invullijst!$E$5<B24),C24,F25)","v":0}]
[null,null,null,null,null,{"$f":"IF(AND(1+invullijst!$E$5>=A25,1+invullijst!$E$5<B25),C25,F26)","v":0}]
[null,null,null,null,null,{"$f":"IF(AND(1+invullijst!$E$5>=A26,1+invullijst!$E$5<B26),C26,F27)","v":0}]
[null,null,null,null,null,{"$f":"IF(AND(1+invullijst!$E$5>=A27,1+invullijst!$E$5<B27),C27,F28)","v":0}]
[null,null,null,null,null,{"$f":"IF(AND(1+invullijst!$E$5>=A28,1+invullijst!$E$5<B28),C28,F29)","v":0}]
[null,null,null,null,null,{"$f":"IF(AND(1+invullijst!$E$5>=A29,1+invullijst!$E$5<B29),C29,F30)","v":0}]
[null,null,null,null,null,{"$f":"IF(AND(1+invullijst!$E$5>=A30,1+invullijst!$E$5<B30),C30,F31)","v":0}]
[null,null,null,null,null,{"$f":"IF(AND(1+invullijst!$E$5>=A31,1+invullijst!$E$5<B31),C31,F32)","v":0}]
[null,null,null,null,null,{"$f":"IF(AND(1+invullijst!$E$5>=A32,1+invullijst!$E$5<B32),C32,F33)","v":0}]
[null,null,null,null,null,{"$f":"IF(AND(1+invullijst!$E$5>=A33,1+invullijst!$E$5<B33),C33,F34)","v":0}]
[null,null,null,null,null,{"$f":"IF(AND(1+invullijst!$E$5>=A34,1+invullijst!$E$5<B34),C34,F35)","v":0}]
[null,null,null,null,null,{"$f":"IF(AND(1+invullijst!$E$5>=A35,1+invullijst!$E$5<B35),C35,F36)","v":0}]
[null,null,null,null,null,{"$f":"IF(AND(1+invullijst!$E$5>=A36,1+invullijst!$E$5<B36),C36,F37)","v":0}]
[null,null,null,null,null,{"$f":"IF(AND(1+invullijst!$E$5>=A37,1+invullijst!$E$5<B37),C37,F38)","v":0}]